Workbook

Sheet exp_reg_cuartos_mensual.jsp
F2: PERIDO | K2: P1 | L2: P2 | M2: P3 | N2: P4 | O2: P5 | P2: P6
F3: POTENCIA CONTRATADA | K3: 400 | L3: 400 | M3: 400 | N3: 400 | O3: 400 | P3: 779 | CW3: EXCESOS DE POTENCIA
A5: Potencias Cuarto-Horarias Activas (kW) | CW5: año2012 | CX5: PERIODOS
A6: Fecha/Hora | B6: 00:00:00 | C6: 00:15:00 | D6: 00:30:00 | E6: 00:45:00 | F6: 01:00:00 | G6: 01:15:00 | H6: 01:30:00 | I6: 01:45:00 | J6: 02:00:00 | K6: 02:15:00 | L6: 02:30:00 | M6: 02:45:00 | N6: 03:00:00 | O6: 03:15:00 | P6: 03:30:00 | Q6: 03:45:00 | R6: 04:00:00 | S6: 04:15:00 | T6: 04:30:00 | U6: 04:45:00 | V6: 05:00:00 | W6: 05:15:00 | X6: 05:30:00 | Y6: 05:45:00 | Z6: 06:00:00 | AA6: 06:15:00 | AB6: 06:30:00 | AC6: 06:45:00 | AD6: 07:00:00 | AE6: 07:15:00 | AF6: 07:30:00 | AG6: 07:45:00 | AH6: 08:00:00 | AI6: 08:15:00 | AJ6: 08:30:00 | AK6: 08:45:00 | AL6: 09:00:00 | AM6: 09:15:00 | AN6: 09:30:00 | AO6: 09:45:00 | AP6: 10:00:00 | AQ6: 10:15:00 | AR6: 10:30:00 | AS6: 10:45:00 | AT6: 11:00:00 | AU6: 11:15:00 | AV6: 11:30:00 | AW6: 11:45:00 | AX6: 12:00:00 | AY6: 12:15:00 | AZ6: 12:30:00 | BA6: 12:45:00 | BB6: 13:00:00 | BC6: 13:15:00 | BD6: 13:30:00 | BE6: 13:45:00 | BF6: 14:00:00 | BG6: 14:15:00 | BH6: 14:30:00 | BI6: 14:45:00 | BJ6: 15:00:00 | BK6: 15:15:00 | BL6: 15:30:00 | BM6: 15:45:00 | BN6: 16:00:00 | BO6: 16:15:00 | BP6: 16:30:00 | BQ6: 16:45:00 | BR6: 17:00:00 | BS6: 17:15:00 | BT6: 17:30:00 | BU6: 17:45:00 | BV6: 18:00:00 | BW6: 18:15:00 | BX6: 18:30:00 | BY6: 18:45:00 | BZ6: 19:00:00 | CA6: 19:15:00 | CB6: 19:30:00 | CC6: 19:45:00 | CD6: 20:00:00 | CE6: 20:15:00 | CF6: 20:30:00 | CG6: 20:45:00 | CH6: 21:00:00 | CI6: 21:15:00 | CJ6: 21:30:00 | CK6: 21:45:00 | CL6: 22:00:00 | CM6: 22:15:00 | CN6: 22:30:00 | CO6: 22:45:00 | CP6: 23:00:00 | CQ6: 23:15:00 | CR6: 23:30:00 | CS6: 23:45:00 | CW6: MES | CX6: P1 | CY6: P2 | CZ6: P3 | DA6: P4 | DB6: P5 | DC6: P6
A7: 2011-07-01 | B7: 64 | C7: 64 | D7: 68 | E7: 64 | F7: 64 | G7: 64 | H7: 64 | I7: 68 | J7: 64 | K7: 60 | L7: 68 | M7: 64 | N7: 64 | O7: 64 | P7: 64 | Q7: 60 | R7: 64 | S7: 64 | T7: 64 | U7: 64 | V7: 64 | W7: 60 | X7: 68 | Y7: 60 | Z7: 68 | AA7: 60 | AB7: 64 | AC7: 64 | AD7: 144 | AE7: 176 | AF7: 208 | AG7: 244 | AH7: 244 | AI7: 280 | AJ7: 316 | AK7: 328 | AL7: 344 | AM7: 340 | AN7: 348 | AO7: 344 | AP7: 352 | AQ7: 348 | AR7: 344 | AS7: 344 | AT7: 268 | AU7: 244 | AV7: 292 | AW7: 316 | AX7: 328 | AY7: 332 | AZ7: 332 | BA7: 340 | BB7: 344 | BC7: 348 | BD7: 340 | BE7: 336 | BF7: 324 | BG7: 308 | BH7: 300 | BI7: 280 | BJ7: 204 | BK7: 152 | BL7: 128 | BM7: 148 | BN7: 148 | BO7: 144 | BP7: 148 | BQ7: 148 | BR7: 148 | BS7: 148 | BT7: 148 | BU7: 152 | BV7: 152 | BW7: 148 | BX7: 148 | BY7: 148 | BZ7: 144 | CA7: 140 | CB7: 136 | CC7: 132 | CD7: 116 | CE7: 92 | CF7: 76 | CG7: 72 | CH7: 60 | CI7: 64 | CJ7: 56 | CK7: 60 | CL7: 56 | CM7: 60 | CN7: 56 | CO7: 60 | CP7: 60 | CQ7: 60 | CR7: 56 | CS7: 60 | CW7: ENERO | CX7: 0 | CY7: 0 | CZ7: 0 | DA7: 0 | DB7: 0 | DC7: 0
A8: 2011-07-02 | B8: 60 | C8: 64 | D8: 64 | E8: 64 | F8: 60 | G8: 64 | H8: 60 | I8: 64 | J8: 60 | K8: 64 | L8: 60 | M8: 60 | N8: 60 | O8: 64 | P8: 64 | Q8: 60 | R8: 64 | S8: 60 | T8: 60 | U8: 64 | V8: 60 | W8: 60 | X8: 64 | Y8: 60 | Z8: 60 | AA8: 64 | AB8: 60 | AC8: 60 | AD8: 68 | AE8: 68 | AF8: 68 | AG8: 68 | AH8: 72 | AI8: 68 | AJ8: 64 | AK8: 72 | AL8: 68 | AM8: 72 | AN8: 68 | AO8: 68 | AP8: 68 | AQ8: 68 | AR8: 68 | AS8: 72 | AT8: 72 | AU8: 68 | AV8: 68 | AW8: 68 | AX8: 68 | AY8: 68 | AZ8: 72 | BA8: 72 | BB8: 68 | BC8: 68 | BD8: 68 | BE8: 68 | BF8: 72 | BG8: 72 | BH8: 68 | BI8: 68 | BJ8: 72 | BK8: 72 | BL8: 76 | BM8: 72 | BN8: 76 | BO8: 72 | BP8: 68 | BQ8: 72 | BR8: 72 | BS8: 72 | BT8: 76 | BU8: 72 | BV8: 76 | BW8: 68 | BX8: 72 | BY8: 76 | BZ8: 72 | CA8: 76 | CB8: 72 | CC8: 76 | CD8: 72 | CE8: 72 | CF8: 72 | CG8: 72 | CH8: 60 | CI8: 60 | CJ8: 60 | CK8: 60 | CL8: 60 | CM8: 60 | CN8: 60 | CO8: 60 | CP8: 56 | CQ8: 60 | CR8: 60 | CS8: 56 | CW8: FEBRERO | CX8: =SQRT(SUM(EI222:ET250,FO222:FZ250)) -> 12 | CY8: =SQRT((408-$L$3)^2+(436-$L$3)^2+(428-$L$3)^2+(420-$L$3)^2+(412-$L$3)^2) -> 51.84592559 | CZ8: 0 | DA8: 0 | DB8: 0 | DC8: 0
A9: 2011-07-03 | B9: 64 | C9: 64 | D9: 60 | E9: 64 | F9: 64 | G9: 60 | H9: 60 | I9: 64 | J9: 60 | K9: 64 | L9: 64 | M9: 60 | N9: 64 | O9: 64 | P9: 64 | Q9: 60 | R9: 60 | S9: 60 | T9: 64 | U9: 60 | V9: 60 | W9: 60 | X9: 68 | Y9: 60 | Z9: 60 | AA9: 60 | AB9: 60 | AC9: 64 | AD9: 68 | AE9: 68 | AF9: 68 | AG9: 68 | AH9: 72 | AI9: 68 | AJ9: 68 | AK9: 68 | AL9: 68 | AM9: 68 | AN9: 68 | AO9: 68 | AP9: 72 | AQ9: 72 | AR9: 68 | AS9: 68 | AT9: 72 | AU9: 68 | AV9: 72 | AW9: 68 | AX9: 72 | AY9: 68 | AZ9: 72 | BA9: 68 | BB9: 68 | BC9: 72 | BD9: 72 | BE9: 68 | BF9: 68 | BG9: 68 | BH9: 72 | BI9: 72 | BJ9: 72 | BK9: 76 | BL9: 72 | BM9: 72 | BN9: 68 | BO9: 76 | BP9: 72 | BQ9: 72 | BR9: 72 | BS9: 72 | BT9: 72 | BU9: 72 | BV9: 72 | BW9: 76 | BX9: 72 | BY9: 72 | BZ9: 72 | CA9: 72 | CB9: 72 | CC9: 72 | CD9: 76 | CE9: 72 | CF9: 72 | CG9: 72 | CH9: 60 | CI9: 60 | CJ9: 60 | CK9: 56 | CL9: 60 | CM9: 56 | CN9: 60 | CO9: 60 | CP9: 60 | CQ9: 60 | CR9: 56 | CS9: 60 | CW9: MARZO | CX9: 0 | CY9: 0 | CZ9: 0 | DA9: 0 | DB9: 0 | DC9: 0
A10: 2011-07-04 | B10: 60 | C10: 64 | D10: 64 | E10: 64 | F10: 60 | G10: 64 | H10: 64 | I10: 60 | J10: 60 | K10: 64 | L10: 64 | M10: 60 | N10: 64 | O10: 60 | P10: 64 | Q10: 64 | R10: 60 | S10: 60 | T10: 68 | U10: 60 | V10: 60 | W10: 64 | X10: 60 | Y10: 64 | Z10: 60 | AA10: 60 | AB10: 64 | AC10: 64 | AD10: 152 | AE10: 176 | AF10: 200 | AG10: 248 | AH10: 244 | AI10: 284 | AJ10: 328 | AK10: 364 | AL10: 376 | AM10: 368 | AN10: 368 | AO10: 360 | AP10: 364 | AQ10: 368 | AR10: 360 | AS10: 348 | AT10: 276 | AU10: 252 | AV10: 272 | AW10: 296 | AX10: 316 | AY10: 328 | AZ10: 328 | BA10: 344 | BB10: 344 | BC10: 344 | BD10: 348 | BE10: 332 | BF10: 316 | BG10: 304 | BH10: 304 | BI10: 288 | BJ10: 220 | BK10: 160 | BL10: 132 | BM10: 144 | BN10: 148 | BO10: 152 | BP10: 144 | BQ10: 148 | BR10: 156 | BS10: 152 | BT10: 152 | BU10: 156 | BV10: 160 | BW10: 156 | BX10: 160 | BY10: 156 | BZ10: 148 | CA10: 152 | CB10: 144 | CC10: 144 | CD10: 112 | CE10: 84 | CF10: 76 | CG10: 68 | CH10: 64 | CI10: 60 | CJ10: 60 | CK10: 56 | CL10: 60 | CM10: 60 | CN10: 60 | CO10: 60 | CP10: 60 | CQ10: 60 | CR10: 60 | CS10: 60 | CW10: ABRIL | CX10: 0 | CY10: 0 | CZ10: 0 | DA10: 0 | DB10: 0 | DC10: 0
A11: 2011-07-05 | B11: 60 | C11: 64 | D11: 64 | E11: 60 | F11: 64 | G11: 60 | H11: 64 | I11: 60 | J11: 64 | K11: 64 | L11: 60 | M11: 64 | N11: 64 | O11: 60 | P11: 64 | Q11: 60 | R11: 64 | S11: 64 | T11: 60 | U11: 64 | V11: 60 | W11: 60 | X11: 64 | Y11: 60 | Z11: 64 | AA11: 60 | AB11: 64 | AC11: 64 | AD11: 156 | AE11: 180 | AF11: 204 | AG11: 252 | AH11: 248 | AI11: 280 | AJ11: 336 | AK11: 352 | AL11: 348 | AM11: 364 | AN11: 356 | AO11: 348 | AP11: 360 | AQ11: 356 | AR11: 360 | AS11: 352 | AT11: 280 | AU11: 260 | AV11: 288 | AW11: 312 | AX11: 328 | AY11: 332 | AZ11: 344 | BA11: 348 | BB11: 344 | BC11: 348 | BD11: 348 | BE11: 340 | BF11: 328 | BG11: 312 | BH11: 308 | BI11: 296 | BJ11: 216 | BK11: 156 | BL11: 140 | BM11: 136 | BN11: 148 | BO11: 148 | BP11: 152 | BQ11: 156 | BR11: 152 | BS11: 152 | BT11: 164 | BU11: 160 | BV11: 160 | BW11: 160 | BX11: 156 | BY11: 160 | BZ11: 156 | CA11: 156 | CB11: 156 | CC11: 152 | CD11: 144 | CE11: 104 | CF11: 76 | CG11: 72 | CH11: 68 | CI11: 64 | CJ11: 64 | CK11: 60 | CL11: 64 | CM11: 64 | CN11: 60 | CO11: 64 | CP11: 64 | CQ11: 64 | CR11: 60 | CS11: 60 | CW11: MAYO | CX11: 0 | CY11: 0 | CZ11: 0 | DA11: 0 | DB11: 0 | DC11: 0
A12: 2011-07-06 | B12: 68 | C12: 68 | D12: 60 | E12: 68 | F12: 68 | G12: 64 | H12: 64 | I12: 64 | J12: 68 | K12: 64 | L12: 64 | M12: 68 | N12: 64 | O12: 64 | P12: 64 | Q12: 68 | R12: 64 | S12: 64 | T12: 68 | U12: 64 | V12: 64 | W12: 64 | X12: 64 | Y12: 68 | Z12: 64 | AA12: 64 | AB12: 68 | AC12: 68 | AD12: 144 | AE12: 160 | AF12: 168 | AG12: 180 | AH12: 184 | AI12: 188 | AJ12: 196 | AK12: 344 | AL12: 444 | AM12: 276 | AN12: 408 | AO12: 472 | AP12: 492 | AQ12: 480 | AR12: 480 | AS12: 460 | AT12: 308 | AU12: 252 | AV12: 284 | AW12: 316 | AX12: 344 | AY12: 356 | AZ12: 364 | BA12: 368 | BB12: 372 | BC12: 364 | BD12: 368 | BE12: 356 | BF12: 352 | BG12: 332 | BH12: 324 | BI12: 316 | BJ12: 224 | BK12: 164 | BL12: 144 | BM12: 160 | BN12: 160 | BO12: 160 | BP12: 152 | BQ12: 160 | BR12: 152 | BS12: 144 | BT12: 152 | BU12: 160 | BV12: 160 | BW12: 164 | BX12: 160 | BY12: 168 | BZ12: 160 | CA12: 156 | CB12: 152 | CC12: 148 | CD12: 136 | CE12: 96 | CF12: 76 | CG12: 76 | CH12: 60 | CI12: 64 | CJ12: 64 | CK12: 64 | CL12: 60 | CM12: 64 | CN12: 60 | CO12: 60 | CP12: 64 | CQ12: 64 | CR12: 60 | CS12: 64 | CW12: JUNIO | CX12: 0 | CY12: 0 | CZ12: 0 | DA12: 0 | DB12: 0 | DC12: 0
A13: 2011-07-07 | B13: 64 | C13: 64 | D13: 64 | E13: 64 | F13: 68 | G13: 64 | H13: 64 | I13: 64 | J13: 64 | K13: 64 | L13: 72 | M13: 60 | N13: 64 | O13: 64 | P13: 68 | Q13: 64 | R13: 60 | S13: 64 | T13: 64 | U13: 68 | V13: 60 | W13: 64 | X13: 64 | Y13: 64 | Z13: 64 | AA13: 64 | AB13: 64 | AC13: 64 | AD13: 156 | AE13: 180 | AF13: 208 | AG13: 248 | AH13: 248 | AI13: 284 | AJ13: 328 | AK13: 356 | AL13: 368 | AM13: 368 | AN13: 376 | AO13: 380 | AP13: 392 | AQ13: 388 | AR13: 384 | AS13: 380 | AT13: 288 | AU13: 244 | AV13: 284 | AW13: 316 | AX13: 336 | AY13: 340 | AZ13: 352 | BA13: 364 | BB13: 360 | BC13: 356 | BD13: 348 | BE13: 340 | BF13: 332 | BG13: 316 | BH13: 308 | BI13: 296 | BJ13: 216 | BK13: 168 | BL13: 148 | BM13: 148 | BN13: 156 | BO13: 156 | BP13: 156 | BQ13: 156 | BR13: 152 | BS13: 148 | BT13: 160 | BU13: 156 | BV13: 156 | BW13: 156 | BX13: 156 | BY13: 152 | BZ13: 152 | CA13: 140 | CB13: 148 | CC13: 140 | CD13: 132 | CE13: 80 | CF13: 84 | CG13: 72 | CH13: 60 | CI13: 60 | CJ13: 64 | CK13: 60 | CL13: 60 | CM13: 60 | CN13: 60 | CO13: 64 | CP13: 60 | CQ13: 60 | CR13: 60 | CS13: 60 | CW13: JULIO | CX13: 0 | CY13: 0 | CZ13: 0 | DA13: 0 | DB13: 0 | DC13: 0
A14: 2011-07-08 | B14: 60 | C14: 64 | D14: 64 | E14: 64 | F14: 64 | G14: 64 | H14: 64 | I14: 64 | J14: 60 | K14: 64 | L14: 68 | M14: 60 | N14: 68 | O14: 64 | P14: 60 | Q14: 64 | R14: 64 | S14: 60 | T14: 64 | U14: 64 | V14: 64 | W14: 64 | X14: 64 | Y14: 64 | Z14: 60 | AA14: 68 | AB14: 64 | AC14: 64 | AD14: 148 | AE14: 172 | AF14: 204 | AG14: 244 | AH14: 248 | AI14: 284 | AJ14: 332 | AK14: 348 | AL14: 356 | AM14: 364 | AN14: 352 | AO14: 372 | AP14: 376 | AQ14: 372 | AR14: 364 | AS14: 364 | AT14: 284 | AU14: 248 | AV14: 292 | AW14: 316 | AX14: 332 | AY14: 332 | AZ14: 336 | BA14: 348 | BB14: 344 | BC14: 360 | BD14: 356 | BE14: 336 | BF14: 316 | BG14: 304 | BH14: 296 | BI14: 292 | BJ14: 224 | BK14: 160 | BL14: 140 | BM14: 148 | BN14: 144 | BO14: 152 | BP14: 152 | BQ14: 152 | BR14: 148 | BS14: 148 | BT14: 148 | BU14: 148 | BV14: 148 | BW14: 148 | BX14: 152 | BY14: 148 | BZ14: 156 | CA14: 152 | CB14: 148 | CC14: 136 | CD14: 120 | CE14: 120 | CF14: 100 | CG14: 76 | CH14: 60 | CI14: 60 | CJ14: 64 | CK14: 60 | CL14: 60 | CM14: 64 | CN14: 60 | CO14: 60 | CP14: 60 | CQ14: 64 | CR14: 60 | CS14: 60 | CW14: AGOSTO | CX14: 0 | CY14: 0 | CZ14: 0 | DA14: 0 | DB14: 0 | DC14: 0
A15: 2011-07-09 | B15: 64 | C15: 64 | D15: 64 | E15: 64 | F15: 64 | G15: 64 | H15: 64 | I15: 64 | J15: 64 | K15: 64 | L15: 64 | M15: 64 | N15: 64 | O15: 64 | P15: 64 | Q15: 64 | R15: 64 | S15: 64 | T15: 60 | U15: 64 | V15: 64 | W15: 64 | X15: 64 | Y15: 64 | Z15: 60 | AA15: 64 | AB15: 64 | AC15: 60 | AD15: 72 | AE15: 72 | AF15: 72 | AG15: 68 | AH15: 68 | AI15: 72 | AJ15: 68 | AK15: 68 | AL15: 72 | AM15: 72 | AN15: 68 | AO15: 68 | AP15: 72 | AQ15: 68 | AR15: 72 | AS15: 68 | AT15: 76 | AU15: 68 | AV15: 68 | AW15: 72 | AX15: 68 | AY15: 72 | AZ15: 72 | BA15: 72 | BB15: 72 | BC15: 72 | BD15: 72 | BE15: 72 | BF15: 72 | BG15: 68 | BH15: 72 | BI15: 72 | BJ15: 76 | BK15: 76 | BL15: 72 | BM15: 76 | BN15: 72 | BO15: 76 | BP15: 76 | BQ15: 76 | BR15: 72 | BS15: 76 | BT15: 76 | BU15: 72 | BV15: 76 | BW15: 76 | BX15: 72 | BY15: 72 | BZ15: 68 | CA15: 80 | CB15: 76 | CC15: 76 | CD15: 72 | CE15: 72 | CF15: 72 | CG15: 76 | CH15: 60 | CI15: 60 | CJ15: 56 | CK15: 64 | CL15: 64 | CM15: 64 | CN15: 60 | CO15: 60 | CP15: 60 | CQ15: 60 | CR15: 64 | CS15: 60 | CW15: SEPTIEMBRE | CX15: 0 | CY15: 0 | CZ15: 0 | DA15: 0 | DB15: 0 | DC15: 0
A16: 2011-07-10 | B16: 64 | C16: 64 | D16: 64 | E16: 64 | F16: 64 | G16: 64 | H16: 64 | I16: 68 | J16: 64 | K16: 64 | L16: 60 | M16: 64 | N16: 64 | O16: 64 | P16: 68 | Q16: 64 | R16: 64 | S16: 64 | T16: 64 | U16: 64 | V16: 68 | W16: 64 | X16: 64 | Y16: 60 | Z16: 64 | AA16: 64 | AB16: 60 | AC16: 64 | AD16: 68 | AE16: 76 | AF16: 68 | AG16: 68 | AH16: 72 | AI16: 72 | AJ16: 72 | AK16: 68 | AL16: 72 | AM16: 72 | AN16: 68 | AO16: 72 | AP16: 68 | AQ16: 68 | AR16: 72 | AS16: 72 | AT16: 68 | AU16: 72 | AV16: 72 | AW16: 68 | AX16: 72 | AY16: 72 | AZ16: 68 | BA16: 72 | BB16: 68 | BC16: 72 | BD16: 72 | BE16: 72 | BF16: 72 | BG16: 68 | BH16: 68 | BI16: 76 | BJ16: 68 | BK16: 80 | BL16: 72 | BM16: 76 | BN16: 76 | BO16: 72 | BP16: 76 | BQ16: 72 | BR16: 72 | BS16: 76 | BT16: 76 | BU16: 72 | BV16: 72 | BW16: 72 | BX16: 76 | BY16: 72 | BZ16: 76 | CA16: 76 | CB16: 76 | CC16: 72 | CD16: 72 | CE16: 76 | CF16: 72 | CG16: 76 | CH16: 60 | CI16: 60 | CJ16: 60 | CK16: 64 | CL16: 60 | CM16: 60 | CN16: 60 | CO16: 60 | CP16: 64 | CQ16: 60 | CR16: 60 | CS16: 64 | CW16: OCTUBRE | CX16: 0 | CY16: 0 | CZ16: 0 | DA16: 0 | DB16: 0 | DC16: 0
A17: 2011-07-11 | B17: 60 | C17: 68 | D17: 64 | E17: 68 | F17: 60 | G17: 64 | H17: 64 | I17: 64 | J17: 64 | K17: 68 | L17: 64 | M17: 64 | N17: 64 | O17: 64 | P17: 64 | Q17: 64 | R17: 64 | S17: 64 | T17: 64 | U17: 64 | V17: 60 | W17: 64 | X17: 64 | Y17: 68 | Z17: 60 | AA17: 64 | AB17: 64 | AC17: 68 | AD17: 160 | AE17: 188 | AF17: 216 | AG17: 276 | AH17: 260 | AI17: 300 | AJ17: 352 | AK17: 368 | AL17: 376 | AM17: 380 | AN17: 376 | AO17: 384 | AP17: 372 | AQ17: 380 | AR17: 376 | AS17: 376 | AT17: 288 | AU17: 268 | AV17: 304 | AW17: 312 | AX17: 324 | AY17: 332 | AZ17: 340 | BA17: 340 | BB17: 340 | BC17: 348 | BD17: 352 | BE17: 336 | BF17: 320 | BG17: 316 | BH17: 312 | BI17: 300 | BJ17: 220 | BK17: 164 | BL17: 100 | BM17: 84 | BN17: 84 | BO17: 84 | BP17: 88 | BQ17: 84 | BR17: 84 | BS17: 76 | BT17: 80 | BU17: 76 | BV17: 76 | BW17: 76 | BX17: 80 | BY17: 76 | BZ17: 80 | CA17: 76 | CB17: 80 | CC17: 80 | CD17: 80 | CE17: 80 | CF17: 76 | CG17: 80 | CH17: 64 | CI17: 68 | CJ17: 64 | CK17: 64 | CL17: 64 | CM17: 64 | CN17: 64 | CO17: 60 | CP17: 64 | CQ17: 64 | CR17: 64 | CS17: 64 | CW17: NOVIEMBRE | CX17: 0 | CY17: 0 | CZ17: 0 | DA17: 0 | DB17: 0 | DC17: 0
A18: 2011-07-12 | B18: 64 | C18: 68 | D18: 64 | E18: 68 | F18: 64 | G18: 72 | H18: 64 | I18: 64 | J18: 68 | K18: 68 | L18: 64 | M18: 64 | N18: 64 | O18: 68 | P18: 64 | Q18: 68 | R18: 64 | S18: 68 | T18: 68 | U18: 64 | V18: 64 | W18: 64 | X18: 68 | Y18: 68 | Z18: 68 | AA18: 64 | AB18: 64 | AC18: 68 | AD18: 156 | AE18: 180 | AF18: 208 | AG18: 268 | AH18: 264 | AI18: 316 | AJ18: 320 | AK18: 340 | AL18: 396 | AM18: 396 | AN18: 400 | AO18: 392 | AP18: 384 | AQ18: 388 | AR18: 392 | AS18: 376 | AT18: 296 | AU18: 264 | AV18: 304 | AW18: 312 | AX18: 328 | AY18: 344 | AZ18: 344 | BA18: 340 | BB18: 336 | BC18: 340 | BD18: 344 | BE18: 336 | BF18: 320 | BG18: 308 | BH18: 296 | BI18: 288 | BJ18: 208 | BK18: 156 | BL18: 92 | BM18: 88 | BN18: 88 | BO18: 92 | BP18: 88 | BQ18: 92 | BR18: 92 | BS18: 88 | BT18: 80 | BU18: 80 | BV18: 76 | BW18: 76 | BX18: 76 | BY18: 84 | BZ18: 80 | CA18: 76 | CB18: 76 | CC18: 80 | CD18: 80 | CE18: 80 | CF18: 76 | CG18: 76 | CH18: 60 | CI18: 60 | CJ18: 60 | CK18: 60 | CL18: 60 | CM18: 60 | CN18: 60 | CO18: 64 | CP18: 64 | CQ18: 56 | CR18: 60 | CS18: 60 | CW18: DICIEMBRE | CX18: 0 | CY18: 0 | CZ18: 0 | DA18: 0 | DB18: 0 | DC18: 0
A19: 2011-07-13 | B19: 60 | C19: 64 | D19: 64 | E19: 60 | F19: 68 | G19: 64 | H19: 60 | I19: 64 | J19: 60 | K19: 60 | L19: 64 | M19: 60 | N19: 64 | O19: 64 | P19: 64 | Q19: 64 | R19: 60 | S19: 64 | T19: 64 | U19: 64 | V19: 60 | W19: 64 | X19: 60 | Y19: 64 | Z19: 60 | AA19: 68 | AB19: 64 | AC19: 60 | AD19: 160 | AE19: 184 | AF19: 208 | AG19: 240 | AH19: 260 | AI19: 304 | AJ19: 332 | AK19: 344 | AL19: 368 | AM19: 360 | AN19: 368 | AO19: 364 | AP19: 364 | AQ19: 352 | AR19: 356 | AS19: 352 | AT19: 276 | AU19: 252 | AV19: 284 | AW19: 296 | AX19: 308 | AY19: 320 | AZ19: 332 | BA19: 332 | BB19: 344 | BC19: 344 | BD19: 344 | BE19: 332 | BF19: 316 | BG19: 312 | BH19: 300 | BI19: 292 | BJ19: 220 | BK19: 152 | BL19: 88 | BM19: 84 | BN19: 88 | BO19: 76 | BP19: 80 | BQ19: 84 | BR19: 76 | BS19: 76 | BT19: 72 | BU19: 76 | BV19: 76 | BW19: 72 | BX19: 76 | BY19: 72 | BZ19: 76 | CA19: 76 | CB19: 80 | CC19: 76 | CD19: 72 | CE19: 76 | CF19: 72 | CG19: 76 | CH19: 64 | CI19: 60 | CJ19: 60 | CK19: 64 | CL19: 60 | CM19: 60 | CN19: 60 | CO19: 60 | CP19: 60 | CQ19: 56 | CR19: 64 | CS19: 60
A20: 2011-07-14 | B20: 64 | C20: 64 | D20: 64 | E20: 64 | F20: 64 | G20: 60 | H20: 64 | I20: 64 | J20: 64 | K20: 64 | L20: 60 | M20: 64 | N20: 64 | O20: 64 | P20: 60 | Q20: 64 | R20: 64 | S20: 64 | T20: 60 | U20: 64 | V20: 64 | W20: 60 | X20: 64 | Y20: 60 | Z20: 64 | AA20: 64 | AB20: 64 | AC20: 60 | AD20: 160 | AE20: 180 | AF20: 200 | AG20: 256 | AH20: 256 | AI20: 288 | AJ20: 332 | AK20: 348 | AL20: 352 | AM20: 364 | AN20: 360 | AO20: 368 | AP20: 364 | AQ20: 356 | AR20: 360 | AS20: 356 | AT20: 276 | AU20: 260 | AV20: 304 | AW20: 328 | AX20: 340 | AY20: 348 | AZ20: 344 | BA20: 352 | BB20: 356 | BC20: 348 | BD20: 348 | BE20: 340 | BF20: 324 | BG20: 320 | BH20: 296 | BI20: 288 | BJ20: 208 | BK20: 136 | BL20: 96 | BM20: 84 | BN20: 76 | BO20: 76 | BP20: 76 | BQ20: 80 | BR20: 76 | BS20: 76 | BT20: 76 | BU20: 76 | BV20: 76 | BW20: 76 | BX20: 72 | BY20: 80 | BZ20: 76 | CA20: 76 | CB20: 76 | CC20: 76 | CD20: 80 | CE20: 76 | CF20: 76 | CG20: 76 | CH20: 64 | CI20: 60 | CJ20: 64 | CK20: 60 | CL20: 60 | CM20: 64 | CN20: 60 | CO20: 64 | CP20: 64 | CQ20: 60 | CR20: 64 | CS20: 60 | CW20: K | CX20: 1 | CY20: 0.5 | CZ20: 0.37 | DA20: 0.37 | DB20: 0.37 | DC20: 0.17
A21: 2011-07-15 | B21: 60 | C21: 64 | D21: 68 | E21: 64 | F21: 64 | G21: 64 | H21: 64 | I21: 64 | J21: 68 | K21: 64 | L21: 60 | M21: 64 | N21: 64 | O21: 64 | P21: 64 | Q21: 64 | R21: 64 | S21: 64 | T21: 64 | U21: 64 | V21: 64 | W21: 64 | X21: 68 | Y21: 64 | Z21: 64 | AA21: 60 | AB21: 64 | AC21: 64 | AD21: 160 | AE21: 184 | AF21: 196 | AG21: 232 | AH21: 244 | AI21: 264 | AJ21: 316 | AK21: 340 | AL21: 364 | AM21: 376 | AN21: 368 | AO21: 376 | AP21: 372 | AQ21: 348 | AR21: 356 | AS21: 364 | AT21: 280 | AU21: 252 | AV21: 292 | AW21: 320 | AX21: 332 | AY21: 336 | AZ21: 336 | BA21: 336 | BB21: 340 | BC21: 336 | BD21: 336 | BE21: 332 | BF21: 320 | BG21: 300 | BH21: 276 | BI21: 268 | BJ21: 204 | BK21: 148 | BL21: 88 | BM21: 76 | BN21: 80 | BO21: 76 | BP21: 72 | BQ21: 72 | BR21: 76 | BS21: 84 | BT21: 84 | BU21: 84 | BV21: 92 | BW21: 92 | BX21: 96 | BY21: 92 | BZ21: 96 | CA21: 96 | CB21: 92 | CC21: 96 | CD21: 96 | CE21: 92 | CF21: 88 | CG21: 84 | CH21: 60 | CI21: 60 | CJ21: 60 | CK21: 60 | CL21: 56 | CM21: 64 | CN21: 60 | CO21: 60 | CP21: 60 | CQ21: 56 | CR21: 60 | CS21: 56 | CW21: €/Kw | CX21: 1.4064 | DD21: TOTAL
A22: 2011-07-16 | B22: 60 | C22: 64 | D22: 64 | E22: 64 | F22: 60 | G22: 60 | H22: 64 | I22: 60 | J22: 60 | K22: 64 | L22: 64 | M22: 64 | N22: 60 | O22: 64 | P22: 60 | Q22: 60 | R22: 60 | S22: 60 | T22: 64 | U22: 64 | V22: 60 | W22: 60 | X22: 60 | Y22: 60 | Z22: 64 | AA22: 60 | AB22: 64 | AC22: 60 | AD22: 68 | AE22: 68 | AF22: 68 | AG22: 68 | AH22: 68 | AI22: 68 | AJ22: 68 | AK22: 68 | AL22: 68 | AM22: 68 | AN22: 68 | AO22: 68 | AP22: 68 | AQ22: 68 | AR22: 68 | AS22: 72 | AT22: 72 | AU22: 68 | AV22: 68 | AW22: 68 | AX22: 72 | AY22: 68 | AZ22: 72 | BA22: 68 | BB22: 64 | BC22: 68 | BD22: 72 | BE22: 68 | BF22: 72 | BG22: 68 | BH22: 72 | BI22: 64 | BJ22: 72 | BK22: 76 | BL22: 76 | BM22: 72 | BN22: 72 | BO22: 72 | BP22: 72 | BQ22: 72 | BR22: 76 | BS22: 72 | BT22: 72 | BU22: 76 | BV22: 72 | BW22: 68 | BX22: 76 | BY22: 72 | BZ22: 72 | CA22: 76 | CB22: 76 | CC22: 76 | CD22: 72 | CE22: 72 | CF22: 76 | CG22: 76 | CH22: 60 | CI22: 60 | CJ22: 60 | CK22: 60 | CL22: 60 | CM22: 64 | CN22: 60 | CO22: 60 | CP22: 60 | CQ22: 56 | CR22: 64 | CS22: 60 | CW22: ENERO | DD22: =SUM(CX22:DC22) -> 0
A23: 2011-07-17 | B23: 60 | C23: 64 | D23: 64 | E23: 64 | F23: 60 | G23: 64 | H23: 64 | I23: 60 | J23: 64 | K23: 64 | L23: 60 | M23: 64 | N23: 64 | O23: 60 | P23: 64 | Q23: 60 | R23: 64 | S23: 64 | T23: 60 | U23: 64 | V23: 60 | W23: 64 | X23: 64 | Y23: 60 | Z23: 64 | AA23: 60 | AB23: 64 | AC23: 60 | AD23: 64 | AE23: 72 | AF23: 72 | AG23: 68 | AH23: 68 | AI23: 72 | AJ23: 68 | AK23: 72 | AL23: 68 | AM23: 72 | AN23: 72 | AO23: 68 | AP23: 68 | AQ23: 68 | AR23: 72 | AS23: 68 | AT23: 72 | AU23: 72 | AV23: 68 | AW23: 68 | AX23: 68 | AY23: 68 | AZ23: 72 | BA23: 72 | BB23: 68 | BC23: 68 | BD23: 68 | BE23: 68 | BF23: 72 | BG23: 72 | BH23: 72 | BI23: 72 | BJ23: 68 | BK23: 76 | BL23: 72 | BM23: 76 | BN23: 72 | BO23: 76 | BP23: 72 | BQ23: 72 | BR23: 72 | BS23: 72 | BT23: 72 | BU23: 76 | BV23: 72 | BW23: 72 | BX23: 76 | BY23: 72 | BZ23: 72 | CA23: 76 | CB23: 76 | CC23: 72 | CD23: 72 | CE23: 76 | CF23: 72 | CG23: 72 | CH23: 64 | CI23: 60 | CJ23: 60 | CK23: 60 | CL23: 60 | CM23: 64 | CN23: 60 | CO23: 60 | CP23: 60 | CQ23: 60 | CR23: 64 | CS23: 60 | CW23: FEBRERO | CX23: =CX8*CX20*CX21 -> 16.8768 | CY23: =CY8*CY20*CX21 -> 36.45805487 | DD23: =SUM(CX23:DC23) -> 53.33485487
A24: 2011-07-18 | B24: 60 | C24: 64 | D24: 64 | E24: 64 | F24: 64 | G24: 64 | H24: 64 | I24: 60 | J24: 68 | K24: 60 | L24: 64 | M24: 64 | N24: 60 | O24: 64 | P24: 64 | Q24: 60 | R24: 64 | S24: 64 | T24: 64 | U24: 60 | V24: 60 | W24: 64 | X24: 64 | Y24: 64 | Z24: 60 | AA24: 60 | AB24: 64 | AC24: 60 | AD24: 156 | AE24: 176 | AF24: 188 | AG24: 232 | AH24: 268 | AI24: 332 | AJ24: 352 | AK24: 352 | AL24: 368 | AM24: 368 | AN24: 364 | AO24: 364 | AP24: 372 | AQ24: 368 | AR24: 368 | AS24: 376 | AT24: 284 | AU24: 260 | AV24: 304 | AW24: 328 | AX24: 336 | AY24: 344 | AZ24: 344 | BA24: 348 | BB24: 356 | BC24: 344 | BD24: 348 | BE24: 340 | BF24: 324 | BG24: 308 | BH24: 292 | BI24: 280 | BJ24: 204 | BK24: 144 | BL24: 92 | BM24: 80 | BN24: 80 | BO24: 84 | BP24: 88 | BQ24: 84 | BR24: 80 | BS24: 88 | BT24: 88 | BU24: 88 | BV24: 80 | BW24: 84 | BX24: 84 | BY24: 84 | BZ24: 84 | CA24: 80 | CB24: 80 | CC24: 80 | CD24: 80 | CE24: 76 | CF24: 76 | CG24: 80 | CH24: 60 | CI24: 60 | CJ24: 60 | CK24: 64 | CL24: 60 | CM24: 64 | CN24: 60 | CO24: 56 | CP24: 60 | CQ24: 60 | CR24: 64 | CS24: 60 | CW24: MARZO | DD24: 0
A25: 2011-07-19 | B25: 64 | C25: 60 | D25: 64 | E25: 64 | F25: 64 | G25: 64 | H25: 64 | I25: 60 | J25: 64 | K25: 60 | L25: 68 | M25: 64 | N25: 64 | O25: 60 | P25: 64 | Q25: 60 | R25: 68 | S25: 64 | T25: 64 | U25: 60 | V25: 64 | W25: 60 | X25: 64 | Y25: 60 | Z25: 64 | AA25: 64 | AB25: 64 | AC25: 64 | AD25: 156 | AE25: 180 | AF25: 188 | AG25: 236 | AH25: 264 | AI25: 328 | AJ25: 348 | AK25: 376 | AL25: 368 | AM25: 372 | AN25: 376 | AO25: 380 | AP25: 372 | AQ25: 372 | AR25: 372 | AS25: 376 | AT25: 292 | AU25: 260 | AV25: 308 | AW25: 324 | AX25: 344 | AY25: 348 | AZ25: 352 | BA25: 364 | BB25: 372 | BC25: 368 | BD25: 356 | BE25: 356 | BF25: 340 | BG25: 328 | BH25: 300 | BI25: 296 | BJ25: 216 | BK25: 148 | BL25: 92 | BM25: 76 | BN25: 76 | BO25: 72 | BP25: 76 | BQ25: 80 | BR25: 80 | BS25: 84 | BT25: 92 | BU25: 88 | BV25: 96 | BW25: 92 | BX25: 92 | BY25: 100 | BZ25: 96 | CA25: 92 | CB25: 92 | CC25: 92 | CD25: 80 | CE25: 76 | CF25: 76 | CG25: 76 | CH25: 60 | CI25: 56 | CJ25: 64 | CK25: 56 | CL25: 60 | CM25: 60 | CN25: 60 | CO25: 60 | CP25: 56 | CQ25: 60 | CR25: 64 | CS25: 60 | CW25: ABRIL | DD25: 0
A26: 2011-07-20 | B26: 60 | C26: 64 | D26: 60 | E26: 64 | F26: 60 | G26: 64 | H26: 60 | I26: 64 | J26: 60 | K26: 64 | L26: 60 | M26: 64 | N26: 60 | O26: 60 | P26: 68 | Q26: 60 | R26: 60 | S26: 60 | T26: 64 | U26: 60 | V26: 64 | W26: 64 | X26: 60 | Y26: 64 | Z26: 60 | AA26: 64 | AB26: 60 | AC26: 64 | AD26: 156 | AE26: 180 | AF26: 196 | AG26: 236 | AH26: 248 | AI26: 288 | AJ26: 332 | AK26: 352 | AL26: 356 | AM26: 352 | AN26: 356 | AO26: 356 | AP26: 356 | AQ26: 364 | AR26: 364 | AS26: 360 | AT26: 280 | AU26: 240 | AV26: 296 | AW26: 328 | AX26: 340 | AY26: 348 | AZ26: 352 | BA26: 356 | BB26: 340 | BC26: 348 | BD26: 344 | BE26: 336 | BF26: 320 | BG26: 308 | BH26: 304 | BI26: 288 | BJ26: 216 | BK26: 152 | BL26: 92 | BM26: 80 | BN26: 80 | BO26: 80 | BP26: 80 | BQ26: 80 | BR26: 76 | BS26: 84 | BT26: 88 | BU26: 80 | BV26: 88 | BW26: 80 | BX26: 84 | BY26: 84 | BZ26: 80 | CA26: 80 | CB26: 76 | CC26: 76 | CD26: 76 | CE26: 76 | CF26: 76 | CG26: 68 | CH26: 64 | CI26: 60 | CJ26: 60 | CK26: 60 | CL26: 60 | CM26: 60 | CN26: 60 | CO26: 60 | CP26: 56 | CQ26: 60 | CR26: 64 | CS26: 56 | CW26: MAYO | DD26: 0
A27: 2011-07-21 | B27: 64 | C27: 64 | D27: 64 | E27: 64 | F27: 60 | G27: 64 | H27: 60 | I27: 64 | J27: 64 | K27: 60 | L27: 64 | M27: 64 | N27: 60 | O27: 64 | P27: 60 | Q27: 64 | R27: 64 | S27: 64 | T27: 60 | U27: 64 | V27: 60 | W27: 64 | X27: 60 | Y27: 60 | Z27: 64 | AA27: 64 | AB27: 64 | AC27: 60 | AD27: 156 | AE27: 180 | AF27: 192 | AG27: 220 | AH27: 244 | AI27: 284 | AJ27: 336 | AK27: 352 | AL27: 348 | AM27: 356 | AN27: 344 | AO27: 348 | AP27: 340 | AQ27: 340 | AR27: 340 | AS27: 344 | AT27: 280 | AU27: 248 | AV27: 296 | AW27: 320 | AX27: 324 | AY27: 324 | AZ27: 332 | BA27: 336 | BB27: 340 | BC27: 332 | BD27: 336 | BE27: 324 | BF27: 320 | BG27: 300 | BH27: 288 | BI27: 284 | BJ27: 208 | BK27: 148 | BL27: 88 | BM27: 80 | BN27: 72 | BO27: 76 | BP27: 76 | BQ27: 72 | BR27: 76 | BS27: 76 | BT27: 76 | BU27: 76 | BV27: 72 | BW27: 76 | BX27: 76 | BY27: 76 | BZ27: 76 | CA27: 76 | CB27: 76 | CC27: 76 | CD27: 76 | CE27: 76 | CF27: 76 | CG27: 76 | CH27: 64 | CI27: 64 | CJ27: 60 | CK27: 64 | CL27: 60 | CM27: 60 | CN27: 60 | CO27: 60 | CP27: 64 | CQ27: 60 | CR27: 60 | CS27: 60 | CW27: JUNIO | DD27: 0
A28: 2011-07-22 | B28: 60 | C28: 64 | D28: 68 | E28: 64 | F28: 64 | G28: 64 | H28: 60 | I28: 64 | J28: 64 | K28: 64 | L28: 64 | M28: 68 | N28: 64 | O28: 60 | P28: 64 | Q28: 64 | R28: 60 | S28: 68 | T28: 64 | U28: 60 | V28: 64 | W28: 64 | X28: 64 | Y28: 60 | Z28: 64 | AA28: 64 | AB28: 64 | AC28: 64 | AD28: 160 | AE28: 176 | AF28: 188 | AG28: 232 | AH28: 248 | AI28: 292 | AJ28: 348 | AK28: 340 | AL28: 352 | AM28: 352 | AN28: 348 | AO28: 348 | AP28: 344 | AQ28: 348 | AR28: 344 | AS28: 344 | AT28: 280 | AU28: 256 | AV28: 300 | AW28: 304 | AX28: 312 | AY28: 328 | AZ28: 336 | BA28: 336 | BB28: 336 | BC28: 320 | BD28: 332 | BE28: 308 | BF28: 300 | BG28: 280 | BH28: 280 | BI28: 272 | BJ28: 212 | BK28: 148 | BL28: 88 | BM28: 80 | BN28: 88 | BO28: 88 | BP28: 76 | BQ28: 76 | BR28: 72 | BS28: 72 | BT28: 72 | BU28: 72 | BV28: 76 | BW28: 72 | BX28: 72 | BY28: 72 | BZ28: 72 | CA28: 76 | CB28: 72 | CC28: 76 | CD28: 76 | CE28: 68 | CF28: 72 | CG28: 72 | CH28: 64 | CI28: 60 | CJ28: 60 | CK28: 60 | CL28: 60 | CM28: 56 | CN28: 64 | CO28: 60 | CP28: 60 | CQ28: 60 | CR28: 56 | CS28: 60 | CW28: JULIO | DD28: 0
A29: 2011-07-23 | B29: 60 | C29: 64 | D29: 64 | E29: 64 | F29: 64 | G29: 60 | H29: 60 | I29: 64 | J29: 60 | K29: 64 | L29: 64 | M29: 64 | N29: 64 | O29: 64 | P29: 60 | Q29: 60 | R29: 64 | S29: 60 | T29: 68 | U29: 64 | V29: 60 | W29: 64 | X29: 60 | Y29: 64 | Z29: 60 | AA29: 64 | AB29: 60 | AC29: 60 | AD29: 68 | AE29: 72 | AF29: 72 | AG29: 68 | AH29: 68 | AI29: 68 | AJ29: 68 | AK29: 68 | AL29: 68 | AM29: 72 | AN29: 68 | AO29: 72 | AP29: 68 | AQ29: 68 | AR29: 68 | AS29: 68 | AT29: 72 | AU29: 68 | AV29: 72 | AW29: 72 | AX29: 68 | AY29: 68 | AZ29: 72 | BA29: 68 | BB29: 68 | BC29: 72 | BD29: 72 | BE29: 68 | BF29: 68 | BG29: 72 | BH29: 72 | BI29: 72 | BJ29: 72 | BK29: 72 | BL29: 72 | BM29: 76 | BN29: 72 | BO29: 72 | BP29: 72 | BQ29: 68 | BR29: 72 | BS29: 76 | BT29: 72 | BU29: 72 | BV29: 68 | BW29: 72 | BX29: 76 | BY29: 72 | BZ29: 72 | CA29: 76 | CB29: 72 | CC29: 72 | CD29: 76 | CE29: 72 | CF29: 76 | CG29: 72 | CH29: 60 | CI29: 56 | CJ29: 64 | CK29: 60 | CL29: 64 | CM29: 60 | CN29: 60 | CO29: 60 | CP29: 64 | CQ29: 60 | CR29: 60 | CS29: 60 | CW29: AGOSTO | DD29: 0
A30: 2011-07-24 | B30: 64 | C30: 64 | D30: 64 | E30: 64 | F30: 64 | G30: 64 | H30: 60 | I30: 68 | J30: 64 | K30: 64 | L30: 60 | M30: 64 | N30: 60 | O30: 64 | P30: 64 | Q30: 64 | R30: 64 | S30: 60 | T30: 64 | U30: 60 | V30: 68 | W30: 64 | X30: 64 | Y30: 60 | Z30: 60 | AA30: 64 | AB30: 60 | AC30: 64 | AD30: 68 | AE30: 76 | AF30: 68 | AG30: 68 | AH30: 72 | AI30: 68 | AJ30: 72 | AK30: 68 | AL30: 72 | AM30: 72 | AN30: 68 | AO30: 72 | AP30: 68 | AQ30: 68 | AR30: 68 | AS30: 72 | AT30: 72 | AU30: 72 | AV30: 68 | AW30: 72 | AX30: 68 | AY30: 72 | AZ30: 72 | BA30: 68 | BB30: 68 | BC30: 68 | BD30: 72 | BE30: 72 | BF30: 72 | BG30: 68 | BH30: 68 | BI30: 72 | BJ30: 72 | BK30: 76 | BL30: 72 | BM30: 76 | BN30: 76 | BO30: 72 | BP30: 76 | BQ30: 72 | BR30: 76 | BS30: 72 | BT30: 76 | BU30: 76 | BV30: 72 | BW30: 72 | BX30: 76 | BY30: 72 | BZ30: 76 | CA30: 76 | CB30: 76 | CC30: 72 | CD30: 72 | CE30: 76 | CF30: 76 | CG30: 72 | CH30: 60 | CI30: 60 | CJ30: 60 | CK30: 64 | CL30: 60 | CM30: 60 | CN30: 60 | CO30: 60 | CP30: 64 | CQ30: 60 | CR30: 60 | CS30: 60 | CW30: SEPTIEMBRE | DD30: 0
A31: 2011-07-25 | B31: 64 | C31: 64 | D31: 68 | E31: 60 | F31: 64 | G31: 64 | H31: 64 | I31: 64 | J31: 64 | K31: 60 | L31: 64 | M31: 64 | N31: 68 | O31: 64 | P31: 64 | Q31: 60 | R31: 64 | S31: 64 | T31: 64 | U31: 64 | V31: 64 | W31: 64 | X31: 64 | Y31: 64 | Z31: 64 | AA31: 64 | AB31: 64 | AC31: 64 | AD31: 148 | AE31: 172 | AF31: 192 | AG31: 228 | AH31: 252 | AI31: 308 | AJ31: 360 | AK31: 368 | AL31: 368 | AM31: 376 | AN31: 372 | AO31: 364 | AP31: 360 | AQ31: 356 | AR31: 352 | AS31: 344 | AT31: 280 | AU31: 260 | AV31: 304 | AW31: 336 | AX31: 348 | AY31: 360 | AZ31: 364 | BA31: 364 | BB31: 360 | BC31: 352 | BD31: 352 | BE31: 344 | BF31: 328 | BG31: 316 | BH31: 296 | BI31: 292 | BJ31: 216 | BK31: 152 | BL31: 96 | BM31: 84 | BN31: 88 | BO31: 84 | BP31: 92 | BQ31: 88 | BR31: 88 | BS31: 80 | BT31: 80 | BU31: 76 | BV31: 76 | BW31: 76 | BX31: 76 | BY31: 72 | BZ31: 80 | CA31: 76 | CB31: 76 | CC31: 76 | CD31: 80 | CE31: 76 | CF31: 72 | CG31: 76 | CH31: 64 | CI31: 60 | CJ31: 60 | CK31: 60 | CL31: 60 | CM31: 64 | CN31: 64 | CO31: 60 | CP31: 60 | CQ31: 60 | CR31: 60 | CS31: 60 | CW31: OCTUBRE | DD31: 0
A32: 2011-07-26 | B32: 68 | C32: 64 | D32: 64 | E32: 64 | F32: 64 | G32: 64 | H32: 60 | I32: 64 | J32: 64 | K32: 64 | L32: 64 | M32: 64 | N32: 60 | O32: 64 | P32: 64 | Q32: 64 | R32: 60 | S32: 64 | T32: 64 | U32: 64 | V32: 64 | W32: 64 | X32: 64 | Y32: 60 | Z32: 64 | AA32: 60 | AB32: 64 | AC32: 64 | AD32: 156 | AE32: 180 | AF32: 196 | AG32: 232 | AH32: 252 | AI32: 300 | AJ32: 348 | AK32: 368 | AL32: 356 | AM32: 360 | AN32: 360 | AO32: 364 | AP32: 356 | AQ32: 352 | AR32: 360 | AS32: 360 | AT32: 288 | AU32: 260 | AV32: 292 | AW32: 308 | AX32: 324 | AY32: 324 | AZ32: 328 | BA32: 336 | BB32: 332 | BC32: 340 | BD32: 336 | BE32: 332 | BF32: 320 | BG32: 304 | BH32: 304 | BI32: 292 | BJ32: 220 | BK32: 132 | BL32: 88 | BM32: 80 | BN32: 76 | BO32: 80 | BP32: 76 | BQ32: 72 | BR32: 80 | BS32: 76 | BT32: 76 | BU32: 76 | BV32: 76 | BW32: 76 | BX32: 76 | BY32: 76 | BZ32: 76 | CA32: 80 | CB32: 76 | CC32: 76 | CD32: 76 | CE32: 76 | CF32: 72 | CG32: 80 | CH32: 60 | CI32: 64 | CJ32: 64 | CK32: 60 | CL32: 64 | CM32: 60 | CN32: 64 | CO32: 60 | CP32: 64 | CQ32: 60 | CR32: 60 | CS32: 64 | CW32: NOVIEMBRE | DD32: 0
A33: 2011-07-27 | B33: 64 | C33: 64 | D33: 64 | E33: 68 | F33: 64 | G33: 64 | H33: 64 | I33: 60 | J33: 68 | K33: 64 | L33: 64 | M33: 64 | N33: 68 | O33: 64 | P33: 64 | Q33: 64 | R33: 64 | S33: 64 | T33: 60 | U33: 64 | V33: 64 | W33: 64 | X33: 64 | Y33: 64 | Z33: 64 | AA33: 64 | AB33: 64 | AC33: 64 | AD33: 148 | AE33: 184 | AF33: 192 | AG33: 232 | AH33: 244 | AI33: 288 | AJ33: 336 | AK33: 364 | AL33: 368 | AM33: 380 | AN33: 380 | AO33: 372 | AP33: 376 | AQ33: 372 | AR33: 368 | AS33: 372 | AT33: 292 | AU33: 276 | AV33: 316 | AW33: 320 | AX33: 328 | AY33: 344 | AZ33: 340 | BA33: 344 | BB33: 348 | BC33: 352 | BD33: 340 | BE33: 340 | BF33: 328 | BG33: 312 | BH33: 308 | BI33: 296 | BJ33: 220 | BK33: 156 | BL33: 92 | BM33: 84 | BN33: 80 | BO33: 84 | BP33: 80 | BQ33: 76 | BR33: 72 | BS33: 72 | BT33: 76 | BU33: 76 | BV33: 72 | BW33: 68 | BX33: 68 | BY33: 72 | BZ33: 76 | CA33: 120 | CB33: 104 | CC33: 84 | CD33: 88 | CE33: 80 | CF33: 80 | CG33: 76 | CH33: 68 | CI33: 64 | CJ33: 60 | CK33: 64 | CL33: 60 | CM33: 60 | CN33: 64 | CO33: 64 | CP33: 64 | CQ33: 64 | CR33: 60 | CS33: 64 | CW33: DICIEMBRE | DD33: 0
A34: 2011-07-28 | B34: 64 | C34: 68 | D34: 64 | E34: 64 | F34: 64 | G34: 64 | H34: 64 | I34: 68 | J34: 68 | K34: 64 | L34: 64 | M34: 64 | N34: 68 | O34: 64 | P34: 68 | Q34: 68 | R34: 64 | S34: 64 | T34: 64 | U34: 64 | V34: 64 | W34: 64 | X34: 68 | Y34: 64 | Z34: 68 | AA34: 64 | AB34: 64 | AC34: 64 | AD34: 156 | AE34: 176 | AF34: 192 | AG34: 232 | AH34: 260 | AI34: 320 | AJ34: 360 | AK34: 356 | AL34: 368 | AM34: 368 | AN34: 368 | AO34: 368 | AP34: 364 | AQ34: 368 | AR34: 368 | AS34: 352 | AT34: 296 | AU34: 272 | AV34: 300 | AW34: 332 | AX34: 344 | AY34: 352 | AZ34: 356 | BA34: 352 | BB34: 348 | BC34: 352 | BD34: 360 | BE34: 340 | BF34: 332 | BG34: 332 | BH34: 320 | BI34: 312 | BJ34: 228 | BK34: 144 | BL34: 100 | BM34: 100 | BN34: 88 | BO34: 80 | BP34: 76 | BQ34: 76 | BR34: 76 | BS34: 80 | BT34: 76 | BU34: 76 | BV34: 76 | BW34: 72 | BX34: 76 | BY34: 80 | BZ34: 76 | CA34: 80 | CB34: 76 | CC34: 80 | CD34: 80 | CE34: 76 | CF34: 80 | CG34: 80 | CH34: 60 | CI34: 64 | CJ34: 60 | CK34: 60 | CL34: 60 | CM34: 64 | CN34: 64 | CO34: 60 | CP34: 64 | CQ34: 60 | CR34: 60 | CS34: 60
A35: 2011-07-29 | B35: 64 | C35: 64 | D35: 68 | E35: 64 | F35: 64 | G35: 64 | H35: 64 | I35: 64 | J35: 64 | K35: 68 | L35: 64 | M35: 64 | N35: 64 | O35: 64 | P35: 64 | Q35: 64 | R35: 64 | S35: 64 | T35: 64 | U35: 68 | V35: 64 | W35: 64 | X35: 60 | Y35: 68 | Z35: 60 | AA35: 64 | AB35: 64 | AC35: 64 | AD35: 156 | AE35: 180 | AF35: 192 | AG35: 228 | AH35: 240 | AI35: 276 | AJ35: 320 | AK35: 340 | AL35: 352 | AM35: 348 | AN35: 344 | AO35: 352 | AP35: 348 | AQ35: 348 | AR35: 348 | AS35: 352 | AT35: 288 | AU35: 264 | AV35: 284 | AW35: 304 | AX35: 304 | AY35: 324 | AZ35: 336 | BA35: 340 | BB35: 340 | BC35: 336 | BD35: 336 | BE35: 332 | BF35: 316 | BG35: 304 | BH35: 292 | BI35: 280 | BJ35: 200 | BK35: 144 | BL35: 88 | BM35: 80 | BN35: 72 | BO35: 76 | BP35: 80 | BQ35: 76 | BR35: 72 | BS35: 80 | BT35: 72 | BU35: 72 | BV35: 76 | BW35: 76 | BX35: 72 | BY35: 76 | BZ35: 76 | CA35: 76 | CB35: 76 | CC35: 76 | CD35: 72 | CE35: 72 | CF35: 72 | CG35: 72 | CH35: 64 | CI35: 60 | CJ35: 60 | CK35: 56 | CL35: 60 | CM35: 64 | CN35: 60 | CO35: 64 | CP35: 60 | CQ35: 60 | CR35: 60 | CS35: 60
A36: 2011-07-30 | B36: 60 | C36: 64 | D36: 64 | E36: 64 | F36: 64 | G36: 60 | H36: 64 | I36: 64 | J36: 64 | K36: 64 | L36: 64 | M36: 64 | N36: 60 | O36: 64 | P36: 60 | Q36: 64 | R36: 64 | S36: 64 | T36: 64 | U36: 60 | V36: 64 | W36: 64 | X36: 60 | Y36: 64 | Z36: 60 | AA36: 64 | AB36: 68 | AC36: 64 | AD36: 64 | AE36: 72 | AF36: 72 | AG36: 68 | AH36: 68 | AI36: 68 | AJ36: 68 | AK36: 72 | AL36: 72 | AM36: 68 | AN36: 72 | AO36: 68 | AP36: 68 | AQ36: 68 | AR36: 68 | AS36: 72 | AT36: 72 | AU36: 72 | AV36: 68 | AW36: 68 | AX36: 72 | AY36: 68 | AZ36: 64 | BA36: 72 | BB36: 68 | BC36: 68 | BD36: 68 | BE36: 68 | BF36: 68 | BG36: 68 | BH36: 72 | BI36: 68 | BJ36: 68 | BK36: 76 | BL36: 72 | BM36: 72 | BN36: 72 | BO36: 76 | BP36: 72 | BQ36: 72 | BR36: 72 | BS36: 72 | BT36: 72 | BU36: 72 | BV36: 76 | BW36: 68 | BX36: 72 | BY36: 72 | BZ36: 72 | CA36: 76 | CB36: 76 | CC36: 72 | CD36: 72 | CE36: 72 | CF36: 76 | CG36: 72 | CH36: 60 | CI36: 60 | CJ36: 64 | CK36: 60 | CL36: 60 | CM36: 60 | CN36: 60 | CO36: 60 | CP36: 64 | CQ36: 60 | CR36: 60 | CS36: 56
A37: 2011-07-31 | B37: 64 | C37: 64 | D37: 60 | E37: 68 | F37: 60 | G37: 64 | H37: 60 | I37: 64 | J37: 64 | K37: 68 | L37: 60 | M37: 60 | N37: 64 | O37: 64 | P37: 64 | Q37: 64 | R37: 64 | S37: 60 | T37: 60 | U37: 64 | V37: 64 | W37: 64 | X37: 64 | Y37: 60 | Z37: 64 | AA37: 60 | AB37: 64 | AC37: 64 | AD37: 68 | AE37: 72 | AF37: 72 | AG37: 68 | AH37: 68 | AI37: 68 | AJ37: 68 | AK37: 68 | AL37: 72 | AM37: 72 | AN37: 68 | AO37: 68 | AP37: 68 | AQ37: 68 | AR37: 68 | AS37: 68 | AT37: 72 | AU37: 72 | AV37: 68 | AW37: 68 | AX37: 68 | AY37: 68 | AZ37: 68 | BA37: 72 | BB37: 72 | BC37: 68 | BD37: 68 | BE37: 68 | BF37: 72 | BG37: 68 | BH37: 72 | BI37: 68 | BJ37: 68 | BK37: 80 | BL37: 72 | BM37: 72 | BN37: 72 | BO37: 72 | BP37: 72 | BQ37: 72 | BR37: 68 | BS37: 72 | BT37: 76 | BU37: 68 | BV37: 68 | BW37: 72 | BX37: 72 | BY37: 76 | BZ37: 72 | CA37: 72 | CB37: 76 | CC37: 72 | CD37: 76 | CE37: 72 | CF37: 72 | CG37: 72 | CH37: 60 | CI37: 60 | CJ37: 60 | CK37: 64 | CL37: 56 | CM37: 60 | CN37: 60 | CO37: 64 | CP37: 60 | CQ37: 60 | CR37: 60 | CS37: 60 | CW37: TERMINO DE POTENCIA
A38: 2011-08-01 | B38: 64 | C38: 64 | D38: 64 | E38: 64 | F38: 60 | G38: 64 | H38: 68 | I38: 64 | J38: 64 | K38: 60 | L38: 64 | M38: 64 | N38: 64 | O38: 64 | P38: 64 | Q38: 60 | R38: 64 | S38: 60 | T38: 68 | U38: 64 | V38: 60 | W38: 64 | X38: 60 | Y38: 64 | Z38: 64 | AA38: 64 | AB38: 64 | AC38: 60 | AD38: 160 | AE38: 176 | AF38: 192 | AG38: 224 | AH38: 232 | AI38: 288 | AJ38: 328 | AK38: 336 | AL38: 344 | AM38: 356 | AN38: 356 | AO38: 352 | AP38: 356 | AQ38: 352 | AR38: 352 | AS38: 352 | AT38: 284 | AU38: 256 | AV38: 292 | AW38: 316 | AX38: 328 | AY38: 352 | AZ38: 348 | BA38: 332 | BB38: 344 | BC38: 332 | BD38: 328 | BE38: 324 | BF38: 308 | BG38: 296 | BH38: 280 | BI38: 276 | BJ38: 216 | BK38: 152 | BL38: 92 | BM38: 72 | BN38: 76 | BO38: 76 | BP38: 76 | BQ38: 76 | BR38: 76 | BS38: 80 | BT38: 72 | BU38: 76 | BV38: 76 | BW38: 72 | BX38: 76 | BY38: 76 | BZ38: 76 | CA38: 76 | CB38: 76 | CC38: 76 | CD38: 76 | CE38: 72 | CF38: 76 | CG38: 72 | CH38: 64 | CI38: 56 | CJ38: 64 | CK38: 60 | CL38: 60 | CM38: 64 | CN38: 60 | CO38: 60 | CP38: 64 | CQ38: 60 | CR38: 60 | CS38: 60
A39: 2011-08-02 | B39: 60 | C39: 64 | D39: 68 | E39: 64 | F39: 64 | G39: 64 | H39: 64 | I39: 60 | J39: 68 | K39: 64 | L39: 60 | M39: 68 | N39: 60 | O39: 64 | P39: 64 | Q39: 64 | R39: 64 | S39: 64 | T39: 64 | U39: 64 | V39: 64 | W39: 64 | X39: 64 | Y39: 64 | Z39: 60 | AA39: 64 | AB39: 64 | AC39: 68 | AD39: 156 | AE39: 172 | AF39: 188 | AG39: 228 | AH39: 236 | AI39: 288 | AJ39: 316 | AK39: 336 | AL39: 336 | AM39: 356 | AN39: 356 | AO39: 352 | AP39: 344 | AQ39: 352 | AR39: 356 | AS39: 352 | AT39: 284 | AU39: 236 | AV39: 264 | AW39: 288 | AX39: 300 | AY39: 312 | AZ39: 344 | BA39: 344 | BB39: 348 | BC39: 340 | BD39: 340 | BE39: 332 | BF39: 320 | BG39: 300 | BH39: 288 | BI39: 284 | BJ39: 216 | BK39: 152 | BL39: 92 | BM39: 80 | BN39: 76 | BO39: 72 | BP39: 72 | BQ39: 76 | BR39: 76 | BS39: 76 | BT39: 76 | BU39: 76 | BV39: 72 | BW39: 72 | BX39: 76 | BY39: 76 | BZ39: 76 | CA39: 72 | CB39: 76 | CC39: 76 | CD39: 76 | CE39: 76 | CF39: 76 | CG39: 76 | CH39: 64 | CI39: 60 | CJ39: 60 | CK39: 64 | CL39: 60 | CM39: 60 | CN39: 60 | CO39: 60 | CP39: 64 | CQ39: 60 | CR39: 60 | CS39: 64 | CW39: PC | CX39: 400 | CY39: 400 | CZ39: 400 | DA39: 400 | DB39: 400 | DC39: 779 | DD39: Kw
A40: 2011-08-03 | B40: 60 | C40: 64 | D40: 68 | E40: 64 | F40: 64 | G40: 64 | H40: 64 | I40: 68 | J40: 64 | K40: 60 | L40: 64 | M40: 64 | N40: 64 | O40: 60 | P40: 68 | Q40: 64 | R40: 64 | S40: 64 | T40: 64 | U40: 60 | V40: 64 | W40: 64 | X40: 64 | Y40: 64 | Z40: 64 | AA40: 64 | AB40: 64 | AC40: 64 | AD40: 156 | AE40: 180 | AF40: 184 | AG40: 228 | AH40: 240 | AI40: 284 | AJ40: 332 | AK40: 356 | AL40: 348 | AM40: 352 | AN40: 352 | AO40: 356 | AP40: 336 | AQ40: 340 | AR40: 336 | AS40: 344 | AT40: 284 | AU40: 240 | AV40: 268 | AW40: 288 | AX40: 320 | AY40: 328 | AZ40: 344 | BA40: 332 | BB40: 336 | BC40: 336 | BD40: 344 | BE40: 316 | BF40: 312 | BG40: 308 | BH40: 300 | BI40: 288 | BJ40: 232 | BK40: 160 | BL40: 100 | BM40: 96 | BN40: 88 | BO40: 80 | BP40: 80 | BQ40: 80 | BR40: 80 | BS40: 80 | BT40: 80 | BU40: 76 | BV40: 84 | BW40: 76 | BX40: 80 | BY40: 76 | BZ40: 80 | CA40: 84 | CB40: 80 | CC40: 80 | CD40: 76 | CE40: 84 | CF40: 76 | CG40: 80 | CH40: 64 | CI40: 68 | CJ40: 64 | CK40: 64 | CL40: 60 | CM40: 64 | CN40: 64 | CO40: 60 | CP40: 68 | CQ40: 64 | CR40: 64 | CS40: 60 | CX40: P1 | CY40: P2 | CZ40: P3 | DA40: P4 | DB40: P5 | DC40: P6
A41: 2011-08-04 | B41: 68 | C41: 68 | D41: 64 | E41: 68 | F41: 68 | G41: 64 | H41: 68 | I41: 68 | J41: 64 | K41: 68 | L41: 64 | M41: 64 | N41: 68 | O41: 72 | P41: 64 | Q41: 68 | R41: 68 | S41: 64 | T41: 64 | U41: 64 | V41: 68 | W41: 68 | X41: 68 | Y41: 64 | Z41: 72 | AA41: 60 | AB41: 64 | AC41: 68 | AD41: 156 | AE41: 180 | AF41: 192 | AG41: 248 | AH41: 252 | AI41: 280 | AJ41: 312 | AK41: 324 | AL41: 348 | AM41: 344 | AN41: 356 | AO41: 364 | AP41: 360 | AQ41: 348 | AR41: 344 | AS41: 348 | AT41: 272 | AU41: 240 | AV41: 268 | AW41: 308 | AX41: 316 | AY41: 324 | AZ41: 324 | BA41: 328 | BB41: 340 | BC41: 340 | BD41: 340 | BE41: 316 | BF41: 316 | BG41: 304 | BH41: 296 | BI41: 296 | BJ41: 224 | BK41: 160 | BL41: 100 | BM41: 84 | BN41: 88 | BO41: 80 | BP41: 80 | BQ41: 80 | BR41: 80 | BS41: 76 | BT41: 76 | BU41: 84 | BV41: 80 | BW41: 80 | BX41: 80 | BY41: 80 | BZ41: 76 | CA41: 84 | CB41: 80 | CC41: 80 | CD41: 80 | CE41: 80 | CF41: 80 | CG41: 80 | CH41: 64 | CI41: 68 | CJ41: 60 | CK41: 64 | CL41: 68 | CM41: 68 | CN41: 64 | CO41: 64 | CP41: 68 | CQ41: 64 | CR41: 68 | CS41: 64 | CW41: TP | CX41: 17.683102 | CY41: 8.849205 | CZ41: 6.476148 | DA41: 6.476148 | DB41: 6.476148 | DC41: 2.954837 | DD41: €/Kw año
A42: 2011-08-05 | B42: 68 | C42: 72 | D42: 68 | E42: 64 | F42: 72 | G42: 64 | H42: 68 | I42: 68 | J42: 68 | K42: 68 | L42: 72 | M42: 64 | N42: 72 | O42: 68 | P42: 68 | Q42: 64 | R42: 68 | S42: 68 | T42: 68 | U42: 64 | V42: 72 | W42: 68 | X42: 68 | Y42: 68 | Z42: 64 | AA42: 68 | AB42: 68 | AC42: 68 | AD42: 164 | AE42: 192 | AF42: 204 | AG42: 232 | AH42: 244 | AI42: 288 | AJ42: 312 | AK42: 332 | AL42: 356 | AM42: 368 | AN42: 360 | AO42: 356 | AP42: 348 | AQ42: 356 | AR42: 360 | AS42: 348 | AT42: 280 | AU42: 264 | AV42: 296 | AW42: 300 | AX42: 300 | AY42: 316 | AZ42: 332 | BA42: 336 | BB42: 336 | BC42: 324 | BD42: 328 | BE42: 308 | BF42: 304 | BG42: 296 | BH42: 292 | BI42: 284 | BJ42: 220 | BK42: 164 | BL42: 96 | BM42: 80 | BN42: 80 | BO42: 76 | BP42: 80 | BQ42: 80 | BR42: 76 | BS42: 76 | BT42: 80 | BU42: 88 | BV42: 80 | BW42: 76 | BX42: 76 | BY42: 80 | BZ42: 76 | CA42: 80 | CB42: 80 | CC42: 80 | CD42: 80 | CE42: 76 | CF42: 80 | CG42: 80 | CH42: 60 | CI42: 64 | CJ42: 64 | CK42: 64 | CL42: 64 | CM42: 60 | CN42: 64 | CO42: 64 | CP42: 68 | CQ42: 64 | CR42: 64 | CS42: 60 | CX42: =CX41/12 -> 1.473591833 | CY42: =CY41/12 -> 0.73743375 | CZ42: 0.539679 | DA42: 0.539679 | DB42: 0.539679 | DC42: 0.2462364167 | DD42: €/Kw mES
A43: 2011-08-06 | B43: 68 | C43: 64 | D43: 68 | E43: 64 | F43: 72 | G43: 68 | H43: 64 | I43: 68 | J43: 64 | K43: 68 | L43: 64 | M43: 68 | N43: 68 | O43: 64 | P43: 64 | Q43: 68 | R43: 68 | S43: 68 | T43: 68 | U43: 64 | V43: 64 | W43: 68 | X43: 64 | Y43: 64 | Z43: 64 | AA43: 68 | AB43: 68 | AC43: 68 | AD43: 72 | AE43: 76 | AF43: 76 | AG43: 68 | AH43: 72 | AI43: 76 | AJ43: 72 | AK43: 72 | AL43: 72 | AM43: 72 | AN43: 76 | AO43: 72 | AP43: 72 | AQ43: 80 | AR43: 76 | AS43: 68 | AT43: 76 | AU43: 72 | AV43: 76 | AW43: 72 | AX43: 76 | AY43: 76 | AZ43: 72 | BA43: 72 | BB43: 80 | BC43: 76 | BD43: 72 | BE43: 68 | BF43: 76 | BG43: 80 | BH43: 76 | BI43: 76 | BJ43: 72 | BK43: 80 | BL43: 84 | BM43: 80 | BN43: 72 | BO43: 80 | BP43: 76 | BQ43: 72 | BR43: 76 | BS43: 84 | BT43: 76 | BU43: 80 | BV43: 72 | BW43: 76 | BX43: 80 | BY43: 80 | BZ43: 80 | CA43: 76 | CB43: 80 | CC43: 76 | CD43: 80 | CE43: 76 | CF43: 76 | CG43: 80 | CH43: 68 | CI43: 64 | CJ43: 64 | CK43: 60 | CL43: 64 | CM43: 68 | CN43: 64 | CO43: 64 | CP43: 64 | CQ43: 68 | CR43: 60 | CS43: 64 | CW43: ENERO | CX43: =$CX$39*$CX$42 -> 589.4367333 | CY43: =$CY$39*$CY$42 -> 294.9735 | CZ43: =$CZ$39*$CZ$42 -> 215.8716 | DA43: =$DA$39*$DA$42 -> 215.8716 | DB43: =$DB$39*$DB$42 -> 215.8716 | DC43: =$DC$39*$DC$42 -> 191.8181686 | DD43: =SUM(CX43:DC43) -> 1723.843202
A44: 2011-08-07 | B44: 64 | C44: 72 | D44: 68 | E44: 68 | F44: 64 | G44: 68 | H44: 68 | I44: 64 | J44: 68 | K44: 68 | L44: 68 | M44: 68 | N44: 68 | O44: 64 | P44: 72 | Q44: 64 | R44: 68 | S44: 64 | T44: 68 | U44: 68 | V44: 68 | W44: 68 | X44: 64 | Y44: 68 | Z44: 64 | AA44: 68 | AB44: 64 | AC44: 64 | AD44: 76 | AE44: 72 | AF44: 72 | AG44: 72 | AH44: 76 | AI44: 72 | AJ44: 76 | AK44: 76 | AL44: 72 | AM44: 76 | AN44: 76 | AO44: 76 | AP44: 72 | AQ44: 76 | AR44: 80 | AS44: 76 | AT44: 76 | AU44: 76 | AV44: 76 | AW44: 76 | AX44: 72 | AY44: 72 | AZ44: 72 | BA44: 80 | BB44: 76 | BC44: 72 | BD44: 72 | BE44: 76 | BF44: 72 | BG44: 80 | BH44: 76 | BI44: 76 | BJ44: 76 | BK44: 80 | BL44: 80 | BM44: 76 | BN44: 80 | BO44: 80 | BP44: 80 | BQ44: 80 | BR44: 76 | BS44: 80 | BT44: 80 | BU44: 80 | BV44: 80 | BW44: 76 | BX44: 76 | BY44: 84 | BZ44: 80 | CA44: 80 | CB44: 80 | CC44: 76 | CD44: 84 | CE44: 80 | CF44: 80 | CG44: 76 | CH44: 68 | CI44: 64 | CJ44: 68 | CK44: 64 | CL44: 64 | CM44: 64 | CN44: 68 | CO44: 68 | CP44: 60 | CQ44: 68 | CR44: 68 | CS44: 64 | CW44: FEBRERO | CX44: =$CX$39*$CX$42 -> 589.4367333 | CY44: =$CY$39*$CY$42 -> 294.9735 | CZ44: =$CZ$39*$CZ$42 -> 215.8716 | DA44: =$DA$39*$DA$42 -> 215.8716 | DB44: =$DB$39*$DB$42 -> 215.8716 | DC44: =$DC$39*$DC$42 -> 191.8181686 | DD44: =SUM(CX44:DC44) -> 1723.843202
A45: 2011-08-08 | B45: 68 | C45: 68 | D45: 68 | E45: 72 | F45: 68 | G45: 64 | H45: 72 | I45: 68 | J45: 68 | K45: 68 | L45: 68 | M45: 68 | N45: 68 | O45: 68 | P45: 68 | Q45: 68 | R45: 68 | S45: 64 | T45: 68 | U45: 68 | V45: 68 | W45: 68 | X45: 68 | Y45: 68 | Z45: 64 | AA45: 68 | AB45: 68 | AC45: 68 | AD45: 164 | AE45: 176 | AF45: 192 | AG45: 236 | AH45: 256 | AI45: 316 | AJ45: 356 | AK45: 368 | AL45: 376 | AM45: 384 | AN45: 380 | AO45: 376 | AP45: 380 | AQ45: 380 | AR45: 380 | AS45: 372 | AT45: 292 | AU45: 268 | AV45: 296 | AW45: 340 | AX45: 348 | AY45: 368 | AZ45: 364 | BA45: 356 | BB45: 356 | BC45: 360 | BD45: 356 | BE45: 340 | BF45: 324 | BG45: 312 | BH45: 308 | BI45: 300 | BJ45: 232 | BK45: 160 | BL45: 92 | BM45: 88 | BN45: 84 | BO45: 76 | BP45: 80 | BQ45: 76 | BR45: 80 | BS45: 76 | BT45: 84 | BU45: 80 | BV45: 76 | BW45: 80 | BX45: 80 | BY45: 76 | BZ45: 80 | CA45: 84 | CB45: 80 | CC45: 76 | CD45: 80 | CE45: 76 | CF45: 84 | CG45: 76 | CH45: 68 | CI45: 60 | CJ45: 68 | CK45: 68 | CL45: 64 | CM45: 64 | CN45: 68 | CO45: 64 | CP45: 64 | CQ45: 68 | CR45: 60 | CS45: 64 | CW45: MARZO | CX45: 589.4367333 | CY45: 294.9735 | CZ45: 215.8716 | DA45: 215.8716 | DB45: 215.8716 | DC45: 191.8181686 | DD45: 1723.843202
A46: 2011-08-09 | B46: 72 | C46: 68 | D46: 68 | E46: 68 | F46: 72 | G46: 68 | H46: 68 | I46: 68 | J46: 68 | K46: 68 | L46: 68 | M46: 64 | N46: 68 | O46: 72 | P46: 68 | Q46: 64 | R46: 68 | S46: 68 | T46: 68 | U46: 72 | V46: 64 | W46: 68 | X46: 64 | Y46: 68 | Z46: 72 | AA46: 68 | AB46: 64 | AC46: 72 | AD46: 160 | AE46: 180 | AF46: 188 | AG46: 240 | AH46: 252 | AI46: 288 | AJ46: 332 | AK46: 364 | AL46: 372 | AM46: 372 | AN46: 364 | AO46: 376 | AP46: 376 | AQ46: 368 | AR46: 376 | AS46: 372 | AT46: 284 | AU46: 256 | AV46: 304 | AW46: 320 | AX46: 324 | AY46: 332 | AZ46: 340 | BA46: 120 | BB46: 232 | BC46: 276 | BD46: 304 | BE46: 324 | BF46: 308 | BG46: 288 | BH46: 284 | BI46: 284 | BJ46: 212 | BK46: 148 | BL46: 92 | BM46: 76 | BN46: 76 | BO46: 76 | BP46: 76 | BQ46: 76 | BR46: 72 | BS46: 76 | BT46: 72 | BU46: 76 | BV46: 72 | BW46: 76 | BX46: 72 | BY46: 76 | BZ46: 76 | CA46: 76 | CB46: 72 | CC46: 76 | CD46: 76 | CE46: 72 | CF46: 72 | CG46: 68 | CH46: 64 | CI46: 64 | CJ46: 60 | CK46: 68 | CL46: 64 | CM46: 64 | CN46: 60 | CO46: 64 | CP46: 64 | CQ46: 64 | CR46: 64 | CS46: 64 | CW46: ABRIL | CX46: 589.4367333 | CY46: 294.9735 | CZ46: 215.8716 | DA46: 215.8716 | DB46: 215.8716 | DC46: 191.8181686 | DD46: 1723.843202
A47: 2011-08-10 | B47: 60 | C47: 72 | D47: 68 | E47: 68 | F47: 68 | G47: 64 | H47: 68 | I47: 60 | J47: 72 | K47: 64 | L47: 68 | M47: 64 | N47: 64 | O47: 68 | P47: 64 | Q47: 68 | R47: 64 | S47: 68 | T47: 68 | U47: 60 | V47: 72 | W47: 64 | X47: 68 | Y47: 64 | Z47: 68 | AA47: 60 | AB47: 68 | AC47: 68 | AD47: 156 | AE47: 180 | AF47: 184 | AG47: 236 | AH47: 244 | AI47: 292 | AJ47: 328 | AK47: 348 | AL47: 356 | AM47: 360 | AN47: 352 | AO47: 356 | AP47: 356 | AQ47: 352 | AR47: 344 | AS47: 348 | AT47: 276 | AU47: 244 | AV47: 276 | AW47: 292 | AX47: 328 | AY47: 336 | AZ47: 332 | BA47: 328 | BB47: 340 | BC47: 336 | BD47: 336 | BE47: 344 | BF47: 320 | BG47: 300 | BH47: 300 | BI47: 296 | BJ47: 220 | BK47: 160 | BL47: 100 | BM47: 84 | BN47: 80 | BO47: 80 | BP47: 80 | BQ47: 80 | BR47: 84 | BS47: 76 | BT47: 84 | BU47: 76 | BV47: 76 | BW47: 76 | BX47: 76 | BY47: 80 | BZ47: 76 | CA47: 76 | CB47: 84 | CC47: 76 | CD47: 76 | CE47: 76 | CF47: 76 | CG47: 80 | CH47: 60 | CI47: 68 | CJ47: 64 | CK47: 60 | CL47: 64 | CM47: 60 | CN47: 64 | CO47: 60 | CP47: 64 | CQ47: 64 | CR47: 60 | CS47: 68 | CW47: MAYO | CX47: 589.4367333 | CY47: 294.9735 | CZ47: 215.8716 | DA47: 215.8716 | DB47: 215.8716 | DC47: 191.8181686 | DD47: 1723.843202
A48: 2011-08-11 | B48: 60 | C48: 68 | D48: 64 | E48: 68 | F48: 64 | G48: 68 | H48: 64 | I48: 64 | J48: 64 | K48: 64 | L48: 68 | M48: 60 | N48: 68 | O48: 68 | P48: 64 | Q48: 68 | R48: 60 | S48: 68 | T48: 64 | U48: 64 | V48: 64 | W48: 68 | X48: 64 | Y48: 64 | Z48: 64 | AA48: 68 | AB48: 64 | AC48: 64 | AD48: 156 | AE48: 184 | AF48: 188 | AG48: 240 | AH48: 244 | AI48: 268 | AJ48: 312 | AK48: 340 | AL48: 356 | AM48: 352 | AN48: 348 | AO48: 332 | AP48: 336 | AQ48: 340 | AR48: 336 | AS48: 340 | AT48: 264 | AU48: 244 | AV48: 268 | AW48: 300 | AX48: 324 | AY48: 324 | AZ48: 316 | BA48: 320 | BB48: 312 | BC48: 312 | BD48: 304 | BE48: 296 | BF48: 288 | BG48: 280 | BH48: 264 | BI48: 264 | BJ48: 208 | BK48: 148 | BL48: 92 | BM48: 76 | BN48: 76 | BO48: 76 | BP48: 76 | BQ48: 76 | BR48: 76 | BS48: 76 | BT48: 80 | BU48: 76 | BV48: 72 | BW48: 80 | BX48: 76 | BY48: 76 | BZ48: 76 | CA48: 80 | CB48: 80 | CC48: 76 | CD48: 76 | CE48: 80 | CF48: 72 | CG48: 80 | CH48: 64 | CI48: 64 | CJ48: 60 | CK48: 64 | CL48: 64 | CM48: 60 | CN48: 60 | CO48: 68 | CP48: 60 | CQ48: 68 | CR48: 60 | CS48: 64 | CW48: JUNIO | CX48: 589.4367333 | CY48: 294.9735 | CZ48: 215.8716 | DA48: 215.8716 | DB48: 215.8716 | DC48: 191.8181686 | DD48: 1723.843202
A49: 2011-08-12 | B49: 64 | C49: 68 | D49: 60 | E49: 68 | F49: 68 | G49: 64 | H49: 64 | I49: 64 | J49: 68 | K49: 64 | L49: 68 | M49: 64 | N49: 68 | O49: 64 | P49: 64 | Q49: 64 | R49: 64 | S49: 64 | T49: 68 | U49: 64 | V49: 64 | W49: 64 | X49: 60 | Y49: 68 | Z49: 64 | AA49: 68 | AB49: 60 | AC49: 68 | AD49: 160 | AE49: 184 | AF49: 184 | AG49: 240 | AH49: 256 | AI49: 272 | AJ49: 300 | AK49: 316 | AL49: 324 | AM49: 332 | AN49: 324 | AO49: 328 | AP49: 332 | AQ49: 328 | AR49: 332 | AS49: 328 | AT49: 280 | AU49: 268 | AV49: 300 | AW49: 296 | AX49: 308 | AY49: 312 | AZ49: 304 | BA49: 328 | BB49: 320 | BC49: 328 | BD49: 324 | BE49: 304 | BF49: 304 | BG49: 284 | BH49: 280 | BI49: 268 | BJ49: 228 | BK49: 156 | BL49: 92 | BM49: 80 | BN49: 84 | BO49: 80 | BP49: 76 | BQ49: 80 | BR49: 80 | BS49: 76 | BT49: 80 | BU49: 76 | BV49: 80 | BW49: 80 | BX49: 76 | BY49: 80 | BZ49: 80 | CA49: 76 | CB49: 80 | CC49: 72 | CD49: 76 | CE49: 72 | CF49: 80 | CG49: 72 | CH49: 60 | CI49: 64 | CJ49: 60 | CK49: 64 | CL49: 60 | CM49: 60 | CN49: 64 | CO49: 64 | CP49: 60 | CQ49: 60 | CR49: 60 | CS49: 64 | CW49: JULIO | CX49: 589.4367333 | CY49: 294.9735 | CZ49: 215.8716 | DA49: 215.8716 | DB49: 215.8716 | DC49: 191.8181686 | DD49: 1723.843202
A50: 2011-08-13 | B50: 64 | C50: 60 | D50: 68 | E50: 60 | F50: 64 | G50: 68 | H50: 64 | I50: 64 | J50: 64 | K50: 64 | L50: 64 | M50: 64 | N50: 64 | O50: 64 | P50: 64 | Q50: 64 | R50: 64 | S50: 64 | T50: 60 | U50: 68 | V50: 60 | W50: 68 | X50: 60 | Y50: 64 | Z50: 64 | AA50: 64 | AB50: 60 | AC50: 68 | AD50: 68 | AE50: 76 | AF50: 64 | AG50: 72 | AH50: 68 | AI50: 68 | AJ50: 76 | AK50: 68 | AL50: 72 | AM50: 68 | AN50: 72 | AO50: 72 | AP50: 72 | AQ50: 72 | AR50: 72 | AS50: 72 | AT50: 76 | AU50: 72 | AV50: 72 | AW50: 72 | AX50: 68 | AY50: 68 | AZ50: 76 | BA50: 68 | BB50: 76 | BC50: 76 | BD50: 72 | BE50: 76 | BF50: 72 | BG50: 72 | BH50: 72 | BI50: 72 | BJ50: 72 | BK50: 72 | BL50: 80 | BM50: 72 | BN50: 80 | BO50: 72 | BP50: 72 | BQ50: 76 | BR50: 76 | BS50: 72 | BT50: 80 | BU50: 72 | BV50: 76 | BW50: 76 | BX50: 72 | BY50: 76 | BZ50: 72 | CA50: 80 | CB50: 72 | CC50: 76 | CD50: 72 | CE50: 76 | CF50: 72 | CG50: 72 | CH50: 64 | CI50: 64 | CJ50: 60 | CK50: 60 | CL50: 60 | CM50: 64 | CN50: 60 | CO50: 60 | CP50: 64 | CQ50: 56 | CR50: 68 | CS50: 56 | CW50: AGOSTO | CX50: 589.4367333 | CY50: 294.9735 | CZ50: 215.8716 | DA50: 215.8716 | DB50: 215.8716 | DC50: 191.8181686 | DD50: 1723.843202
A51: 2011-08-14 | B51: 68 | C51: 60 | D51: 64 | E51: 64 | F51: 64 | G51: 64 | H51: 64 | I51: 64 | J51: 68 | K51: 60 | L51: 68 | M51: 60 | N51: 68 | O51: 64 | P51: 64 | Q51: 64 | R51: 60 | S51: 68 | T51: 64 | U51: 60 | V51: 68 | W51: 64 | X51: 60 | Y51: 64 | Z51: 64 | AA51: 68 | AB51: 60 | AC51: 64 | AD51: 68 | AE51: 72 | AF51: 72 | AG51: 72 | AH51: 68 | AI51: 68 | AJ51: 72 | AK51: 72 | AL51: 64 | AM51: 72 | AN51: 72 | AO51: 72 | AP51: 72 | AQ51: 68 | AR51: 72 | AS51: 68 | AT51: 72 | AU51: 72 | AV51: 68 | AW51: 76 | AX51: 68 | AY51: 68 | AZ51: 76 | BA51: 72 | BB51: 72 | BC51: 76 | BD51: 68 | BE51: 72 | BF51: 72 | BG51: 68 | BH51: 76 | BI51: 76 | BJ51: 72 | BK51: 76 | BL51: 76 | BM51: 76 | BN51: 72 | BO51: 80 | BP51: 76 | BQ51: 76 | BR51: 76 | BS51: 72 | BT51: 76 | BU51: 76 | BV51: 72 | BW51: 72 | BX51: 76 | BY51: 80 | BZ51: 72 | CA51: 80 | CB51: 76 | CC51: 72 | CD51: 76 | CE51: 76 | CF51: 76 | CG51: 72 | CH51: 60 | CI51: 64 | CJ51: 60 | CK51: 60 | CL51: 64 | CM51: 64 | CN51: 56 | CO51: 64 | CP51: 64 | CQ51: 64 | CR51: 60 | CS51: 60 | CW51: SEPTIEMBRE | CX51: 589.4367333 | CY51: 294.9735 | CZ51: 215.8716 | DA51: 215.8716 | DB51: 215.8716 | DC51: 191.8181686 | DD51: 1723.843202
A52: 2011-08-15 | B52: 64 | C52: 68 | D52: 64 | E52: 64 | F52: 64 | G52: 60 | H52: 68 | I52: 64 | J52: 64 | K52: 68 | L52: 64 | M52: 64 | N52: 64 | O52: 68 | P52: 64 | Q52: 60 | R52: 68 | S52: 60 | T52: 64 | U52: 64 | V52: 64 | W52: 68 | X52: 64 | Y52: 64 | Z52: 60 | AA52: 68 | AB52: 64 | AC52: 64 | AD52: 68 | AE52: 68 | AF52: 76 | AG52: 68 | AH52: 76 | AI52: 80 | AJ52: 76 | AK52: 80 | AL52: 76 | AM52: 80 | AN52: 84 | AO52: 80 | AP52: 80 | AQ52: 80 | AR52: 80 | AS52: 80 | AT52: 80 | AU52: 80 | AV52: 80 | AW52: 80 | AX52: 80 | AY52: 84 | AZ52: 80 | BA52: 80 | BB52: 84 | BC52: 80 | BD52: 80 | BE52: 80 | BF52: 84 | BG52: 80 | BH52: 80 | BI52: 84 | BJ52: 80 | BK52: 76 | BL52: 76 | BM52: 76 | BN52: 76 | BO52: 76 | BP52: 76 | BQ52: 76 | BR52: 80 | BS52: 76 | BT52: 72 | BU52: 80 | BV52: 76 | BW52: 76 | BX52: 76 | BY52: 76 | BZ52: 76 | CA52: 76 | CB52: 76 | CC52: 80 | CD52: 72 | CE52: 80 | CF52: 72 | CG52: 76 | CH52: 64 | CI52: 64 | CJ52: 60 | CK52: 64 | CL52: 64 | CM52: 60 | CN52: 64 | CO52: 60 | CP52: 64 | CQ52: 60 | CR52: 64 | CS52: 60 | CW52: OCTUBRE | CX52: 589.4367333 | CY52: 294.9735 | CZ52: 215.8716 | DA52: 215.8716 | DB52: 215.8716 | DC52: 191.8181686 | DD52: 1723.843202
A53: 2011-08-16 | B53: 64 | C53: 64 | D53: 68 | E53: 64 | F53: 64 | G53: 64 | H53: 64 | I53: 68 | J53: 64 | K53: 64 | L53: 68 | M53: 64 | N53: 60 | O53: 68 | P53: 64 | Q53: 64 | R53: 64 | S53: 64 | T53: 68 | U53: 60 | V53: 64 | W53: 64 | X53: 68 | Y53: 64 | Z53: 64 | AA53: 60 | AB53: 64 | AC53: 68 | AD53: 156 | AE53: 172 | AF53: 188 | AG53: 232 | AH53: 236 | AI53: 260 | AJ53: 312 | AK53: 356 | AL53: 368 | AM53: 368 | AN53: 372 | AO53: 368 | AP53: 372 | AQ53: 360 | AR53: 364 | AS53: 364 | AT53: 292 | AU53: 280 | AV53: 328 | AW53: 340 | AX53: 340 | AY53: 348 | AZ53: 344 | BA53: 336 | BB53: 336 | BC53: 344 | BD53: 336 | BE53: 328 | BF53: 312 | BG53: 300 | BH53: 292 | BI53: 288 | BJ53: 216 | BK53: 148 | BL53: 92 | BM53: 76 | BN53: 80 | BO53: 80 | BP53: 80 | BQ53: 80 | BR53: 76 | BS53: 80 | BT53: 76 | BU53: 80 | BV53: 80 | BW53: 80 | BX53: 76 | BY53: 76 | BZ53: 84 | CA53: 80 | CB53: 80 | CC53: 76 | CD53: 76 | CE53: 80 | CF53: 80 | CG53: 76 | CH53: 68 | CI53: 64 | CJ53: 60 | CK53: 60 | CL53: 64 | CM53: 60 | CN53: 60 | CO53: 60 | CP53: 60 | CQ53: 60 | CR53: 64 | CS53: 60 | CW53: NOVIEMBRE | CX53: 589.4367333 | CY53: 294.9735 | CZ53: 215.8716 | DA53: 215.8716 | DB53: 215.8716 | DC53: 191.8181686 | DD53: 1723.843202
A54: 2011-08-17 | B54: 64 | C54: 64 | D54: 60 | E54: 68 | F54: 64 | G54: 64 | H54: 60 | I54: 68 | J54: 64 | K54: 64 | L54: 64 | M54: 60 | N54: 64 | O54: 64 | P54: 64 | Q54: 64 | R54: 64 | S54: 64 | T54: 60 | U54: 64 | V54: 64 | W54: 64 | X54: 64 | Y54: 64 | Z54: 60 | AA54: 64 | AB54: 64 | AC54: 64 | AD54: 160 | AE54: 188 | AF54: 196 | AG54: 232 | AH54: 240 | AI54: 276 | AJ54: 316 | AK54: 328 | AL54: 344 | AM54: 340 | AN54: 344 | AO54: 340 | AP54: 356 | AQ54: 356 | AR54: 348 | AS54: 352 | AT54: 288 | AU54: 260 | AV54: 292 | AW54: 312 | AX54: 316 | AY54: 328 | AZ54: 332 | BA54: 336 | BB54: 340 | BC54: 332 | BD54: 328 | BE54: 320 | BF54: 304 | BG54: 300 | BH54: 288 | BI54: 284 | BJ54: 224 | BK54: 156 | BL54: 92 | BM54: 84 | BN54: 80 | BO54: 76 | BP54: 76 | BQ54: 76 | BR54: 76 | BS54: 72 | BT54: 76 | BU54: 76 | BV54: 76 | BW54: 76 | BX54: 80 | BY54: 76 | BZ54: 76 | CA54: 76 | CB54: 76 | CC54: 80 | CD54: 76 | CE54: 76 | CF54: 72 | CG54: 76 | CH54: 64 | CI54: 60 | CJ54: 60 | CK54: 64 | CL54: 64 | CM54: 60 | CN54: 64 | CO54: 64 | CP54: 64 | CQ54: 60 | CR54: 60 | CS54: 60 | CW54: DICIEMBRE | CX54: 589.4367333 | CY54: 294.9735 | CZ54: 215.8716 | DA54: 215.8716 | DB54: 215.8716 | DC54: 191.8181686 | DD54: 1723.843202
A55: 2011-08-18 | B55: 68 | C55: 64 | D55: 64 | E55: 68 | F55: 64 | G55: 64 | H55: 64 | I55: 64 | J55: 64 | K55: 68 | L55: 68 | M55: 64 | N55: 64 | O55: 64 | P55: 64 | Q55: 64 | R55: 68 | S55: 64 | T55: 64 | U55: 68 | V55: 60 | W55: 64 | X55: 64 | Y55: 64 | Z55: 64 | AA55: 68 | AB55: 64 | AC55: 64 | AD55: 152 | AE55: 184 | AF55: 208 | AG55: 240 | AH55: 236 | AI55: 252 | AJ55: 308 | AK55: 332 | AL55: 348 | AM55: 348 | AN55: 360 | AO55: 352 | AP55: 356 | AQ55: 360 | AR55: 352 | AS55: 368 | AT55: 292 | AU55: 268 | AV55: 300 | AW55: 316 | AX55: 336 | AY55: 332 | AZ55: 328 | BA55: 324 | BB55: 336 | BC55: 340 | BD55: 340 | BE55: 316 | BF55: 296 | BG55: 296 | BH55: 276 | BI55: 272 | BJ55: 212 | BK55: 156 | BL55: 96 | BM55: 84 | BN55: 84 | BO55: 80 | BP55: 80 | BQ55: 80 | BR55: 76 | BS55: 80 | BT55: 80 | BU55: 80 | BV55: 76 | BW55: 84 | BX55: 80 | BY55: 80 | BZ55: 80 | CA55: 84 | CB55: 80 | CC55: 76 | CD55: 84 | CE55: 76 | CF55: 80 | CG55: 76 | CH55: 64 | CI55: 60 | CJ55: 60 | CK55: 60 | CL55: 60 | CM55: 64 | CN55: 60 | CO55: 64 | CP55: 64 | CQ55: 60 | CR55: 60 | CS55: 60
A56: 2011-08-19 | B56: 60 | C56: 68 | D56: 64 | E56: 64 | F56: 64 | G56: 64 | H56: 68 | I56: 64 | J56: 64 | K56: 64 | L56: 64 | M56: 64 | N56: 64 | O56: 64 | P56: 64 | Q56: 64 | R56: 60 | S56: 68 | T56: 64 | U56: 64 | V56: 68 | W56: 64 | X56: 60 | Y56: 64 | Z56: 64 | AA56: 64 | AB56: 64 | AC56: 68 | AD56: 148 | AE56: 184 | AF56: 204 | AG56: 240 | AH56: 236 | AI56: 264 | AJ56: 324 | AK56: 340 | AL56: 364 | AM56: 376 | AN56: 368 | AO56: 372 | AP56: 364 | AQ56: 360 | AR56: 360 | AS56: 352 | AT56: 288 | AU56: 244 | AV56: 276 | AW56: 300 | AX56: 308 | AY56: 320 | AZ56: 316 | BA56: 312 | BB56: 312 | BC56: 308 | BD56: 312 | BE56: 296 | BF56: 276 | BG56: 268 | BH56: 264 | BI56: 256 | BJ56: 216 | BK56: 144 | BL56: 84 | BM56: 76 | BN56: 72 | BO56: 72 | BP56: 76 | BQ56: 72 | BR56: 76 | BS56: 76 | BT56: 72 | BU56: 72 | BV56: 76 | BW56: 76 | BX56: 76 | BY56: 72 | BZ56: 76 | CA56: 76 | CB56: 76 | CC56: 76 | CD56: 76 | CE56: 76 | CF56: 72 | CG56: 76 | CH56: 60 | CI56: 60 | CJ56: 60 | CK56: 60 | CL56: 60 | CM56: 60 | CN56: 60 | CO56: 60 | CP56: 60 | CQ56: 64 | CR56: 56 | CS56: 60
A57: 2011-08-20 | B57: 64 | C57: 64 | D57: 64 | E57: 64 | F57: 60 | G57: 64 | H57: 64 | I57: 60 | J57: 64 | K57: 64 | L57: 64 | M57: 64 | N57: 64 | O57: 64 | P57: 60 | Q57: 64 | R57: 60 | S57: 60 | T57: 64 | U57: 64 | V57: 64 | W57: 64 | X57: 64 | Y57: 60 | Z57: 60 | AA57: 60 | AB57: 64 | AC57: 64 | AD57: 68 | AE57: 72 | AF57: 68 | AG57: 68 | AH57: 68 | AI57: 68 | AJ57: 72 | AK57: 68 | AL57: 72 | AM57: 68 | AN57: 68 | AO57: 72 | AP57: 72 | AQ57: 68 | AR57: 68 | AS57: 72 | AT57: 72 | AU57: 72 | AV57: 72 | AW57: 68 | AX57: 72 | AY57: 72 | AZ57: 72 | BA57: 72 | BB57: 72 | BC57: 72 | BD57: 72 | BE57: 68 | BF57: 72 | BG57: 72 | BH57: 76 | BI57: 72 | BJ57: 72 | BK57: 76 | BL57: 72 | BM57: 76 | BN57: 76 | BO57: 72 | BP57: 72 | BQ57: 76 | BR57: 76 | BS57: 72 | BT57: 76 | BU57: 76 | BV57: 72 | BW57: 76 | BX57: 76 | BY57: 72 | BZ57: 76 | CA57: 76 | CB57: 76 | CC57: 72 | CD57: 72 | CE57: 76 | CF57: 72 | CG57: 76 | CH57: 60 | CI57: 60 | CJ57: 60 | CK57: 60 | CL57: 60 | CM57: 60 | CN57: 64 | CO57: 60 | CP57: 60 | CQ57: 60 | CR57: 64 | CS57: 60
A58: 2011-08-21 | B58: 64 | C58: 60 | D58: 64 | E58: 60 | F58: 68 | G58: 64 | H58: 64 | I58: 64 | J58: 60 | K58: 64 | L58: 64 | M58: 64 | N58: 64 | O58: 64 | P58: 64 | Q58: 60 | R58: 64 | S58: 64 | T58: 64 | U58: 64 | V58: 60 | W58: 60 | X58: 64 | Y58: 64 | Z58: 64 | AA58: 64 | AB58: 64 | AC58: 60 | AD58: 64 | AE58: 68 | AF58: 72 | AG58: 68 | AH58: 72 | AI58: 72 | AJ58: 72 | AK58: 68 | AL58: 68 | AM58: 68 | AN58: 68 | AO58: 72 | AP58: 72 | AQ58: 72 | AR58: 68 | AS58: 72 | AT58: 72 | AU58: 72 | AV58: 68 | AW58: 72 | AX58: 72 | AY58: 72 | AZ58: 68 | BA58: 72 | BB58: 68 | BC58: 72 | BD58: 72 | BE58: 72 | BF58: 72 | BG58: 68 | BH58: 76 | BI58: 72 | BJ58: 72 | BK58: 76 | BL58: 72 | BM58: 76 | BN58: 72 | BO58: 76 | BP58: 76 | BQ58: 72 | BR58: 72 | BS58: 76 | BT58: 76 | BU58: 76 | BV58: 72 | BW58: 76 | BX58: 72 | BY58: 72 | BZ58: 76 | CA58: 76 | CB58: 76 | CC58: 76 | CD58: 72 | CE58: 76 | CF58: 72 | CG58: 72 | CH58: 60 | CI58: 64 | CJ58: 60 | CK58: 64 | CL58: 60 | CM58: 60 | CN58: 60 | CO58: 60 | CP58: 64 | CQ58: 60 | CR58: 60 | CS58: 60 | CW58: TOTALES0 EXCESOS + TP
A59: 2011-08-22 | B59: 64 | C59: 60 | D59: 68 | E59: 64 | F59: 64 | G59: 64 | H59: 64 | I59: 60 | J59: 64 | K59: 64 | L59: 64 | M59: 64 | N59: 64 | O59: 64 | P59: 60 | Q59: 64 | R59: 64 | S59: 64 | T59: 64 | U59: 64 | V59: 60 | W59: 64 | X59: 64 | Y59: 60 | Z59: 64 | AA59: 64 | AB59: 60 | AC59: 64 | AD59: 148 | AE59: 184 | AF59: 196 | AG59: 244 | AH59: 248 | AI59: 284 | AJ59: 312 | AK59: 340 | AL59: 352 | AM59: 372 | AN59: 368 | AO59: 372 | AP59: 380 | AQ59: 368 | AR59: 368 | AS59: 368 | AT59: 296 | AU59: 264 | AV59: 296 | AW59: 304 | AX59: 308 | AY59: 308 | AZ59: 316 | BA59: 328 | BB59: 328 | BC59: 332 | BD59: 308 | BE59: 292 | BF59: 280 | BG59: 280 | BH59: 276 | BI59: 268 | BJ59: 228 | BK59: 148 | BL59: 88 | BM59: 76 | BN59: 76 | BO59: 76 | BP59: 72 | BQ59: 76 | BR59: 72 | BS59: 76 | BT59: 76 | BU59: 76 | BV59: 76 | BW59: 72 | BX59: 76 | BY59: 76 | BZ59: 76 | CA59: 76 | CB59: 76 | CC59: 76 | CD59: 76 | CE59: 76 | CF59: 72 | CG59: 76 | CH59: 60 | CI59: 60 | CJ59: 60 | CK59: 60 | CL59: 64 | CM59: 60 | CN59: 60 | CO59: 60 | CP59: 64 | CQ59: 60 | CR59: 56 | CS59: 64 | CW59: ENERO | CX59: =DD22 -> 0 | DA59: =DD43 -> 1723.843202 | DD59: =CX59+DA59 -> 1723.843202
A60: 2011-08-23 | B60: 60 | C60: 68 | D60: 64 | E60: 64 | F60: 60 | G60: 64 | H60: 60 | I60: 68 | J60: 60 | K60: 64 | L60: 64 | M60: 60 | N60: 64 | O60: 64 | P60: 64 | Q60: 60 | R60: 60 | S60: 68 | T60: 60 | U60: 64 | V60: 64 | W60: 60 | X60: 64 | Y60: 60 | Z60: 60 | AA60: 64 | AB60: 68 | AC60: 64 | AD60: 148 | AE60: 172 | AF60: 192 | AG60: 232 | AH60: 248 | AI60: 296 | AJ60: 324 | AK60: 348 | AL60: 360 | AM60: 360 | AN60: 368 | AO60: 372 | AP60: 376 | AQ60: 372 | AR60: 372 | AS60: 364 | AT60: 296 | AU60: 240 | AV60: 276 | AW60: 308 | AX60: 320 | AY60: 324 | AZ60: 316 | BA60: 316 | BB60: 332 | BC60: 344 | BD60: 328 | BE60: 316 | BF60: 292 | BG60: 296 | BH60: 280 | BI60: 280 | BJ60: 220 | BK60: 148 | BL60: 80 | BM60: 76 | BN60: 72 | BO60: 72 | BP60: 72 | BQ60: 72 | BR60: 76 | BS60: 68 | BT60: 76 | BU60: 68 | BV60: 76 | BW60: 72 | BX60: 72 | BY60: 72 | BZ60: 72 | CA60: 76 | CB60: 68 | CC60: 76 | CD60: 68 | CE60: 68 | CF60: 72 | CG60: 64 | CH60: 60 | CI60: 56 | CJ60: 64 | CK60: 56 | CL60: 60 | CM60: 56 | CN60: 56 | CO60: 60 | CP60: 56 | CQ60: 64 | CR60: 56 | CS60: 60 | CW60: FEBRERO | CX60: =DD23 -> 53.33485487 | DA60: =DD44 -> 1723.843202 | DD60: =CX60+DA60 -> 1777.178057
A61: 2011-08-24 | B61: 56 | C61: 64 | D61: 60 | E61: 60 | F61: 64 | G61: 56 | H61: 64 | I61: 60 | J61: 64 | K61: 60 | L61: 60 | M61: 60 | N61: 64 | O61: 60 | P61: 60 | Q61: 60 | R61: 64 | S61: 60 | T61: 64 | U61: 56 | V61: 64 | W61: 56 | X61: 60 | Y61: 60 | Z61: 60 | AA61: 64 | AB61: 64 | AC61: 60 | AD61: 144 | AE61: 172 | AF61: 196 | AG61: 232 | AH61: 236 | AI61: 280 | AJ61: 328 | AK61: 352 | AL61: 372 | AM61: 372 | AN61: 368 | AO61: 368 | AP61: 368 | AQ61: 352 | AR61: 360 | AS61: 356 | AT61: 296 | AU61: 268 | AV61: 304 | AW61: 320 | AX61: 316 | AY61: 320 | AZ61: 328 | BA61: 336 | BB61: 328 | BC61: 332 | BD61: 332 | BE61: 324 | BF61: 300 | BG61: 292 | BH61: 280 | BI61: 272 | BJ61: 224 | BK61: 156 | BL61: 96 | BM61: 80 | BN61: 76 | BO61: 72 | BP61: 76 | BQ61: 72 | BR61: 76 | BS61: 72 | BT61: 76 | BU61: 72 | BV61: 76 | BW61: 80 | BX61: 72 | BY61: 76 | BZ61: 76 | CA61: 76 | CB61: 72 | CC61: 76 | CD61: 76 | CE61: 72 | CF61: 76 | CG61: 72 | CH61: 60 | CI61: 60 | CJ61: 60 | CK61: 60 | CL61: 56 | CM61: 64 | CN61: 56 | CO61: 60 | CP61: 60 | CQ61: 60 | CR61: 60 | CS61: 60 | CW61: MARZO | CX61: 0 | DA61: 1723.843202 | DD61: 1723.843202
A62: 2011-08-25 | B62: 64 | C62: 60 | D62: 64 | E62: 64 | F62: 64 | G62: 60 | H62: 64 | I62: 60 | J62: 64 | K62: 64 | L62: 60 | M62: 60 | N62: 64 | O62: 60 | P62: 64 | Q62: 60 | R62: 60 | S62: 64 | T62: 64 | U62: 60 | V62: 64 | W62: 56 | X62: 64 | Y62: 60 | Z62: 64 | AA62: 60 | AB62: 64 | AC62: 60 | AD62: 148 | AE62: 172 | AF62: 192 | AG62: 236 | AH62: 248 | AI62: 276 | AJ62: 320 | AK62: 332 | AL62: 360 | AM62: 352 | AN62: 368 | AO62: 372 | AP62: 372 | AQ62: 360 | AR62: 356 | AS62: 360 | AT62: 292 | AU62: 252 | AV62: 308 | AW62: 308 | AX62: 316 | AY62: 328 | AZ62: 320 | BA62: 320 | BB62: 316 | BC62: 324 | BD62: 316 | BE62: 312 | BF62: 292 | BG62: 284 | BH62: 276 | BI62: 276 | BJ62: 228 | BK62: 160 | BL62: 96 | BM62: 80 | BN62: 80 | BO62: 72 | BP62: 76 | BQ62: 76 | BR62: 76 | BS62: 76 | BT62: 76 | BU62: 76 | BV62: 76 | BW62: 76 | BX62: 72 | BY62: 76 | BZ62: 76 | CA62: 72 | CB62: 76 | CC62: 72 | CD62: 76 | CE62: 76 | CF62: 72 | CG62: 76 | CH62: 60 | CI62: 64 | CJ62: 60 | CK62: 60 | CL62: 56 | CM62: 60 | CN62: 64 | CO62: 64 | CP62: 60 | CQ62: 60 | CR62: 60 | CS62: 60 | CW62: ABRIL | CX62: 0 | DA62: 1723.843202 | DD62: 1723.843202
A63: 2011-08-26 | B63: 60 | C63: 64 | D63: 64 | E63: 68 | F63: 64 | G63: 64 | H63: 60 | I63: 64 | J63: 64 | K63: 64 | L63: 60 | M63: 64 | N63: 68 | O63: 64 | P63: 64 | Q63: 60 | R63: 64 | S63: 60 | T63: 64 | U63: 64 | V63: 64 | W63: 64 | X63: 64 | Y63: 64 | Z63: 64 | AA63: 60 | AB63: 64 | AC63: 60 | AD63: 148 | AE63: 172 | AF63: 200 | AG63: 224 | AH63: 248 | AI63: 292 | AJ63: 324 | AK63: 352 | AL63: 356 | AM63: 360 | AN63: 364 | AO63: 364 | AP63: 356 | AQ63: 348 | AR63: 348 | AS63: 344 | AT63: 284 | AU63: 260 | AV63: 280 | AW63: 296 | AX63: 300 | AY63: 300 | AZ63: 312 | BA63: 312 | BB63: 316 | BC63: 316 | BD63: 316 | BE63: 300 | BF63: 280 | BG63: 268 | BH63: 264 | BI63: 260 | BJ63: 212 | BK63: 148 | BL63: 88 | BM63: 72 | BN63: 76 | BO63: 72 | BP63: 76 | BQ63: 72 | BR63: 72 | BS63: 76 | BT63: 72 | BU63: 72 | BV63: 72 | BW63: 72 | BX63: 76 | BY63: 72 | BZ63: 76 | CA63: 76 | CB63: 76 | CC63: 72 | CD63: 76 | CE63: 72 | CF63: 72 | CG63: 72 | CH63: 60 | CI63: 60 | CJ63: 60 | CK63: 60 | CL63: 60 | CM63: 60 | CN63: 60 | CO63: 60 | CP63: 56 | CQ63: 60 | CR63: 60 | CS63: 60 | CW63: MAYO | CX63: 0 | DA63: 1723.843202 | DD63: 1723.843202
A64: 2011-08-27 | B64: 64 | C64: 64 | D64: 64 | E64: 60 | F64: 60 | G64: 64 | H64: 60 | I64: 64 | J64: 60 | K64: 64 | L64: 64 | M64: 64 | N64: 60 | O64: 60 | P64: 64 | Q64: 60 | R64: 64 | S64: 60 | T64: 60 | U64: 64 | V64: 60 | W64: 64 | X64: 60 | Y64: 60 | Z64: 64 | AA64: 60 | AB64: 60 | AC64: 64 | AD64: 64 | AE64: 68 | AF64: 64 | AG64: 72 | AH64: 68 | AI64: 72 | AJ64: 68 | AK64: 72 | AL64: 68 | AM64: 68 | AN64: 68 | AO64: 68 | AP64: 72 | AQ64: 68 | AR64: 72 | AS64: 68 | AT64: 72 | AU64: 72 | AV64: 72 | AW64: 68 | AX64: 72 | AY64: 68 | AZ64: 68 | BA64: 72 | BB64: 72 | BC64: 72 | BD64: 72 | BE64: 68 | BF64: 68 | BG64: 72 | BH64: 68 | BI64: 68 | BJ64: 68 | BK64: 76 | BL64: 76 | BM64: 72 | BN64: 72 | BO64: 72 | BP64: 76 | BQ64: 72 | BR64: 72 | BS64: 76 | BT64: 72 | BU64: 72 | BV64: 76 | BW64: 72 | BX64: 72 | BY64: 72 | BZ64: 72 | CA64: 72 | CB64: 72 | CC64: 72 | CD64: 72 | CE64: 72 | CF64: 76 | CG64: 68 | CH64: 56 | CI64: 60 | CJ64: 60 | CK64: 60 | CL64: 60 | CM64: 60 | CN64: 60 | CO64: 64 | CP64: 56 | CQ64: 60 | CR64: 56 | CS64: 60 | CW64: JUNIO | CX64: 0 | DA64: 1723.843202 | DD64: 1723.843202
A65: 2011-08-28 | B65: 60 | C65: 64 | D65: 64 | E65: 60 | F65: 60 | G65: 64 | H65: 64 | I65: 60 | J65: 64 | K65: 64 | L65: 60 | M65: 60 | N65: 64 | O65: 64 | P65: 60 | Q65: 60 | R65: 64 | S65: 60 | T65: 64 | U65: 64 | V65: 64 | W65: 60 | X65: 64 | Y65: 60 | Z65: 56 | AA65: 64 | AB65: 64 | AC65: 64 | AD65: 64 | AE65: 72 | AF65: 68 | AG65: 64 | AH65: 68 | AI65: 68 | AJ65: 68 | AK65: 72 | AL65: 68 | AM65: 72 | AN65: 68 | AO65: 68 | AP65: 72 | AQ65: 68 | AR65: 68 | AS65: 72 | AT65: 72 | AU65: 72 | AV65: 68 | AW65: 72 | AX65: 68 | AY65: 68 | AZ65: 72 | BA65: 72 | BB65: 72 | BC65: 68 | BD65: 72 | BE65: 72 | BF65: 72 | BG65: 68 | BH65: 72 | BI65: 68 | BJ65: 76 | BK65: 72 | BL65: 76 | BM65: 76 | BN65: 72 | BO65: 76 | BP65: 72 | BQ65: 76 | BR65: 72 | BS65: 76 | BT65: 72 | BU65: 72 | BV65: 76 | BW65: 72 | BX65: 76 | BY65: 72 | BZ65: 76 | CA65: 76 | CB65: 72 | CC65: 68 | CD65: 72 | CE65: 72 | CF65: 72 | CG65: 76 | CH65: 60 | CI65: 60 | CJ65: 56 | CK65: 60 | CL65: 60 | CM65: 60 | CN65: 60 | CO65: 60 | CP65: 56 | CQ65: 60 | CR65: 64 | CS65: 56 | CW65: JULIO | CX65: 0 | DA65: 1723.843202 | DD65: 1723.843202
A66: 2011-08-29 | B66: 64 | C66: 60 | D66: 64 | E66: 64 | F66: 64 | G66: 60 | H66: 64 | I66: 60 | J66: 64 | K66: 60 | L66: 64 | M66: 64 | N66: 60 | O66: 64 | P66: 60 | Q66: 64 | R66: 64 | S66: 60 | T66: 64 | U66: 60 | V66: 60 | W66: 60 | X66: 64 | Y66: 64 | Z66: 60 | AA66: 64 | AB66: 64 | AC66: 60 | AD66: 144 | AE66: 176 | AF66: 188 | AG66: 228 | AH66: 248 | AI66: 304 | AJ66: 332 | AK66: 344 | AL66: 352 | AM66: 348 | AN66: 356 | AO66: 340 | AP66: 348 | AQ66: 344 | AR66: 340 | AS66: 344 | AT66: 280 | AU66: 256 | AV66: 280 | AW66: 296 | AX66: 296 | AY66: 312 | AZ66: 320 | BA66: 312 | BB66: 316 | BC66: 320 | BD66: 316 | BE66: 300 | BF66: 288 | BG66: 284 | BH66: 280 | BI66: 272 | BJ66: 220 | BK66: 156 | BL66: 88 | BM66: 76 | BN66: 76 | BO66: 72 | BP66: 72 | BQ66: 72 | BR66: 68 | BS66: 72 | BT66: 76 | BU66: 72 | BV66: 72 | BW66: 72 | BX66: 72 | BY66: 72 | BZ66: 76 | CA66: 72 | CB66: 72 | CC66: 76 | CD66: 72 | CE66: 76 | CF66: 76 | CG66: 72 | CH66: 60 | CI66: 56 | CJ66: 60 | CK66: 60 | CL66: 60 | CM66: 56 | CN66: 60 | CO66: 60 | CP66: 60 | CQ66: 60 | CR66: 60 | CS66: 60 | CW66: AGOSTO | CX66: 0 | DA66: 1723.843202 | DD66: 1723.843202
A67: 2011-08-30 | B67: 60 | C67: 64 | D67: 60 | E67: 64 | F67: 64 | G67: 60 | H67: 60 | I67: 64 | J67: 64 | K67: 60 | L67: 64 | M67: 64 | N67: 60 | O67: 60 | P67: 60 | Q67: 60 | R67: 64 | S67: 64 | T67: 60 | U67: 64 | V67: 64 | W67: 60 | X67: 60 | Y67: 60 | Z67: 64 | AA67: 60 | AB67: 60 | AC67: 64 | AD67: 144 | AE67: 180 | AF67: 188 | AG67: 228 | AH67: 256 | AI67: 280 | AJ67: 308 | AK67: 328 | AL67: 344 | AM67: 340 | AN67: 340 | AO67: 340 | AP67: 336 | AQ67: 340 | AR67: 340 | AS67: 340 | AT67: 288 | AU67: 256 | AV67: 284 | AW67: 292 | AX67: 304 | AY67: 324 | AZ67: 328 | BA67: 336 | BB67: 336 | BC67: 332 | BD67: 332 | BE67: 320 | BF67: 304 | BG67: 296 | BH67: 284 | BI67: 276 | BJ67: 216 | BK67: 156 | BL67: 88 | BM67: 76 | BN67: 76 | BO67: 72 | BP67: 72 | BQ67: 76 | BR67: 72 | BS67: 76 | BT67: 72 | BU67: 76 | BV67: 76 | BW67: 76 | BX67: 72 | BY67: 76 | BZ67: 76 | CA67: 76 | CB67: 76 | CC67: 76 | CD67: 76 | CE67: 72 | CF67: 72 | CG67: 76 | CH67: 60 | CI67: 60 | CJ67: 60 | CK67: 60 | CL67: 60 | CM67: 64 | CN67: 60 | CO67: 60 | CP67: 64 | CQ67: 60 | CR67: 60 | CS67: 60 | CW67: SEPTIEMBRE | CX67: 0 | DA67: 1723.843202 | DD67: 1723.843202
A68: 2011-08-31 | B68: 60 | C68: 64 | D68: 64 | E68: 64 | F68: 60 | G68: 64 | H68: 64 | I68: 64 | J68: 64 | K68: 64 | L68: 64 | M68: 64 | N68: 64 | O68: 60 | P68: 64 | Q68: 60 | R68: 64 | S68: 60 | T68: 64 | U68: 64 | V68: 64 | W68: 60 | X68: 64 | Y68: 60 | Z68: 60 | AA68: 64 | AB68: 64 | AC68: 64 | AD68: 152 | AE68: 176 | AF68: 180 | AG68: 208 | AH68: 228 | AI68: 280 | AJ68: 316 | AK68: 336 | AL68: 336 | AM68: 348 | AN68: 344 | AO68: 348 | AP68: 356 | AQ68: 352 | AR68: 344 | AS68: 348 | AT68: 288 | AU68: 248 | AV68: 284 | AW68: 288 | AX68: 316 | AY68: 308 | AZ68: 312 | BA68: 316 | BB68: 332 | BC68: 332 | BD68: 328 | BE68: 324 | BF68: 296 | BG68: 296 | BH68: 288 | BI68: 280 | BJ68: 220 | BK68: 152 | BL68: 96 | BM68: 72 | BN68: 72 | BO68: 72 | BP68: 76 | BQ68: 72 | BR68: 72 | BS68: 72 | BT68: 72 | BU68: 76 | BV68: 72 | BW68: 72 | BX68: 76 | BY68: 72 | BZ68: 76 | CA68: 76 | CB68: 76 | CC68: 72 | CD68: 76 | CE68: 72 | CF68: 76 | CG68: 72 | CH68: 64 | CI68: 56 | CJ68: 64 | CK68: 56 | CL68: 60 | CM68: 60 | CN68: 64 | CO68: 56 | CP68: 64 | CQ68: 60 | CR68: 60 | CS68: 56 | CW68: OCTUBRE | CX68: 0 | DA68: 1723.843202 | DD68: 1723.843202
A69: 2011-09-01 | B69: 64 | C69: 60 | D69: 64 | E69: 64 | F69: 60 | G69: 64 | H69: 56 | I69: 64 | J69: 64 | K69: 68 | L69: 60 | M69: 68 | N69: 56 | O69: 64 | P69: 64 | Q69: 64 | R69: 56 | S69: 64 | T69: 64 | U69: 60 | V69: 64 | W69: 60 | X69: 64 | Y69: 60 | Z69: 60 | AA69: 64 | AB69: 64 | AC69: 64 | AD69: 148 | AE69: 180 | AF69: 192 | AG69: 224 | AH69: 248 | AI69: 288 | AJ69: 328 | AK69: 360 | AL69: 364 | AM69: 364 | AN69: 360 | AO69: 368 | AP69: 364 | AQ69: 356 | AR69: 360 | AS69: 352 | AT69: 296 | AU69: 236 | AV69: 256 | AW69: 276 | AX69: 300 | AY69: 332 | AZ69: 328 | BA69: 332 | BB69: 332 | BC69: 344 | BD69: 348 | BE69: 340 | BF69: 324 | BG69: 312 | BH69: 304 | BI69: 292 | BJ69: 228 | BK69: 148 | BL69: 84 | BM69: 76 | BN69: 76 | BO69: 68 | BP69: 76 | BQ69: 68 | BR69: 80 | BS69: 72 | BT69: 76 | BU69: 68 | BV69: 76 | BW69: 72 | BX69: 72 | BY69: 72 | BZ69: 76 | CA69: 72 | CB69: 72 | CC69: 72 | CD69: 68 | CE69: 72 | CF69: 68 | CG69: 72 | CH69: 56 | CI69: 64 | CJ69: 56 | CK69: 60 | CL69: 64 | CM69: 56 | CN69: 60 | CO69: 60 | CP69: 60 | CQ69: 56 | CR69: 60 | CS69: 60 | CW69: NOVIEMBRE | CX69: 0 | DA69: 1723.843202 | DD69: 1723.843202
A70: 2011-09-02 | B70: 60 | C70: 60 | D70: 64 | E70: 68 | F70: 60 | G70: 64 | H70: 60 | I70: 64 | J70: 60 | K70: 64 | L70: 60 | M70: 60 | N70: 64 | O70: 64 | P70: 64 | Q70: 60 | R70: 68 | S70: 60 | T70: 64 | U70: 60 | V70: 60 | W70: 60 | X70: 64 | Y70: 60 | Z70: 64 | AA70: 60 | AB70: 60 | AC70: 64 | AD70: 140 | AE70: 176 | AF70: 196 | AG70: 240 | AH70: 252 | AI70: 304 | AJ70: 336 | AK70: 364 | AL70: 368 | AM70: 376 | AN70: 372 | AO70: 368 | AP70: 368 | AQ70: 356 | AR70: 348 | AS70: 344 | AT70: 288 | AU70: 240 | AV70: 264 | AW70: 276 | AX70: 296 | AY70: 300 | AZ70: 304 | BA70: 300 | BB70: 296 | BC70: 300 | BD70: 288 | BE70: 276 | BF70: 260 | BG70: 248 | BH70: 236 | BI70: 244 | BJ70: 192 | BK70: 144 | BL70: 84 | BM70: 76 | BN70: 68 | BO70: 72 | BP70: 72 | BQ70: 68 | BR70: 76 | BS70: 68 | BT70: 68 | BU70: 72 | BV70: 72 | BW70: 72 | BX70: 68 | BY70: 72 | BZ70: 68 | CA70: 72 | CB70: 72 | CC70: 68 | CD70: 72 | CE70: 68 | CF70: 68 | CG70: 72 | CH70: 52 | CI70: 60 | CJ70: 56 | CK70: 60 | CL70: 56 | CM70: 56 | CN70: 60 | CO70: 60 | CP70: 56 | CQ70: 56 | CR70: 56 | CS70: 60 | CW70: DICIEMBRE | CX70: 0 | DA70: 1723.843202 | DD70: 1723.843202
A71: 2011-09-03 | B71: 56 | C71: 64 | D71: 60 | E71: 60 | F71: 60 | G71: 56 | H71: 64 | I71: 60 | J71: 60 | K71: 60 | L71: 60 | M71: 60 | N71: 56 | O71: 64 | P71: 60 | Q71: 64 | R71: 56 | S71: 60 | T71: 60 | U71: 64 | V71: 60 | W71: 56 | X71: 64 | Y71: 56 | Z71: 64 | AA71: 56 | AB71: 64 | AC71: 56 | AD71: 60 | AE71: 72 | AF71: 64 | AG71: 68 | AH71: 64 | AI71: 68 | AJ71: 64 | AK71: 68 | AL71: 64 | AM71: 64 | AN71: 68 | AO71: 64 | AP71: 68 | AQ71: 64 | AR71: 64 | AS71: 68 | AT71: 64 | AU71: 72 | AV71: 60 | AW71: 68 | AX71: 64 | AY71: 64 | AZ71: 68 | BA71: 64 | BB71: 68 | BC71: 64 | BD71: 64 | BE71: 68 | BF71: 64 | BG71: 68 | BH71: 64 | BI71: 68 | BJ71: 64 | BK71: 68 | BL71: 76 | BM71: 68 | BN71: 72 | BO71: 68 | BP71: 68 | BQ71: 68 | BR71: 64 | BS71: 72 | BT71: 68 | BU71: 68 | BV71: 68 | BW71: 64 | BX71: 72 | BY71: 68 | BZ71: 72 | CA71: 68 | CB71: 68 | CC71: 76 | CD71: 68 | CE71: 68 | CF71: 68 | CG71: 68 | CH71: 60 | CI71: 52 | CJ71: 60 | CK71: 56 | CL71: 56 | CM71: 60 | CN71: 52 | CO71: 60 | CP71: 56 | CQ71: 60 | CR71: 56 | CS71: 56 | DD71: =SUM(DD59:DD70) -> 20739.45328
A72: 2011-09-04 | B72: 60 | C72: 60 | D72: 60 | E72: 64 | F72: 56 | G72: 64 | H72: 56 | I72: 64 | J72: 60 | K72: 60 | L72: 60 | M72: 56 | N72: 64 | O72: 56 | P72: 60 | Q72: 64 | R72: 56 | S72: 60 | T72: 60 | U72: 60 | V72: 60 | W72: 60 | X72: 60 | Y72: 60 | Z72: 56 | AA72: 64 | AB72: 60 | AC72: 60 | AD72: 60 | AE72: 68 | AF72: 72 | AG72: 64 | AH72: 64 | AI72: 68 | AJ72: 64 | AK72: 68 | AL72: 64 | AM72: 68 | AN72: 64 | AO72: 64 | AP72: 68 | AQ72: 64 | AR72: 72 | AS72: 64 | AT72: 68 | AU72: 64 | AV72: 68 | AW72: 64 | AX72: 64 | AY72: 68 | AZ72: 60 | BA72: 64 | BB72: 68 | BC72: 64 | BD72: 68 | BE72: 60 | BF72: 68 | BG72: 60 | BH72: 68 | BI72: 64 | BJ72: 64 | BK72: 72 | BL72: 68 | BM72: 68 | BN72: 68 | BO72: 68 | BP72: 64 | BQ72: 68 | BR72: 72 | BS72: 68 | BT72: 68 | BU72: 64 | BV72: 72 | BW72: 68 | BX72: 68 | BY72: 68 | BZ72: 68 | CA72: 72 | CB72: 68 | CC72: 64 | CD72: 68 | CE72: 64 | CF72: 68 | CG72: 68 | CH72: 56 | CI72: 64 | CJ72: 56 | CK72: 60 | CL72: 56 | CM72: 56 | CN72: 60 | CO72: 56 | CP72: 60 | CQ72: 52 | CR72: 60 | CS72: 60
A73: 2011-09-05 | B73: 60 | C73: 60 | D73: 60 | E73: 60 | F73: 64 | G73: 56 | H73: 64 | I73: 56 | J73: 60 | K73: 60 | L73: 60 | M73: 64 | N73: 64 | O73: 60 | P73: 64 | Q73: 56 | R73: 64 | S73: 56 | T73: 64 | U73: 60 | V73: 56 | W73: 64 | X73: 56 | Y73: 64 | Z73: 60 | AA73: 60 | AB73: 60 | AC73: 60 | AD73: 144 | AE73: 176 | AF73: 188 | AG73: 224 | AH73: 224 | AI73: 268 | AJ73: 292 | AK73: 320 | AL73: 336 | AM73: 332 | AN73: 336 | AO73: 328 | AP73: 344 | AQ73: 336 | AR73: 348 | AS73: 344 | AT73: 280 | AU73: 228 | AV73: 260 | AW73: 288 | AX73: 296 | AY73: 316 | AZ73: 320 | BA73: 320 | BB73: 336 | BC73: 328 | BD73: 324 | BE73: 320 | BF73: 316 | BG73: 300 | BH73: 296 | BI73: 284 | BJ73: 232 | BK73: 156 | BL73: 92 | BM73: 80 | BN73: 80 | BO73: 84 | BP73: 76 | BQ73: 84 | BR73: 76 | BS73: 80 | BT73: 80 | BU73: 80 | BV73: 80 | BW73: 80 | BX73: 80 | BY73: 80 | BZ73: 84 | CA73: 76 | CB73: 80 | CC73: 80 | CD73: 80 | CE73: 80 | CF73: 76 | CG73: 76 | CH73: 64 | CI73: 64 | CJ73: 68 | CK73: 68 | CL73: 60 | CM73: 64 | CN73: 60 | CO73: 60 | CP73: 60 | CQ73: 60 | CR73: 60 | CS73: 60
A74: 2011-09-06 | B74: 60 | C74: 64 | D74: 64 | E74: 68 | F74: 56 | G74: 64 | H74: 64 | I74: 64 | J74: 60 | K74: 60 | L74: 64 | M74: 64 | N74: 64 | O74: 64 | P74: 64 | Q74: 64 | R74: 60 | S74: 64 | T74: 60 | U74: 64 | V74: 64 | W74: 60 | X74: 68 | Y74: 56 | Z74: 64 | AA74: 60 | AB74: 60 | AC74: 64 | AD74: 148 | AE74: 176 | AF74: 192 | AG74: 236 | AH74: 252 | AI74: 296 | AJ74: 348 | AK74: 356 | AL74: 356 | AM74: 360 | AN74: 348 | AO74: 360 | AP74: 360 | AQ74: 364 | AR74: 364 | AS74: 364 | AT74: 300 | AU74: 240 | AV74: 280 | AW74: 312 | AX74: 324 | AY74: 348 | AZ74: 348 | BA74: 352 | BB74: 352 | BC74: 348 | BD74: 340 | BE74: 340 | BF74: 324 | BG74: 324 | BH74: 296 | BI74: 292 | BJ74: 224 | BK74: 152 | BL74: 88 | BM74: 72 | BN74: 76 | BO74: 68 | BP74: 72 | BQ74: 76 | BR74: 76 | BS74: 72 | BT74: 72 | BU74: 72 | BV74: 76 | BW74: 72 | BX74: 76 | BY74: 72 | BZ74: 76 | CA74: 72 | CB74: 76 | CC74: 68 | CD74: 72 | CE74: 76 | CF74: 68 | CG74: 72 | CH74: 56 | CI74: 60 | CJ74: 60 | CK74: 56 | CL74: 60 | CM74: 56 | CN74: 64 | CO74: 56 | CP74: 64 | CQ74: 56 | CR74: 60 | CS74: 56
A75: 2011-09-07 | B75: 60 | C75: 64 | D75: 56 | E75: 64 | F75: 60 | G75: 64 | H75: 64 | I75: 60 | J75: 64 | K75: 60 | L75: 64 | M75: 60 | N75: 60 | O75: 64 | P75: 60 | Q75: 64 | R75: 56 | S75: 64 | T75: 60 | U75: 60 | V75: 60 | W75: 64 | X75: 64 | Y75: 56 | Z75: 64 | AA75: 56 | AB75: 64 | AC75: 60 | AD75: 144 | AE75: 180 | AF75: 188 | AG75: 236 | AH75: 240 | AI75: 284 | AJ75: 320 | AK75: 324 | AL75: 340 | AM75: 344 | AN75: 340 | AO75: 340 | AP75: 352 | AQ75: 332 | AR75: 344 | AS75: 328 | AT75: 288 | AU75: 272 | AV75: 268 | AW75: 308 | AX75: 312 | AY75: 332 | AZ75: 332 | BA75: 344 | BB75: 340 | BC75: 340 | BD75: 348 | BE75: 320 | BF75: 320 | BG75: 300 | BH75: 304 | BI75: 284 | BJ75: 228 | BK75: 152 | BL75: 92 | BM75: 76 | BN75: 76 | BO75: 72 | BP75: 68 | BQ75: 76 | BR75: 68 | BS75: 72 | BT75: 72 | BU75: 72 | BV75: 72 | BW75: 76 | BX75: 68 | BY75: 72 | BZ75: 72 | CA75: 72 | CB75: 76 | CC75: 72 | CD75: 80 | CE75: 68 | CF75: 72 | CG75: 68 | CH75: 60 | CI75: 60 | CJ75: 60 | CK75: 60 | CL75: 60 | CM75: 60 | CN75: 60 | CO75: 60 | CP75: 56 | CQ75: 56 | CR75: 60 | CS75: 56
A76: 2011-09-08 | B76: 64 | C76: 64 | D76: 64 | E76: 68 | F76: 64 | G76: 64 | H76: 60 | I76: 64 | J76: 64 | K76: 60 | L76: 64 | M76: 64 | N76: 64 | O76: 64 | P76: 60 | Q76: 64 | R76: 68 | S76: 64 | T76: 64 | U76: 60 | V76: 64 | W76: 64 | X76: 60 | Y76: 64 | Z76: 64 | AA76: 60 | AB76: 64 | AC76: 60 | AD76: 156 | AE76: 188 | AF76: 204 | AG76: 236 | AH76: 244 | AI76: 268 | AJ76: 316 | AK76: 320 | AL76: 332 | AM76: 332 | AN76: 328 | AO76: 320 | AP76: 336 | AQ76: 340 | AR76: 332 | AS76: 332 | AT76: 288 | AU76: 228 | AV76: 284 | AW76: 312 | AX76: 332 | AY76: 348 | AZ76: 348 | BA76: 348 | BB76: 356 | BC76: 348 | BD76: 336 | BE76: 332 | BF76: 316 | BG76: 304 | BH76: 300 | BI76: 288 | BJ76: 224 | BK76: 148 | BL76: 84 | BM76: 76 | BN76: 80 | BO76: 76 | BP76: 80 | BQ76: 76 | BR76: 72 | BS76: 72 | BT76: 76 | BU76: 84 | BV76: 76 | BW76: 72 | BX76: 76 | BY76: 76 | BZ76: 76 | CA76: 76 | CB76: 72 | CC76: 72 | CD76: 68 | CE76: 72 | CF76: 72 | CG76: 68 | CH76: 60 | CI76: 60 | CJ76: 60 | CK76: 60 | CL76: 64 | CM76: 56 | CN76: 60 | CO76: 60 | CP76: 60 | CQ76: 64 | CR76: 60 | CS76: 64
A77: 2011-09-09 | B77: 60 | C77: 60 | D77: 64 | E77: 64 | F77: 60 | G77: 64 | H77: 64 | I77: 60 | J77: 64 | K77: 64 | L77: 64 | M77: 64 | N77: 60 | O77: 64 | P77: 64 | Q77: 64 | R77: 64 | S77: 60 | T77: 64 | U77: 64 | V77: 60 | W77: 64 | X77: 64 | Y77: 60 | Z77: 60 | AA77: 64 | AB77: 64 | AC77: 60 | AD77: 156 | AE77: 180 | AF77: 196 | AG77: 220 | AH77: 228 | AI77: 256 | AJ77: 288 | AK77: 308 | AL77: 312 | AM77: 308 | AN77: 312 | AO77: 324 | AP77: 332 | AQ77: 328 | AR77: 328 | AS77: 328 | AT77: 280 | AU77: 244 | AV77: 280 | AW77: 284 | AX77: 300 | AY77: 312 | AZ77: 320 | BA77: 320 | BB77: 320 | BC77: 320 | BD77: 332 | BE77: 316 | BF77: 296 | BG77: 292 | BH77: 276 | BI77: 264 | BJ77: 212 | BK77: 148 | BL77: 88 | BM77: 76 | BN77: 76 | BO77: 76 | BP77: 72 | BQ77: 76 | BR77: 72 | BS77: 76 | BT77: 76 | BU77: 80 | BV77: 76 | BW77: 80 | BX77: 80 | BY77: 80 | BZ77: 76 | CA77: 80 | CB77: 76 | CC77: 80 | CD77: 76 | CE77: 68 | CF77: 72 | CG77: 72 | CH77: 60 | CI77: 60 | CJ77: 60 | CK77: 64 | CL77: 60 | CM77: 60 | CN77: 60 | CO77: 64 | CP77: 60 | CQ77: 60 | CR77: 60 | CS77: 60
A78: 2011-09-10 | B78: 64 | C78: 64 | D78: 64 | E78: 64 | F78: 64 | G78: 64 | H78: 64 | I78: 64 | J78: 60 | K78: 68 | L78: 60 | M78: 60 | N78: 68 | O78: 64 | P78: 60 | Q78: 64 | R78: 64 | S78: 60 | T78: 68 | U78: 60 | V78: 64 | W78: 64 | X78: 60 | Y78: 64 | Z78: 64 | AA78: 60 | AB78: 64 | AC78: 60 | AD78: 68 | AE78: 72 | AF78: 68 | AG78: 72 | AH78: 68 | AI78: 68 | AJ78: 68 | AK78: 68 | AL78: 72 | AM78: 72 | AN78: 68 | AO78: 68 | AP78: 68 | AQ78: 72 | AR78: 64 | AS78: 72 | AT78: 68 | AU78: 68 | AV78: 68 | AW78: 68 | AX78: 68 | AY78: 68 | AZ78: 68 | BA78: 64 | BB78: 68 | BC78: 68 | BD78: 68 | BE78: 68 | BF78: 72 | BG78: 68 | BH78: 68 | BI78: 68 | BJ78: 72 | BK78: 72 | BL78: 72 | BM78: 72 | BN78: 72 | BO78: 72 | BP78: 76 | BQ78: 72 | BR78: 72 | BS78: 68 | BT78: 72 | BU78: 68 | BV78: 72 | BW78: 72 | BX78: 72 | BY78: 72 | BZ78: 72 | CA78: 76 | CB78: 72 | CC78: 72 | CD78: 68 | CE78: 72 | CF78: 68 | CG78: 72 | CH78: 60 | CI78: 60 | CJ78: 60 | CK78: 60 | CL78: 60 | CM78: 60 | CN78: 60 | CO78: 60 | CP78: 64 | CQ78: 60 | CR78: 60 | CS78: 64
A79: 2011-09-11 | B79: 60 | C79: 64 | D79: 64 | E79: 64 | F79: 64 | G79: 60 | H79: 64 | I79: 64 | J79: 64 | K79: 64 | L79: 60 | M79: 64 | N79: 64 | O79: 60 | P79: 64 | Q79: 64 | R79: 64 | S79: 64 | T79: 60 | U79: 64 | V79: 64 | W79: 64 | X79: 64 | Y79: 60 | Z79: 64 | AA79: 60 | AB79: 64 | AC79: 64 | AD79: 68 | AE79: 72 | AF79: 68 | AG79: 72 | AH79: 68 | AI79: 68 | AJ79: 68 | AK79: 72 | AL79: 68 | AM79: 72 | AN79: 68 | AO79: 68 | AP79: 68 | AQ79: 68 | AR79: 68 | AS79: 72 | AT79: 72 | AU79: 68 | AV79: 68 | AW79: 68 | AX79: 68 | AY79: 68 | AZ79: 72 | BA79: 68 | BB79: 68 | BC79: 68 | BD79: 68 | BE79: 68 | BF79: 68 | BG79: 64 | BH79: 68 | BI79: 68 | BJ79: 68 | BK79: 76 | BL79: 68 | BM79: 72 | BN79: 72 | BO79: 72 | BP79: 68 | BQ79: 76 | BR79: 68 | BS79: 72 | BT79: 72 | BU79: 72 | BV79: 72 | BW79: 68 | BX79: 68 | BY79: 72 | BZ79: 68 | CA79: 72 | CB79: 76 | CC79: 72 | CD79: 72 | CE79: 72 | CF79: 68 | CG79: 68 | CH79: 60 | CI79: 64 | CJ79: 60 | CK79: 60 | CL79: 60 | CM79: 60 | CN79: 60 | CO79: 60 | CP79: 64 | CQ79: 64 | CR79: 60 | CS79: 60
A80: 2011-09-12 | B80: 60 | C80: 64 | D80: 64 | E80: 64 | F80: 64 | G80: 60 | H80: 64 | I80: 64 | J80: 68 | K80: 64 | L80: 64 | M80: 68 | N80: 64 | O80: 60 | P80: 64 | Q80: 64 | R80: 64 | S80: 64 | T80: 60 | U80: 64 | V80: 64 | W80: 60 | X80: 68 | Y80: 64 | Z80: 60 | AA80: 64 | AB80: 64 | AC80: 60 | AD80: 156 | AE80: 184 | AF80: 204 | AG80: 240 | AH80: 248 | AI80: 288 | AJ80: 328 | AK80: 344 | AL80: 352 | AM80: 352 | AN80: 344 | AO80: 352 | AP80: 360 | AQ80: 368 | AR80: 360 | AS80: 360 | AT80: 300 | AU80: 252 | AV80: 288 | AW80: 316 | AX80: 336 | AY80: 364 | AZ80: 364 | BA80: 368 | BB80: 368 | BC80: 364 | BD80: 364 | BE80: 356 | BF80: 344 | BG80: 332 | BH80: 324 | BI80: 320 | BJ80: 240 | BK80: 148 | BL80: 92 | BM80: 76 | BN80: 72 | BO80: 72 | BP80: 76 | BQ80: 76 | BR80: 72 | BS80: 76 | BT80: 76 | BU80: 76 | BV80: 76 | BW80: 76 | BX80: 76 | BY80: 76 | BZ80: 76 | CA80: 76 | CB80: 72 | CC80: 76 | CD80: 72 | CE80: 72 | CF80: 68 | CG80: 72 | CH80: 60 | CI80: 56 | CJ80: 64 | CK80: 56 | CL80: 60 | CM80: 64 | CN80: 60 | CO80: 60 | CP80: 60 | CQ80: 64 | CR80: 60 | CS80: 60
A81: 2011-09-13 | B81: 60 | C81: 64 | D81: 64 | E81: 64 | F81: 64 | G81: 60 | H81: 64 | I81: 64 | J81: 64 | K81: 64 | L81: 64 | M81: 60 | N81: 60 | O81: 64 | P81: 64 | Q81: 64 | R81: 64 | S81: 64 | T81: 64 | U81: 60 | V81: 64 | W81: 60 | X81: 64 | Y81: 64 | Z81: 60 | AA81: 64 | AB81: 64 | AC81: 64 | AD81: 156 | AE81: 184 | AF81: 204 | AG81: 252 | AH81: 248 | AI81: 280 | AJ81: 328 | AK81: 360 | AL81: 360 | AM81: 364 | AN81: 356 | AO81: 360 | AP81: 360 | AQ81: 372 | AR81: 348 | AS81: 348 | AT81: 300 | AU81: 264 | AV81: 300 | AW81: 324 | AX81: 344 | AY81: 356 | AZ81: 352 | BA81: 356 | BB81: 356 | BC81: 344 | BD81: 348 | BE81: 336 | BF81: 328 | BG81: 312 | BH81: 308 | BI81: 296 | BJ81: 228 | BK81: 144 | BL81: 84 | BM81: 76 | BN81: 72 | BO81: 76 | BP81: 72 | BQ81: 76 | BR81: 72 | BS81: 72 | BT81: 76 | BU81: 76 | BV81: 72 | BW81: 72 | BX81: 76 | BY81: 76 | BZ81: 72 | CA81: 76 | CB81: 72 | CC81: 72 | CD81: 68 | CE81: 64 | CF81: 68 | CG81: 64 | CH81: 64 | CI81: 60 | CJ81: 60 | CK81: 56 | CL81: 60 | CM81: 60 | CN81: 60 | CO81: 56 | CP81: 60 | CQ81: 60 | CR81: 60 | CS81: 60
A82: 2011-09-14 | B82: 60 | C82: 60 | D82: 60 | E82: 64 | F82: 60 | G82: 64 | H82: 60 | I82: 64 | J82: 60 | K82: 64 | L82: 64 | M82: 60 | N82: 60 | O82: 60 | P82: 64 | Q82: 60 | R82: 64 | S82: 60 | T82: 60 | U82: 64 | V82: 60 | W82: 64 | X82: 60 | Y82: 60 | Z82: 64 | AA82: 60 | AB82: 64 | AC82: 64 | AD82: 152 | AE82: 180 | AF82: 204 | AG82: 224 | AH82: 244 | AI82: 272 | AJ82: 320 | AK82: 340 | AL82: 344 | AM82: 348 | AN82: 344 | AO82: 348 | AP82: 348 | AQ82: 360 | AR82: 340 | AS82: 344 | AT82: 300 | AU82: 252 | AV82: 292 | AW82: 312 | AX82: 332 | AY82: 332 | AZ82: 340 | BA82: 336 | BB82: 344 | BC82: 340 | BD82: 340 | BE82: 328 | BF82: 324 | BG82: 316 | BH82: 300 | BI82: 296 | BJ82: 232 | BK82: 152 | BL82: 96 | BM82: 84 | BN82: 76 | BO82: 76 | BP82: 76 | BQ82: 76 | BR82: 76 | BS82: 76 | BT82: 76 | BU82: 88 | BV82: 80 | BW82: 84 | BX82: 80 | BY82: 84 | BZ82: 76 | CA82: 76 | CB82: 76 | CC82: 80 | CD82: 72 | CE82: 72 | CF82: 68 | CG82: 68 | CH82: 60 | CI82: 64 | CJ82: 60 | CK82: 60 | CL82: 64 | CM82: 64 | CN82: 60 | CO82: 60 | CP82: 60 | CQ82: 64 | CR82: 60 | CS82: 60
A83: 2011-09-15 | B83: 60 | C83: 64 | D83: 64 | E83: 64 | F83: 64 | G83: 68 | H83: 64 | I83: 64 | J83: 64 | K83: 60 | L83: 68 | M83: 60 | N83: 64 | O83: 64 | P83: 60 | Q83: 64 | R83: 64 | S83: 60 | T83: 64 | U83: 64 | V83: 64 | W83: 60 | X83: 64 | Y83: 60 | Z83: 64 | AA83: 64 | AB83: 64 | AC83: 68 | AD83: 160 | AE83: 184 | AF83: 200 | AG83: 248 | AH83: 252 | AI83: 268 | AJ83: 332 | AK83: 352 | AL83: 360 | AM83: 360 | AN83: 352 | AO83: 356 | AP83: 364 | AQ83: 360 | AR83: 360 | AS83: 356 | AT83: 308 | AU83: 252 | AV83: 300 | AW83: 308 | AX83: 348 | AY83: 348 | AZ83: 356 | BA83: 348 | BB83: 364 | BC83: 356 | BD83: 352 | BE83: 344 | BF83: 328 | BG83: 316 | BH83: 312 | BI83: 296 | BJ83: 236 | BK83: 156 | BL83: 88 | BM83: 76 | BN83: 72 | BO83: 80 | BP83: 68 | BQ83: 76 | BR83: 68 | BS83: 80 | BT83: 72 | BU83: 72 | BV83: 68 | BW83: 68 | BX83: 72 | BY83: 68 | BZ83: 76 | CA83: 68 | CB83: 72 | CC83: 68 | CD83: 68 | CE83: 68 | CF83: 60 | CG83: 68 | CH83: 60 | CI83: 60 | CJ83: 56 | CK83: 60 | CL83: 64 | CM83: 56 | CN83: 60 | CO83: 56 | CP83: 60 | CQ83: 56 | CR83: 60 | CS83: 60
A84: 2011-09-16 | B84: 60 | C84: 64 | D84: 60 | E84: 64 | F84: 60 | G84: 60 | H84: 64 | I84: 60 | J84: 64 | K84: 60 | L84: 60 | M84: 68 | N84: 60 | O84: 64 | P84: 60 | Q84: 60 | R84: 64 | S84: 60 | T84: 64 | U84: 60 | V84: 60 | W84: 64 | X84: 56 | Y84: 64 | Z84: 60 | AA84: 60 | AB84: 64 | AC84: 64 | AD84: 168 | AE84: 216 | AF84: 232 | AG84: 260 | AH84: 256 | AI84: 272 | AJ84: 328 | AK84: 340 | AL84: 352 | AM84: 352 | AN84: 356 | AO84: 356 | AP84: 352 | AQ84: 352 | AR84: 348 | AS84: 352 | AT84: 292 | AU84: 248 | AV84: 268 | AW84: 296 | AX84: 300 | AY84: 320 | AZ84: 324 | BA84: 320 | BB84: 328 | BC84: 320 | BD84: 328 | BE84: 328 | BF84: 332 | BG84: 320 | BH84: 316 | BI84: 300 | BJ84: 240 | BK84: 156 | BL84: 96 | BM84: 80 | BN84: 76 | BO84: 84 | BP84: 76 | BQ84: 80 | BR84: 76 | BS84: 76 | BT84: 68 | BU84: 76 | BV84: 76 | BW84: 72 | BX84: 76 | BY84: 72 | BZ84: 76 | CA84: 76 | CB84: 72 | CC84: 76 | CD84: 68 | CE84: 72 | CF84: 68 | CG84: 68 | CH84: 60 | CI84: 60 | CJ84: 56 | CK84: 60 | CL84: 56 | CM84: 56 | CN84: 56 | CO84: 60 | CP84: 56 | CQ84: 52 | CR84: 64 | CS84: 56
A85: 2011-09-17 | B85: 60 | C85: 60 | D85: 60 | E85: 60 | F85: 60 | G85: 60 | H85: 60 | I85: 56 | J85: 64 | K85: 56 | L85: 60 | M85: 60 | N85: 56 | O85: 64 | P85: 60 | Q85: 60 | R85: 64 | S85: 56 | T85: 64 | U85: 56 | V85: 60 | W85: 60 | X85: 56 | Y85: 64 | Z85: 56 | AA85: 56 | AB85: 64 | AC85: 56 | AD85: 64 | AE85: 68 | AF85: 64 | AG85: 68 | AH85: 64 | AI85: 64 | AJ85: 68 | AK85: 60 | AL85: 68 | AM85: 64 | AN85: 64 | AO85: 64 | AP85: 64 | AQ85: 64 | AR85: 64 | AS85: 64 | AT85: 68 | AU85: 64 | AV85: 64 | AW85: 64 | AX85: 64 | AY85: 64 | AZ85: 64 | BA85: 64 | BB85: 64 | BC85: 72 | BD85: 64 | BE85: 68 | BF85: 64 | BG85: 64 | BH85: 64 | BI85: 64 | BJ85: 72 | BK85: 68 | BL85: 68 | BM85: 72 | BN85: 64 | BO85: 72 | BP85: 68 | BQ85: 68 | BR85: 72 | BS85: 64 | BT85: 72 | BU85: 64 | BV85: 64 | BW85: 72 | BX85: 68 | BY85: 72 | BZ85: 64 | CA85: 68 | CB85: 72 | CC85: 64 | CD85: 68 | CE85: 64 | CF85: 68 | CG85: 72 | CH85: 56 | CI85: 60 | CJ85: 56 | CK85: 56 | CL85: 56 | CM85: 56 | CN85: 60 | CO85: 60 | CP85: 56 | CQ85: 60 | CR85: 56 | CS85: 56
A86: 2011-09-18 | B86: 60 | C86: 60 | D86: 60 | E86: 60 | F86: 60 | G86: 64 | H86: 60 | I86: 60 | J86: 60 | K86: 60 | L86: 60 | M86: 60 | N86: 60 | O86: 60 | P86: 56 | Q86: 64 | R86: 60 | S86: 60 | T86: 64 | U86: 60 | V86: 60 | W86: 60 | X86: 60 | Y86: 60 | Z86: 60 | AA86: 60 | AB86: 60 | AC86: 56 | AD86: 68 | AE86: 64 | AF86: 68 | AG86: 68 | AH86: 64 | AI86: 68 | AJ86: 64 | AK86: 64 | AL86: 68 | AM86: 60 | AN86: 64 | AO86: 64 | AP86: 64 | AQ86: 72 | AR86: 64 | AS86: 64 | AT86: 64 | AU86: 64 | AV86: 68 | AW86: 60 | AX86: 64 | AY86: 64 | AZ86: 64 | BA86: 68 | BB86: 64 | BC86: 68 | BD86: 64 | BE86: 64 | BF86: 64 | BG86: 64 | BH86: 72 | BI86: 64 | BJ86: 68 | BK86: 68 | BL86: 68 | BM86: 68 | BN86: 68 | BO86: 72 | BP86: 64 | BQ86: 68 | BR86: 64 | BS86: 72 | BT86: 68 | BU86: 68 | BV86: 64 | BW86: 68 | BX86: 68 | BY86: 64 | BZ86: 68 | CA86: 72 | CB86: 68 | CC86: 68 | CD86: 64 | CE86: 68 | CF86: 68 | CG86: 68 | CH86: 60 | CI86: 60 | CJ86: 52 | CK86: 60 | CL86: 56 | CM86: 56 | CN86: 60 | CO86: 56 | CP86: 60 | CQ86: 60 | CR86: 56 | CS86: 60
A87: 2011-09-19 | B87: 56 | C87: 60 | D87: 60 | E87: 60 | F87: 64 | G87: 60 | H87: 64 | I87: 60 | J87: 60 | K87: 60 | L87: 60 | M87: 56 | N87: 64 | O87: 56 | P87: 64 | Q87: 56 | R87: 64 | S87: 64 | T87: 56 | U87: 60 | V87: 60 | W87: 60 | X87: 60 | Y87: 56 | Z87: 60 | AA87: 64 | AB87: 56 | AC87: 60 | AD87: 180 | AE87: 224 | AF87: 260 | AG87: 276 | AH87: 256 | AI87: 268 | AJ87: 312 | AK87: 316 | AL87: 324 | AM87: 332 | AN87: 332 | AO87: 340 | AP87: 340 | AQ87: 336 | AR87: 336 | AS87: 328 | AT87: 276 | AU87: 256 | AV87: 284 | AW87: 284 | AX87: 300 | AY87: 308 | AZ87: 312 | BA87: 316 | BB87: 312 | BC87: 324 | BD87: 320 | BE87: 324 | BF87: 316 | BG87: 304 | BH87: 312 | BI87: 296 | BJ87: 252 | BK87: 164 | BL87: 104 | BM87: 84 | BN87: 84 | BO87: 84 | BP87: 80 | BQ87: 84 | BR87: 76 | BS87: 84 | BT87: 76 | BU87: 80 | BV87: 80 | BW87: 84 | BX87: 84 | BY87: 80 | BZ87: 76 | CA87: 76 | CB87: 76 | CC87: 72 | CD87: 64 | CE87: 68 | CF87: 64 | CG87: 68 | CH87: 60 | CI87: 56 | CJ87: 60 | CK87: 56 | CL87: 60 | CM87: 56 | CN87: 56 | CO87: 60 | CP87: 56 | CQ87: 60 | CR87: 56 | CS87: 60
A88: 2011-09-20 | B88: 56 | C88: 60 | D88: 60 | E88: 60 | F88: 64 | G88: 56 | H88: 64 | I88: 60 | J88: 60 | K88: 60 | L88: 56 | M88: 64 | N88: 64 | O88: 64 | P88: 64 | Q88: 64 | R88: 60 | S88: 64 | T88: 60 | U88: 64 | V88: 64 | W88: 60 | X88: 64 | Y88: 60 | Z88: 64 | AA88: 60 | AB88: 64 | AC88: 64 | AD88: 164 | AE88: 184 | AF88: 204 | AG88: 244 | AH88: 244 | AI88: 236 | AJ88: 264 | AK88: 272 | AL88: 284 | AM88: 284 | AN88: 288 | AO88: 288 | AP88: 288 | AQ88: 284 | AR88: 296 | AS88: 292 | AT88: 268 | AU88: 252 | AV88: 272 | AW88: 272 | AX88: 288 | AY88: 292 | AZ88: 292 | BA88: 292 | BB88: 296 | BC88: 288 | BD88: 292 | BE88: 300 | BF88: 296 | BG88: 288 | BH88: 280 | BI88: 272 | BJ88: 220 | BK88: 172 | BL88: 96 | BM88: 88 | BN88: 104 | BO88: 108 | BP88: 112 | BQ88: 124 | BR88: 128 | BS88: 116 | BT88: 120 | BU88: 128 | BV88: 136 | BW88: 132 | BX88: 132 | BY88: 132 | BZ88: 120 | CA88: 112 | CB88: 112 | CC88: 112 | CD88: 108 | CE88: 100 | CF88: 84 | CG88: 72 | CH88: 64 | CI88: 56 | CJ88: 60 | CK88: 60 | CL88: 56 | CM88: 64 | CN88: 56 | CO88: 60 | CP88: 60 | CQ88: 56 | CR88: 60 | CS88: 60
A89: 2011-09-21 | B89: 60 | C89: 60 | D89: 64 | E89: 60 | F89: 60 | G89: 60 | H89: 64 | I89: 60 | J89: 60 | K89: 60 | L89: 64 | M89: 60 | N89: 60 | O89: 64 | P89: 60 | Q89: 60 | R89: 64 | S89: 60 | T89: 60 | U89: 64 | V89: 60 | W89: 60 | X89: 60 | Y89: 60 | Z89: 60 | AA89: 60 | AB89: 64 | AC89: 64 | AD89: 108 | AE89: 164 | AF89: 200 | AG89: 228 | AH89: 228 | AI89: 244 | AJ89: 264 | AK89: 268 | AL89: 284 | AM89: 288 | AN89: 296 | AO89: 300 | AP89: 300 | AQ89: 304 | AR89: 304 | AS89: 316 | AT89: 276 | AU89: 244 | AV89: 264 | AW89: 276 | AX89: 292 | AY89: 292 | AZ89: 300 | BA89: 300 | BB89: 308 | BC89: 308 | BD89: 308 | BE89: 312 | BF89: 304 | BG89: 300 | BH89: 300 | BI89: 292 | BJ89: 244 | BK89: 172 | BL89: 104 | BM89: 88 | BN89: 88 | BO89: 88 | BP89: 88 | BQ89: 92 | BR89: 92 | BS89: 96 | BT89: 92 | BU89: 100 | BV89: 96 | BW89: 104 | BX89: 104 | BY89: 104 | BZ89: 100 | CA89: 100 | CB89: 100 | CC89: 96 | CD89: 92 | CE89: 76 | CF89: 72 | CG89: 76 | CH89: 52 | CI89: 60 | CJ89: 56 | CK89: 60 | CL89: 56 | CM89: 52 | CN89: 60 | CO89: 52 | CP89: 60 | CQ89: 52 | CR89: 60 | CS89: 56
A90: 2011-09-22 | B90: 56 | C90: 60 | D90: 60 | E90: 60 | F90: 56 | G90: 60 | H90: 60 | I90: 56 | J90: 64 | K90: 56 | L90: 64 | M90: 56 | N90: 60 | O90: 60 | P90: 56 | Q90: 60 | R90: 60 | S90: 56 | T90: 60 | U90: 60 | V90: 60 | W90: 56 | X90: 60 | Y90: 60 | Z90: 56 | AA90: 60 | AB90: 60 | AC90: 60 | AD90: 160 | AE90: 204 | AF90: 208 | AG90: 220 | AH90: 232 | AI90: 244 | AJ90: 272 | AK90: 272 | AL90: 284 | AM90: 280 | AN90: 284 | AO90: 284 | AP90: 276 | AQ90: 292 | AR90: 292 | AS90: 300 | AT90: 276 | AU90: 252 | AV90: 268 | AW90: 276 | AX90: 292 | AY90: 312 | AZ90: 304 | BA90: 300 | BB90: 308 | BC90: 300 | BD90: 316 | BE90: 316 | BF90: 320 | BG90: 304 | BH90: 296 | BI90: 292 | BJ90: 228 | BK90: 156 | BL90: 96 | BM90: 88 | BN90: 92 | BO90: 80 | BP90: 84 | BQ90: 72 | BR90: 76 | BS90: 72 | BT90: 68 | BU90: 80 | BV90: 84 | BW90: 84 | BX90: 84 | BY90: 80 | BZ90: 88 | CA90: 76 | CB90: 80 | CC90: 72 | CD90: 64 | CE90: 64 | CF90: 64 | CG90: 64 | CH90: 56 | CI90: 56 | CJ90: 56 | CK90: 56 | CL90: 60 | CM90: 56 | CN90: 56 | CO90: 56 | CP90: 56 | CQ90: 56 | CR90: 56 | CS90: 56
A91: 2011-09-23 | B91: 56 | C91: 60 | D91: 60 | E91: 56 | F91: 64 | G91: 56 | H91: 56 | I91: 60 | J91: 56 | K91: 64 | L91: 56 | M91: 60 | N91: 60 | O91: 56 | P91: 60 | Q91: 60 | R91: 60 | S91: 56 | T91: 60 | U91: 60 | V91: 56 | W91: 60 | X91: 60 | Y91: 60 | Z91: 56 | AA91: 60 | AB91: 56 | AC91: 60 | AD91: 60 | AE91: 64 | AF91: 64 | AG91: 60 | AH91: 68 | AI91: 68 | AJ91: 64 | AK91: 72 | AL91: 64 | AM91: 72 | AN91: 64 | AO91: 68 | AP91: 68 | AQ91: 68 | AR91: 72 | AS91: 64 | AT91: 72 | AU91: 68 | AV91: 68 | AW91: 68 | AX91: 68 | AY91: 68 | AZ91: 64 | BA91: 72 | BB91: 64 | BC91: 72 | BD91: 64 | BE91: 68 | BF91: 72 | BG91: 68 | BH91: 72 | BI91: 64 | BJ91: 68 | BK91: 68 | BL91: 64 | BM91: 68 | BN91: 68 | BO91: 68 | BP91: 64 | BQ91: 68 | BR91: 68 | BS91: 68 | BT91: 68 | BU91: 68 | BV91: 64 | BW91: 64 | BX91: 68 | BY91: 68 | BZ91: 64 | CA91: 68 | CB91: 64 | CC91: 64 | CD91: 68 | CE91: 64 | CF91: 72 | CG91: 64 | CH91: 56 | CI91: 56 | CJ91: 56 | CK91: 60 | CL91: 52 | CM91: 60 | CN91: 56 | CO91: 56 | CP91: 56 | CQ91: 56 | CR91: 56 | CS91: 56
A92: 2011-09-24 | B92: 56 | C92: 60 | D92: 60 | E92: 60 | F92: 60 | G92: 60 | H92: 56 | I92: 60 | J92: 60 | K92: 56 | L92: 64 | M92: 56 | N92: 60 | O92: 60 | P92: 60 | Q92: 56 | R92: 60 | S92: 60 | T92: 56 | U92: 64 | V92: 56 | W92: 64 | X92: 56 | Y92: 60 | Z92: 56 | AA92: 60 | AB92: 60 | AC92: 56 | AD92: 64 | AE92: 60 | AF92: 64 | AG92: 60 | AH92: 64 | AI92: 68 | AJ92: 60 | AK92: 64 | AL92: 64 | AM92: 64 | AN92: 60 | AO92: 64 | AP92: 64 | AQ92: 60 | AR92: 68 | AS92: 60 | AT92: 68 | AU92: 60 | AV92: 60 | AW92: 64 | AX92: 64 | AY92: 64 | AZ92: 60 | BA92: 64 | BB92: 60 | BC92: 64 | BD92: 64 | BE92: 60 | BF92: 64 | BG92: 60 | BH92: 64 | BI92: 68 | BJ92: 60 | BK92: 68 | BL92: 64 | BM92: 64 | BN92: 68 | BO92: 64 | BP92: 64 | BQ92: 64 | BR92: 68 | BS92: 60 | BT92: 68 | BU92: 64 | BV92: 64 | BW92: 68 | BX92: 64 | BY92: 64 | BZ92: 64 | CA92: 68 | CB92: 64 | CC92: 64 | CD92: 68 | CE92: 64 | CF92: 64 | CG92: 64 | CH92: 56 | CI92: 56 | CJ92: 56 | CK92: 56 | CL92: 56 | CM92: 56 | CN92: 56 | CO92: 56 | CP92: 56 | CQ92: 56 | CR92: 56 | CS92: 56
A93: 2011-09-25 | B93: 56 | C93: 64 | D93: 56 | E93: 60 | F93: 60 | G93: 56 | H93: 60 | I93: 56 | J93: 64 | K93: 56 | L93: 60 | M93: 60 | N93: 56 | O93: 60 | P93: 56 | Q93: 60 | R93: 60 | S93: 60 | T93: 56 | U93: 60 | V93: 60 | W93: 60 | X93: 60 | Y93: 56 | Z93: 60 | AA93: 60 | AB93: 56 | AC93: 60 | AD93: 56 | AE93: 68 | AF93: 56 | AG93: 64 | AH93: 64 | AI93: 64 | AJ93: 68 | AK93: 60 | AL93: 64 | AM93: 60 | AN93: 64 | AO93: 64 | AP93: 60 | AQ93: 64 | AR93: 60 | AS93: 64 | AT93: 60 | AU93: 64 | AV93: 64 | AW93: 60 | AX93: 64 | AY93: 60 | AZ93: 64 | BA93: 64 | BB93: 64 | BC93: 64 | BD93: 60 | BE93: 68 | BF93: 60 | BG93: 68 | BH93: 60 | BI93: 60 | BJ93: 64 | BK93: 64 | BL93: 72 | BM93: 64 | BN93: 64 | BO93: 68 | BP93: 64 | BQ93: 68 | BR93: 60 | BS93: 72 | BT93: 60 | BU93: 64 | BV93: 64 | BW93: 68 | BX93: 68 | BY93: 64 | BZ93: 64 | CA93: 68 | CB93: 64 | CC93: 68 | CD93: 64 | CE93: 68 | CF93: 64 | CG93: 64 | CH93: 56 | CI93: 56 | CJ93: 56 | CK93: 56 | CL93: 56 | CM93: 56 | CN93: 56 | CO93: 56 | CP93: 56 | CQ93: 56 | CR93: 60 | CS93: 52
A94: 2011-09-26 | B94: 60 | C94: 56 | D94: 60 | E94: 60 | F94: 60 | G94: 60 | H94: 56 | I94: 60 | J94: 60 | K94: 60 | L94: 56 | M94: 60 | N94: 60 | O94: 56 | P94: 64 | Q94: 56 | R94: 60 | S94: 60 | T94: 56 | U94: 60 | V94: 60 | W94: 60 | X94: 60 | Y94: 56 | Z94: 60 | AA94: 56 | AB94: 64 | AC94: 60 | AD94: 164 | AE94: 180 | AF94: 196 | AG94: 212 | AH94: 224 | AI94: 232 | AJ94: 260 | AK94: 268 | AL94: 280 | AM94: 272 | AN94: 280 | AO94: 280 | AP94: 280 | AQ94: 280 | AR94: 292 | AS94: 296 | AT94: 260 | AU94: 244 | AV94: 260 | AW94: 264 | AX94: 284 | AY94: 280 | AZ94: 272 | BA94: 272 | BB94: 284 | BC94: 292 | BD94: 288 | BE94: 300 | BF94: 280 | BG94: 284 | BH94: 284 | BI94: 272 | BJ94: 224 | BK94: 168 | BL94: 96 | BM94: 80 | BN94: 80 | BO94: 80 | BP94: 88 | BQ94: 92 | BR94: 112 | BS94: 116 | BT94: 116 | BU94: 124 | BV94: 120 | BW94: 124 | BX94: 128 | BY94: 128 | BZ94: 120 | CA94: 108 | CB94: 108 | CC94: 88 | CD94: 84 | CE94: 76 | CF94: 64 | CG94: 72 | CH94: 52 | CI94: 56 | CJ94: 60 | CK94: 52 | CL94: 60 | CM94: 56 | CN94: 56 | CO94: 56 | CP94: 56 | CQ94: 56 | CR94: 56 | CS94: 56
A95: 2011-09-27 | B95: 60 | C95: 56 | D95: 60 | E95: 60 | F95: 60 | G95: 60 | H95: 56 | I95: 64 | J95: 56 | K95: 60 | L95: 60 | M95: 56 | N95: 60 | O95: 60 | P95: 60 | Q95: 56 | R95: 60 | S95: 60 | T95: 56 | U95: 64 | V95: 56 | W95: 60 | X95: 60 | Y95: 56 | Z95: 60 | AA95: 56 | AB95: 64 | AC95: 60 | AD95: 160 | AE95: 192 | AF95: 212 | AG95: 220 | AH95: 224 | AI95: 224 | AJ95: 264 | AK95: 276 | AL95: 288 | AM95: 296 | AN95: 284 | AO95: 288 | AP95: 288 | AQ95: 292 | AR95: 284 | AS95: 288 | AT95: 260 | AU95: 228 | AV95: 244 | AW95: 260 | AX95: 276 | AY95: 292 | AZ95: 300 | BA95: 300 | BB95: 304 | BC95: 300 | BD95: 304 | BE95: 300 | BF95: 292 | BG95: 292 | BH95: 276 | BI95: 280 | BJ95: 232 | BK95: 164 | BL95: 104 | BM95: 84 | BN95: 80 | BO95: 84 | BP95: 88 | BQ95: 84 | BR95: 88 | BS95: 120 | BT95: 124 | BU95: 124 | BV95: 132 | BW95: 132 | BX95: 132 | BY95: 140 | BZ95: 120 | CA95: 116 | CB95: 112 | CC95: 108 | CD95: 116 | CE95: 92 | CF95: 80 | CG95: 68 | CH95: 56 | CI95: 60 | CJ95: 52 | CK95: 60 | CL95: 52 | CM95: 60 | CN95: 56 | CO95: 52 | CP95: 60 | CQ95: 52 | CR95: 56 | CS95: 60
A96: 2011-09-28 | B96: 52 | C96: 64 | D96: 56 | E96: 60 | F96: 60 | G96: 56 | H96: 60 | I96: 56 | J96: 64 | K96: 56 | L96: 56 | M96: 64 | N96: 56 | O96: 60 | P96: 60 | Q96: 56 | R96: 60 | S96: 56 | T96: 64 | U96: 56 | V96: 60 | W96: 60 | X96: 60 | Y96: 60 | Z96: 56 | AA96: 60 | AB96: 56 | AC96: 64 | AD96: 156 | AE96: 192 | AF96: 212 | AG96: 224 | AH96: 224 | AI96: 248 | AJ96: 284 | AK96: 276 | AL96: 276 | AM96: 296 | AN96: 292 | AO96: 288 | AP96: 292 | AQ96: 292 | AR96: 300 | AS96: 296 | AT96: 268 | AU96: 228 | AV96: 252 | AW96: 256 | AX96: 276 | AY96: 296 | AZ96: 296 | BA96: 308 | BB96: 300 | BC96: 292 | BD96: 312 | BE96: 304 | BF96: 296 | BG96: 280 | BH96: 276 | BI96: 268 | BJ96: 232 | BK96: 168 | BL96: 108 | BM96: 88 | BN96: 92 | BO96: 92 | BP96: 92 | BQ96: 92 | BR96: 88 | BS96: 100 | BT96: 112 | BU96: 108 | BV96: 100 | BW96: 100 | BX96: 104 | BY96: 104 | BZ96: 96 | CA96: 88 | CB96: 88 | CC96: 80 | CD96: 76 | CE96: 80 | CF96: 72 | CG96: 68 | CH96: 56 | CI96: 56 | CJ96: 60 | CK96: 56 | CL96: 60 | CM96: 52 | CN96: 56 | CO96: 60 | CP96: 52 | CQ96: 60 | CR96: 56 | CS96: 56
A97: 2011-09-29 | B97: 60 | C97: 56 | D97: 64 | E97: 56 | F97: 60 | G97: 60 | H97: 60 | I97: 60 | J97: 56 | K97: 60 | L97: 64 | M97: 56 | N97: 60 | O97: 60 | P97: 60 | Q97: 60 | R97: 56 | S97: 60 | T97: 60 | U97: 60 | V97: 60 | W97: 56 | X97: 64 | Y97: 56 | Z97: 60 | AA97: 56 | AB97: 60 | AC97: 64 | AD97: 164 | AE97: 212 | AF97: 220 | AG97: 224 | AH97: 216 | AI97: 224 | AJ97: 264 | AK97: 268 | AL97: 284 | AM97: 296 | AN97: 288 | AO97: 288 | AP97: 284 | AQ97: 300 | AR97: 296 | AS97: 280 | AT97: 264 | AU97: 220 | AV97: 260 | AW97: 260 | AX97: 272 | AY97: 280 | AZ97: 284 | BA97: 284 | BB97: 292 | BC97: 292 | BD97: 304 | BE97: 300 | BF97: 304 | BG97: 296 | BH97: 280 | BI97: 276 | BJ97: 232 | BK97: 168 | BL97: 96 | BM97: 88 | BN97: 96 | BO97: 88 | BP97: 92 | BQ97: 92 | BR97: 92 | BS97: 96 | BT97: 108 | BU97: 108 | BV97: 132 | BW97: 140 | BX97: 128 | BY97: 128 | BZ97: 124 | CA97: 108 | CB97: 112 | CC97: 112 | CD97: 116 | CE97: 104 | CF97: 88 | CG97: 80 | CH97: 52 | CI97: 64 | CJ97: 52 | CK97: 60 | CL97: 56 | CM97: 56 | CN97: 60 | CO97: 52 | CP97: 60 | CQ97: 56 | CR97: 56 | CS97: 56
A98: 2011-09-30 | B98: 56 | C98: 64 | D98: 56 | E98: 60 | F98: 64 | G98: 56 | H98: 64 | I98: 56 | J98: 60 | K98: 60 | L98: 60 | M98: 60 | N98: 60 | O98: 60 | P98: 60 | Q98: 56 | R98: 64 | S98: 56 | T98: 60 | U98: 60 | V98: 60 | W98: 56 | X98: 60 | Y98: 60 | Z98: 56 | AA98: 64 | AB98: 56 | AC98: 60 | AD98: 160 | AE98: 180 | AF98: 204 | AG98: 216 | AH98: 224 | AI98: 236 | AJ98: 256 | AK98: 276 | AL98: 268 | AM98: 272 | AN98: 272 | AO98: 276 | AP98: 288 | AQ98: 288 | AR98: 300 | AS98: 292 | AT98: 268 | AU98: 240 | AV98: 248 | AW98: 268 | AX98: 284 | AY98: 296 | AZ98: 296 | BA98: 296 | BB98: 304 | BC98: 300 | BD98: 300 | BE98: 296 | BF98: 292 | BG98: 276 | BH98: 260 | BI98: 252 | BJ98: 208 | BK98: 148 | BL98: 92 | BM98: 76 | BN98: 80 | BO98: 68 | BP98: 72 | BQ98: 68 | BR98: 80 | BS98: 76 | BT98: 80 | BU98: 88 | BV98: 84 | BW98: 84 | BX98: 84 | BY98: 80 | BZ98: 80 | CA98: 80 | CB98: 76 | CC98: 76 | CD98: 68 | CE98: 68 | CF98: 68 | CG98: 64 | CH98: 56 | CI98: 56 | CJ98: 52 | CK98: 56 | CL98: 60 | CM98: 52 | CN98: 60 | CO98: 52 | CP98: 56 | CQ98: 56 | CR98: 52 | CS98: 60
A99: 2011-10-01 | B99: 56 | C99: 60 | D99: 60 | E99: 56 | F99: 60 | G99: 60 | H99: 56 | I99: 60 | J99: 56 | K99: 60 | L99: 56 | M99: 60 | N99: - | O99: - | P99: - | Q99: - | R99: 60 | S99: 56 | T99: 64 | U99: 56 | V99: 56 | W99: 64 | X99: 60 | Y99: 60 | Z99: 56 | AA99: 56 | AB99: 60 | AC99: 56 | AD99: 60 | AE99: 56 | AF99: 56 | AG99: 60 | AH99: 60 | AI99: 64 | AJ99: 60 | AK99: 60 | AL99: 64 | AM99: 64 | AN99: 64 | AO99: 60 | AP99: 64 | AQ99: 64 | AR99: 60 | AS99: 64 | AT99: 60 | AU99: 60 | AV99: 68 | AW99: 60 | AX99: 64 | AY99: 60 | AZ99: 64 | BA99: 64 | BB99: 60 | BC99: 64 | BD99: 64 | BE99: 60 | BF99: 64 | BG99: 64 | BH99: 68 | BI99: 56 | BJ99: 68 | BK99: 60 | BL99: 64 | BM99: 64 | BN99: 64 | BO99: 68 | BP99: 60 | BQ99: 68 | BR99: 64 | BS99: 68 | BT99: 68 | BU99: 64 | BV99: 64 | BW99: 64 | BX99: 64 | BY99: 64 | BZ99: 64 | CA99: 68 | CB99: 60 | CC99: 64 | CD99: 64 | CE99: 64 | CF99: 68 | CG99: 60 | CH99: 64 | CI99: 64 | CJ99: 64 | CK99: 68 | CL99: 52 | CM99: 60 | CN99: 56 | CO99: 52 | CP99: 60 | CQ99: 52 | CR99: 52 | CS99: 60
A100: 2011-10-02 | B100: 60 | C100: 56 | D100: 60 | E100: 56 | F100: 56 | G100: 60 | H100: 60 | I100: 68 | J100: 56 | K100: 60 | L100: 64 | M100: 56 | N100: - | O100: - | P100: - | Q100: - | R100: 60 | S100: 56 | T100: 56 | U100: 60 | V100: 56 | W100: 60 | X100: 56 | Y100: 60 | Z100: 60 | AA100: 56 | AB100: 60 | AC100: 56 | AD100: 56 | AE100: 60 | AF100: 56 | AG100: 60 | AH100: 56 | AI100: 64 | AJ100: 60 | AK100: 60 | AL100: 68 | AM100: 60 | AN100: 64 | AO100: 60 | AP100: 60 | AQ100: 68 | AR100: 60 | AS100: 64 | AT100: 60 | AU100: 60 | AV100: 64 | AW100: 56 | AX100: 68 | AY100: 60 | AZ100: 60 | BA100: 68 | BB100: 60 | BC100: 60 | BD100: 64 | BE100: 60 | BF100: 68 | BG100: 60 | BH100: 64 | BI100: 64 | BJ100: 60 | BK100: 68 | BL100: 60 | BM100: 64 | BN100: 60 | BO100: 68 | BP100: 68 | BQ100: 64 | BR100: 64 | BS100: 64 | BT100: 68 | BU100: 64 | BV100: 64 | BW100: 64 | BX100: 64 | BY100: 68 | BZ100: 60 | CA100: 64 | CB100: 68 | CC100: 64 | CD100: 64 | CE100: 64 | CF100: 64 | CG100: 68 | CH100: 64 | CI100: 68 | CJ100: 64 | CK100: 60 | CL100: 60 | CM100: 52 | CN100: 60 | CO100: 56 | CP100: 56 | CQ100: 56 | CR100: 56 | CS100: 52
A101: 2011-10-03 | B101: 52 | C101: 60 | D101: 60 | E101: 56 | F101: 60 | G101: 56 | H101: 60 | I101: 56 | J101: 56 | K101: 60 | L101: 56 | M101: 60 | N101: - | O101: - | P101: - | Q101: - | R101: 60 | S101: 56 | T101: 60 | U101: 56 | V101: 56 | W101: 60 | X101: 56 | Y101: 60 | Z101: 56 | AA101: 56 | AB101: 60 | AC101: 60 | AD101: 60 | AE101: 56 | AF101: 60 | AG101: 60 | AH101: 164 | AI101: 188 | AJ101: 204 | AK101: 228 | AL101: 224 | AM101: 228 | AN101: 256 | AO101: 260 | AP101: 280 | AQ101: 268 | AR101: 272 | AS101: 280 | AT101: 280 | AU101: 284 | AV101: 280 | AW101: 284 | AX101: 260 | AY101: 236 | AZ101: 260 | BA101: 272 | BB101: 268 | BC101: 276 | BD101: 284 | BE101: 288 | BF101: 284 | BG101: 292 | BH101: 296 | BI101: 308 | BJ101: 296 | BK101: 292 | BL101: 284 | BM101: 260 | BN101: 228 | BO101: 168 | BP101: 108 | BQ101: 84 | BR101: 80 | BS101: 84 | BT101: 80 | BU101: 88 | BV101: 96 | BW101: 104 | BX101: 108 | BY101: 104 | BZ101: 108 | CA101: 112 | CB101: 116 | CC101: 104 | CD101: 100 | CE101: 92 | CF101: 88 | CG101: 88 | CH101: 84 | CI101: 80 | CJ101: 76 | CK101: 68 | CL101: 60 | CM101: 56 | CN101: 56 | CO101: 56 | CP101: 56 | CQ101: 60 | CR101: 56 | CS101: 56
A102: 2011-10-04 | B102: 60 | C102: 60 | D102: 60 | E102: 60 | F102: 56 | G102: 64 | H102: 56 | I102: 60 | J102: 60 | K102: 56 | L102: 64 | M102: 56 | N102: - | O102: - | P102: - | Q102: - | R102: 60 | S102: 60 | T102: 56 | U102: 64 | V102: 56 | W102: 60 | X102: 56 | Y102: 64 | Z102: 56 | AA102: 60 | AB102: 60 | AC102: 56 | AD102: 64 | AE102: 56 | AF102: 60 | AG102: 64 | AH102: 164 | AI102: 184 | AJ102: 212 | AK102: 228 | AL102: 228 | AM102: 224 | AN102: 260 | AO102: 268 | AP102: 276 | AQ102: 276 | AR102: 280 | AS102: 276 | AT102: 288 | AU102: 276 | AV102: 284 | AW102: 288 | AX102: 264 | AY102: 236 | AZ102: 252 | BA102: 264 | BB102: 276 | BC102: 288 | BD102: 296 | BE102: 296 | BF102: 296 | BG102: 288 | BH102: 300 | BI102: 296 | BJ102: 304 | BK102: 292 | BL102: 276 | BM102: 272 | BN102: 224 | BO102: 172 | BP102: 96 | BQ102: 84 | BR102: 96 | BS102: 100 | BT102: 104 | BU102: 112 | BV102: 128 | BW102: 132 | BX102: 124 | BY102: 120 | BZ102: 116 | CA102: 124 | CB102: 112 | CC102: 124 | CD102: 112 | CE102: 104 | CF102: 84 | CG102: 92 | CH102: 84 | CI102: 76 | CJ102: 76 | CK102: 68 | CL102: 56 | CM102: 60 | CN102: 60 | CO102: 56 | CP102: 60 | CQ102: 60 | CR102: 56 | CS102: 60
A103: 2011-10-05 | B103: 60 | C103: 60 | D103: 64 | E103: 60 | F103: 60 | G103: 64 | H103: 60 | I103: 64 | J103: 56 | K103: 64 | L103: 60 | M103: 60 | N103: - | O103: - | P103: - | Q103: - | R103: 60 | S103: 60 | T103: 64 | U103: 60 | V103: 60 | W103: 60 | X103: 60 | Y103: 64 | Z103: 60 | AA103: 60 | AB103: 60 | AC103: 60 | AD103: 60 | AE103: 60 | AF103: 60 | AG103: 60 | AH103: 152 | AI103: 184 | AJ103: 192 | AK103: 200 | AL103: 212 | AM103: 216 | AN103: 228 | AO103: 232 | AP103: 236 | AQ103: 240 | AR103: 248 | AS103: 248 | AT103: 240 | AU103: 244 | AV103: 252 | AW103: 252 | AX103: 232 | AY103: 224 | AZ103: 228 | BA103: 240 | BB103: 248 | BC103: 256 | BD103: 256 | BE103: 268 | BF103: 272 | BG103: 272 | BH103: 268 | BI103: 264 | BJ103: 276 | BK103: 272 | BL103: 264 | BM103: 264 | BN103: 224 | BO103: 176 | BP103: 104 | BQ103: 92 | BR103: 76 | BS103: 84 | BT103: 88 | BU103: 88 | BV103: 108 | BW103: 116 | BX103: 124 | BY103: 128 | BZ103: 112 | CA103: 112 | CB103: 132 | CC103: 124 | CD103: 124 | CE103: 120 | CF103: 108 | CG103: 116 | CH103: 108 | CI103: 96 | CJ103: 76 | CK103: 64 | CL103: 60 | CM103: 60 | CN103: 56 | CO103: 64 | CP103: 60 | CQ103: 56 | CR103: 60 | CS103: 60
A104: 2011-10-06 | B104: 60 | C104: 60 | D104: 64 | E104: 60 | F104: 64 | G104: 60 | H104: 60 | I104: 64 | J104: 60 | K104: 64 | L104: 64 | M104: 56 | N104: - | O104: - | P104: - | Q104: - | R104: 64 | S104: 60 | T104: 64 | U104: 60 | V104: 60 | W104: 64 | X104: 60 | Y104: 64 | Z104: 60 | AA104: 60 | AB104: 64 | AC104: 60 | AD104: 60 | AE104: 64 | AF104: 60 | AG104: 64 | AH104: 152 | AI104: 180 | AJ104: 184 | AK104: 196 | AL104: 204 | AM104: 208 | AN104: 220 | AO104: 216 | AP104: 224 | AQ104: 228 | AR104: 232 | AS104: 240 | AT104: 236 | AU104: 240 | AV104: 232 | AW104: 232 | AX104: 220 | AY104: 216 | AZ104: 228 | BA104: 248 | BB104: 260 | BC104: 268 | BD104: 268 | BE104: 264 | BF104: 276 | BG104: 276 | BH104: 280 | BI104: 288 | BJ104: 284 | BK104: 276 | BL104: 268 | BM104: 256 | BN104: 220 | BO104: 164 | BP104: 96 | BQ104: 80 | BR104: 96 | BS104: 96 | BT104: 100 | BU104: 100 | BV104: 108 | BW104: 120 | BX104: 124 | BY104: 124 | BZ104: 128 | CA104: 128 | CB104: 104 | CC104: 104 | CD104: 96 | CE104: 96 | CF104: 88 | CG104: 76 | CH104: 72 | CI104: 76 | CJ104: 68 | CK104: 68 | CL104: 60 | CM104: 60 | CN104: 56 | CO104: 60 | CP104: 60 | CQ104: 60 | CR104: 56 | CS104: 60
A105: 2011-10-07 | B105: 56 | C105: 64 | D105: 64 | E105: 64 | F105: 60 | G105: 64 | H105: 60 | I105: 64 | J105: 60 | K105: 64 | L105: 60 | M105: 60 | N105: - | O105: - | P105: - | Q105: - | R105: 64 | S105: 64 | T105: 60 | U105: 60 | V105: 64 | W105: 60 | X105: 64 | Y105: 60 | Z105: 64 | AA105: 60 | AB105: 64 | AC105: 60 | AD105: 64 | AE105: 64 | AF105: 60 | AG105: 68 | AH105: 160 | AI105: 184 | AJ105: 192 | AK105: 204 | AL105: 208 | AM105: 212 | AN105: 232 | AO105: 248 | AP105: 244 | AQ105: 244 | AR105: 252 | AS105: 248 | AT105: 248 | AU105: 244 | AV105: 244 | AW105: 252 | AX105: 248 | AY105: 244 | AZ105: 260 | BA105: 260 | BB105: 268 | BC105: 272 | BD105: 276 | BE105: 276 | BF105: 284 | BG105: 296 | BH105: 280 | BI105: 288 | BJ105: 280 | BK105: 268 | BL105: 252 | BM105: 244 | BN105: 208 | BO105: 152 | BP105: 96 | BQ105: 76 | BR105: 76 | BS105: 76 | BT105: 72 | BU105: 80 | BV105: 80 | BW105: 76 | BX105: 88 | BY105: 88 | BZ105: 92 | CA105: 88 | CB105: 88 | CC105: 88 | CD105: 88 | CE105: 84 | CF105: 80 | CG105: 76 | CH105: 72 | CI105: 68 | CJ105: 68 | CK105: 64 | CL105: 60 | CM105: 60 | CN105: 60 | CO105: 56 | CP105: 56 | CQ105: 60 | CR105: 60 | CS105: 56
A106: 2011-10-08 | B106: 60 | C106: 60 | D106: 64 | E106: 60 | F106: 60 | G106: 60 | H106: 60 | I106: 64 | J106: 60 | K106: 60 | L106: 64 | M106: 60 | N106: - | O106: - | P106: - | Q106: - | R106: 60 | S106: 64 | T106: 60 | U106: 60 | V106: 60 | W106: 64 | X106: 60 | Y106: 60 | Z106: 60 | AA106: 60 | AB106: 60 | AC106: 60 | AD106: 64 | AE106: 60 | AF106: 60 | AG106: 60 | AH106: 64 | AI106: 64 | AJ106: 64 | AK106: 64 | AL106: 64 | AM106: 64 | AN106: 68 | AO106: 64 | AP106: 64 | AQ106: 64 | AR106: 64 | AS106: 64 | AT106: 64 | AU106: 68 | AV106: 64 | AW106: 64 | AX106: 64 | AY106: 64 | AZ106: 64 | BA106: 64 | BB106: 68 | BC106: 64 | BD106: 64 | BE106: 64 | BF106: 64 | BG106: 64 | BH106: 64 | BI106: 64 | BJ106: 68 | BK106: 64 | BL106: 68 | BM106: 64 | BN106: 64 | BO106: 68 | BP106: 68 | BQ106: 64 | BR106: 72 | BS106: 68 | BT106: 68 | BU106: 68 | BV106: 64 | BW106: 72 | BX106: 64 | BY106: 68 | BZ106: 72 | CA106: 64 | CB106: 68 | CC106: 68 | CD106: 68 | CE106: 68 | CF106: 68 | CG106: 68 | CH106: 64 | CI106: 68 | CJ106: 68 | CK106: 68 | CL106: 60 | CM106: 56 | CN106: 60 | CO106: 60 | CP106: 56 | CQ106: 56 | CR106: 60 | CS106: 60
A107: 2011-10-09 | B107: 60 | C107: 60 | D107: 60 | E107: 60 | F107: 64 | G107: 60 | H107: 60 | I107: 64 | J107: 60 | K107: 60 | L107: 60 | M107: 64 | N107: - | O107: - | P107: - | Q107: - | R107: 60 | S107: 60 | T107: 60 | U107: 60 | V107: 60 | W107: 60 | X107: 60 | Y107: 64 | Z107: 60 | AA107: 60 | AB107: 60 | AC107: 60 | AD107: 60 | AE107: 64 | AF107: 60 | AG107: 60 | AH107: 60 | AI107: 64 | AJ107: 68 | AK107: 64 | AL107: 60 | AM107: 64 | AN107: 64 | AO107: 64 | AP107: 64 | AQ107: 68 | AR107: 60 | AS107: 64 | AT107: 64 | AU107: 68 | AV107: 60 | AW107: 64 | AX107: 68 | AY107: 64 | AZ107: 64 | BA107: 64 | BB107: 64 | BC107: 64 | BD107: 64 | BE107: 64 | BF107: 64 | BG107: 64 | BH107: 64 | BI107: 64 | BJ107: 64 | BK107: 68 | BL107: 64 | BM107: 64 | BN107: 64 | BO107: 64 | BP107: 68 | BQ107: 68 | BR107: 64 | BS107: 72 | BT107: 68 | BU107: 68 | BV107: 68 | BW107: 64 | BX107: 68 | BY107: 64 | BZ107: 68 | CA107: 68 | CB107: 68 | CC107: 64 | CD107: 68 | CE107: 68 | CF107: 68 | CG107: 64 | CH107: 68 | CI107: 68 | CJ107: 68 | CK107: 68 | CL107: 60 | CM107: 56 | CN107: 60 | CO107: 56 | CP107: 60 | CQ107: 60 | CR107: 56 | CS107: 60
A108: 2011-10-10 | B108: 60 | C108: 60 | D108: 60 | E108: 60 | F108: 64 | G108: 60 | H108: 60 | I108: 60 | J108: 60 | K108: 60 | L108: 60 | M108: 60 | N108: - | O108: - | P108: - | Q108: - | R108: 64 | S108: 60 | T108: 60 | U108: 60 | V108: 60 | W108: 60 | X108: 60 | Y108: 60 | Z108: 60 | AA108: 60 | AB108: 60 | AC108: 60 | AD108: 60 | AE108: 60 | AF108: 60 | AG108: 64 | AH108: 152 | AI108: 176 | AJ108: 180 | AK108: 188 | AL108: 192 | AM108: 204 | AN108: 212 | AO108: 212 | AP108: 220 | AQ108: 224 | AR108: 228 | AS108: 228 | AT108: 224 | AU108: 220 | AV108: 220 | AW108: 220 | AX108: 220 | AY108: 204 | AZ108: 220 | BA108: 228 | BB108: 220 | BC108: 228 | BD108: 232 | BE108: 228 | BF108: 232 | BG108: 236 | BH108: 240 | BI108: 244 | BJ108: 240 | BK108: 244 | BL108: 232 | BM108: 220 | BN108: 204 | BO108: 180 | BP108: 100 | BQ108: 92 | BR108: 88 | BS108: 88 | BT108: 88 | BU108: 84 | BV108: 96 | BW108: 104 | BX108: 104 | BY108: 108 | BZ108: 104 | CA108: 108 | CB108: 112 | CC108: 104 | CD108: 100 | CE108: 100 | CF108: 104 | CG108: 96 | CH108: 96 | CI108: 88 | CJ108: 80 | CK108: 72 | CL108: 60 | CM108: 60 | CN108: 60 | CO108: 60 | CP108: 56 | CQ108: 60 | CR108: 60 | CS108: 60
A109: 2011-10-11 | B109: 60 | C109: 64 | D109: 60 | E109: 64 | F109: 64 | G109: 60 | H109: 60 | I109: 64 | J109: 60 | K109: 64 | L109: 60 | M109: 64 | N109: - | O109: - | P109: - | Q109: - | R109: 60 | S109: 64 | T109: 60 | U109: 64 | V109: 60 | W109: 64 | X109: 60 | Y109: 64 | Z109: 64 | AA109: 60 | AB109: 60 | AC109: 64 | AD109: 60 | AE109: 64 | AF109: 60 | AG109: 60 | AH109: 144 | AI109: 180 | AJ109: 184 | AK109: 188 | AL109: 196 | AM109: 196 | AN109: 204 | AO109: 208 | AP109: 204 | AQ109: 208 | AR109: 212 | AS109: 212 | AT109: 212 | AU109: 212 | AV109: 212 | AW109: 216 | AX109: 208 | AY109: 212 | AZ109: 220 | BA109: 224 | BB109: 228 | BC109: 232 | BD109: 236 | BE109: 240 | BF109: 244 | BG109: 248 | BH109: 252 | BI109: 248 | BJ109: 244 | BK109: 248 | BL109: 236 | BM109: 224 | BN109: 208 | BO109: 160 | BP109: 96 | BQ109: 88 | BR109: 80 | BS109: 92 | BT109: 88 | BU109: 84 | BV109: 104 | BW109: 108 | BX109: 104 | BY109: 96 | BZ109: 104 | CA109: 104 | CB109: 88 | CC109: 84 | CD109: 80 | CE109: 80 | CF109: 76 | CG109: 80 | CH109: 68 | CI109: 68 | CJ109: 68 | CK109: 68 | CL109: 60 | CM109: 56 | CN109: 60 | CO109: 56 | CP109: 60 | CQ109: 60 | CR109: 56 | CS109: 60
A110: 2011-10-12 | B110: 60 | C110: 60 | D110: 60 | E110: 64 | F110: 60 | G110: 64 | H110: 60 | I110: 60 | J110: 60 | K110: 60 | L110: 60 | M110: 64 | N110: - | O110: - | P110: - | Q110: - | R110: 60 | S110: 60 | T110: 60 | U110: 64 | V110: 60 | W110: 60 | X110: 60 | Y110: 64 | Z110: 60 | AA110: 64 | AB110: 60 | AC110: 60 | AD110: 60 | AE110: 64 | AF110: 64 | AG110: 64 | AH110: 60 | AI110: 64 | AJ110: 68 | AK110: 60 | AL110: 64 | AM110: 64 | AN110: 60 | AO110: 68 | AP110: 60 | AQ110: 64 | AR110: 64 | AS110: 64 | AT110: 60 | AU110: 64 | AV110: 64 | AW110: 68 | AX110: 60 | AY110: 68 | AZ110: 64 | BA110: 60 | BB110: 68 | BC110: 64 | BD110: 60 | BE110: 68 | BF110: 60 | BG110: 64 | BH110: 64 | BI110: 60 | BJ110: 64 | BK110: 64 | BL110: 64 | BM110: 68 | BN110: 60 | BO110: 68 | BP110: 72 | BQ110: 64 | BR110: 68 | BS110: 68 | BT110: 68 | BU110: 68 | BV110: 64 | BW110: 64 | BX110: 72 | BY110: 64 | BZ110: 64 | CA110: 68 | CB110: 64 | CC110: 68 | CD110: 64 | CE110: 68 | CF110: 68 | CG110: 64 | CH110: 68 | CI110: 68 | CJ110: 64 | CK110: 68 | CL110: 56 | CM110: 56 | CN110: 56 | CO110: 60 | CP110: 56 | CQ110: 56 | CR110: 56 | CS110: 56
A111: 2011-10-13 | B111: 56 | C111: 64 | D111: 60 | E111: 56 | F111: 64 | G111: 56 | H111: 60 | I111: 60 | J111: 56 | K111: 60 | L111: 60 | M111: 56 | N111: - | O111: - | P111: - | Q111: - | R111: 60 | S111: 60 | T111: 60 | U111: 60 | V111: 60 | W111: 56 | X111: 60 | Y111: 56 | Z111: 60 | AA111: 64 | AB111: 56 | AC111: 56 | AD111: 60 | AE111: 60 | AF111: 56 | AG111: 68 | AH111: 144 | AI111: 176 | AJ111: 176 | AK111: 184 | AL111: 192 | AM111: 192 | AN111: 196 | AO111: 204 | AP111: 196 | AQ111: 200 | AR111: 208 | AS111: 208 | AT111: 216 | AU111: 208 | AV111: 204 | AW111: 216 | AX111: 204 | AY111: 208 | AZ111: 220 | BA111: 224 | BB111: 224 | BC111: 224 | BD111: 236 | BE111: 240 | BF111: 248 | BG111: 252 | BH111: 260 | BI111: 256 | BJ111: 252 | BK111: 248 | BL111: 248 | BM111: 240 | BN111: 204 | BO111: 168 | BP111: 116 | BQ111: 112 | BR111: 108 | BS111: 100 | BT111: 104 | BU111: 104 | BV111: 104 | BW111: 128 | BX111: 124 | BY111: 128 | BZ111: 132 | CA111: 132 | CB111: 132 | CC111: 140 | CD111: 120 | CE111: 108 | CF111: 104 | CG111: 96 | CH111: 96 | CI111: 96 | CJ111: 76 | CK111: 72 | CL111: 60 | CM111: 56 | CN111: 56 | CO111: 64 | CP111: 56 | CQ111: 56 | CR111: 60 | CS111: 56
A112: 2011-10-14 | B112: 56 | C112: 60 | D112: 60 | E112: 60 | F112: 60 | G112: 60 | H112: 60 | I112: 60 | J112: 60 | K112: 60 | L112: 60 | M112: 60 | N112: - | O112: - | P112: - | Q112: - | R112: 60 | S112: 60 | T112: 60 | U112: 60 | V112: 56 | W112: 64 | X112: 56 | Y112: 60 | Z112: 60 | AA112: 60 | AB112: 56 | AC112: 64 | AD112: 56 | AE112: 60 | AF112: 60 | AG112: 60 | AH112: 156 | AI112: 172 | AJ112: 172 | AK112: 184 | AL112: 188 | AM112: 196 | AN112: 208 | AO112: 204 | AP112: 212 | AQ112: 208 | AR112: 208 | AS112: 216 | AT112: 216 | AU112: 212 | AV112: 212 | AW112: 216 | AX112: 204 | AY112: 204 | AZ112: 220 | BA112: 220 | BB112: 228 | BC112: 224 | BD112: 236 | BE112: 244 | BF112: 240 | BG112: 244 | BH112: 252 | BI112: 248 | BJ112: 248 | BK112: 244 | BL112: 236 | BM112: 232 | BN112: 192 | BO112: 152 | BP112: 88 | BQ112: 72 | BR112: 72 | BS112: 72 | BT112: 68 | BU112: 76 | BV112: 76 | BW112: 76 | BX112: 76 | BY112: 72 | BZ112: 72 | CA112: 72 | CB112: 76 | CC112: 68 | CD112: 68 | CE112: 64 | CF112: 68 | CG112: 68 | CH112: 60 | CI112: 64 | CJ112: 64 | CK112: 64 | CL112: 52 | CM112: 60 | CN112: 56 | CO112: 52 | CP112: 60 | CQ112: 56 | CR112: 52 | CS112: 60
A113: 2011-10-15 | B113: 56 | C113: 60 | D113: 56 | E113: 60 | F113: 60 | G113: 56 | H113: 56 | I113: 60 | J113: 56 | K113: 60 | L113: 60 | M113: 56 | N113: - | O113: - | P113: - | Q113: - | R113: 60 | S113: 56 | T113: 60 | U113: 60 | V113: 56 | W113: 56 | X113: 64 | Y113: 56 | Z113: 56 | AA113: 60 | AB113: 56 | AC113: 60 | AD113: 60 | AE113: 52 | AF113: 60 | AG113: 60 | AH113: 56 | AI113: 60 | AJ113: 68 | AK113: 56 | AL113: 60 | AM113: 68 | AN113: 60 | AO113: 60 | AP113: 64 | AQ113: 60 | AR113: 60 | AS113: 68 | AT113: 60 | AU113: 60 | AV113: 64 | AW113: 60 | AX113: 60 | AY113: 68 | AZ113: 60 | BA113: 64 | BB113: 64 | BC113: 60 | BD113: 64 | BE113: 64 | BF113: 60 | BG113: 64 | BH113: 60 | BI113: 64 | BJ113: 64 | BK113: 60 | BL113: 64 | BM113: 64 | BN113: 64 | BO113: 68 | BP113: 64 | BQ113: 64 | BR113: 68 | BS113: 68 | BT113: 60 | BU113: 68 | BV113: 64 | BW113: 64 | BX113: 68 | BY113: 60 | BZ113: 64 | CA113: 68 | CB113: 64 | CC113: 64 | CD113: 68 | CE113: 64 | CF113: 64 | CG113: 68 | CH113: 64 | CI113: 64 | CJ113: 68 | CK113: 64 | CL113: 56 | CM113: 56 | CN113: 56 | CO113: 56 | CP113: 56 | CQ113: 52 | CR113: 60 | CS113: 52
A114: 2011-10-16 | B114: 60 | C114: 56 | D114: 56 | E114: 60 | F114: 60 | G114: 56 | H114: 60 | I114: 56 | J114: 64 | K114: 56 | L114: 56 | M114: 60 | N114: - | O114: - | P114: - | Q114: - | R114: 60 | S114: 56 | T114: 60 | U114: 60 | V114: 56 | W114: 60 | X114: 56 | Y114: 60 | Z114: 60 | AA114: 56 | AB114: 56 | AC114: 60 | AD114: 56 | AE114: 60 | AF114: 60 | AG114: 56 | AH114: 60 | AI114: 64 | AJ114: 60 | AK114: 60 | AL114: 64 | AM114: 64 | AN114: 60 | AO114: 60 | AP114: 64 | AQ114: 64 | AR114: 60 | AS114: 64 | AT114: 60 | AU114: 60 | AV114: 64 | AW114: 60 | AX114: 64 | AY114: 64 | AZ114: 60 | BA114: 60 | BB114: 68 | BC114: 60 | BD114: 64 | BE114: 60 | BF114: 60 | BG114: 64 | BH114: 64 | BI114: 60 | BJ114: 60 | BK114: 64 | BL114: 60 | BM114: 64 | BN114: 60 | BO114: 64 | BP114: 68 | BQ114: 64 | BR114: 64 | BS114: 72 | BT114: 64 | BU114: 64 | BV114: 64 | BW114: 64 | BX114: 64 | BY114: 68 | BZ114: 64 | CA114: 64 | CB114: 68 | CC114: 60 | CD114: 64 | CE114: 68 | CF114: 64 | CG114: 64 | CH114: 68 | CI114: 64 | CJ114: 64 | CK114: 68 | CL114: 52 | CM114: 56 | CN114: 56 | CO114: 56 | CP114: 56 | CQ114: 56 | CR114: 52 | CS114: 60
A115: 2011-10-17 | B115: 56 | C115: 60 | D115: 56 | E115: 60 | F115: 60 | G115: 56 | H115: 60 | I115: 60 | J115: 56 | K115: 60 | L115: 60 | M115: 56 | N115: - | O115: - | P115: - | Q115: - | R115: 60 | S115: 56 | T115: 56 | U115: 60 | V115: 60 | W115: 56 | X115: 60 | Y115: 56 | Z115: 60 | AA115: 60 | AB115: 56 | AC115: 60 | AD115: 56 | AE115: 56 | AF115: 60 | AG115: 56 | AH115: 148 | AI115: 168 | AJ115: 176 | AK115: 176 | AL115: 192 | AM115: 192 | AN115: 196 | AO115: 216 | AP115: 212 | AQ115: 208 | AR115: 220 | AS115: 208 | AT115: 220 | AU115: 212 | AV115: 212 | AW115: 224 | AX115: 216 | AY115: 220 | AZ115: 220 | BA115: 224 | BB115: 228 | BC115: 220 | BD115: 220 | BE115: 228 | BF115: 236 | BG115: 236 | BH115: 232 | BI115: 232 | BJ115: 228 | BK115: 224 | BL115: 216 | BM115: 216 | BN115: 192 | BO115: 160 | BP115: 88 | BQ115: 72 | BR115: 88 | BS115: 88 | BT115: 80 | BU115: 92 | BV115: 100 | BW115: 104 | BX115: 108 | BY115: 112 | BZ115: 112 | CA115: 116 | CB115: 120 | CC115: 112 | CD115: 104 | CE115: 104 | CF115: 100 | CG115: 96 | CH115: 100 | CI115: 88 | CJ115: 72 | CK115: 72 | CL115: 56 | CM115: 56 | CN115: 60 | CO115: 56 | CP115: 56 | CQ115: 56 | CR115: 56 | CS115: 56
A116: 2011-10-18 | B116: 56 | C116: 60 | D116: 60 | E116: 60 | F116: 60 | G116: 60 | H116: 60 | I116: 60 | J116: 60 | K116: 56 | L116: 60 | M116: 60 | N116: - | O116: - | P116: - | Q116: - | R116: 56 | S116: 64 | T116: 56 | U116: 60 | V116: 60 | W116: 60 | X116: 56 | Y116: 64 | Z116: 56 | AA116: 60 | AB116: 60 | AC116: 60 | AD116: 56 | AE116: 60 | AF116: 60 | AG116: 60 | AH116: 132 | AI116: 172 | AJ116: 176 | AK116: 180 | AL116: 188 | AM116: 192 | AN116: 196 | AO116: 192 | AP116: 196 | AQ116: 200 | AR116: 192 | AS116: 208 | AT116: 200 | AU116: 204 | AV116: 208 | AW116: 212 | AX116: 212 | AY116: 200 | AZ116: 200 | BA116: 204 | BB116: 212 | BC116: 216 | BD116: 208 | BE116: 220 | BF116: 216 | BG116: 216 | BH116: 220 | BI116: 216 | BJ116: 212 | BK116: 220 | BL116: 204 | BM116: 200 | BN116: 184 | BO116: 164 | BP116: 96 | BQ116: 92 | BR116: 80 | BS116: 88 | BT116: 84 | BU116: 88 | BV116: 96 | BW116: 104 | BX116: 100 | BY116: 108 | BZ116: 108 | CA116: 108 | CB116: 108 | CC116: 120 | CD116: 108 | CE116: 104 | CF116: 100 | CG116: 100 | CH116: 92 | CI116: 88 | CJ116: 80 | CK116: 72 | CL116: 52 | CM116: 56 | CN116: 56 | CO116: 56 | CP116: 56 | CQ116: 56 | CR116: 56 | CS116: 56
A117: 2011-10-19 | B117: 56 | C117: 56 | D117: 60 | E117: 60 | F117: 56 | G117: 60 | H117: 56 | I117: 56 | J117: 64 | K117: 56 | L117: 60 | M117: 56 | N117: - | O117: - | P117: - | Q117: - | R117: 56 | S117: 60 | T117: 56 | U117: 60 | V117: 60 | W117: 52 | X117: 64 | Y117: 56 | Z117: 56 | AA117: 60 | AB117: 56 | AC117: 60 | AD117: 60 | AE117: 56 | AF117: 60 | AG117: 56 | AH117: 144 | AI117: 168 | AJ117: 176 | AK117: 180 | AL117: 188 | AM117: 196 | AN117: 192 | AO117: 200 | AP117: 200 | AQ117: 200 | AR117: 204 | AS117: 204 | AT117: 200 | AU117: 204 | AV117: 204 | AW117: 204 | AX117: 204 | AY117: 200 | AZ117: 208 | BA117: 204 | BB117: 212 | BC117: 216 | BD117: 216 | BE117: 212 | BF117: 224 | BG117: 216 | BH117: 216 | BI117: 216 | BJ117: 216 | BK117: 212 | BL117: 204 | BM117: 192 | BN117: 180 | BO117: 160 | BP117: 96 | BQ117: 88 | BR117: 96 | BS117: 92 | BT117: 84 | BU117: 76 | BV117: 92 | BW117: 108 | BX117: 116 | BY117: 120 | BZ117: 132 | CA117: 128 | CB117: 128 | CC117: 132 | CD117: 128 | CE117: 124 | CF117: 116 | CG117: 104 | CH117: 92 | CI117: 76 | CJ117: 72 | CK117: 64 | CL117: 60 | CM117: 60 | CN117: 56 | CO117: 60 | CP117: 56 | CQ117: 60 | CR117: 60 | CS117: 56
A118: 2011-10-20 | B118: 60 | C118: 60 | D118: 60 | E118: 64 | F118: 60 | G118: 60 | H118: 60 | I118: 60 | J118: 60 | K118: 60 | L118: 64 | M118: 56 | N118: - | O118: - | P118: - | Q118: - | R118: 64 | S118: 60 | T118: 60 | U118: 60 | V118: 64 | W118: 60 | X118: 60 | Y118: 60 | Z118: 64 | AA118: 56 | AB118: 60 | AC118: 60 | AD118: 60 | AE118: 64 | AF118: 60 | AG118: 60 | AH118: 152 | AI118: 168 | AJ118: 172 | AK118: 176 | AL118: 184 | AM118: 196 | AN118: 200 | AO118: 204 | AP118: 204 | AQ118: 216 | AR118: 212 | AS118: 216 | AT118: 212 | AU118: 216 | AV118: 212 | AW118: 208 | AX118: 208 | AY118: 212 | AZ118: 212 | BA118: 216 | BB118: 220 | BC118: 220 | BD118: 220 | BE118: 224 | BF118: 220 | BG118: 220 | BH118: 216 | BI118: 228 | BJ118: 220 | BK118: 212 | BL118: 200 | BM118: 196 | BN118: 176 | BO118: 152 | BP118: 88 | BQ118: 76 | BR118: 72 | BS118: 80 | BT118: 88 | BU118: 80 | BV118: 96 | BW118: 104 | BX118: 104 | BY118: 108 | BZ118: 112 | CA118: 108 | CB118: 112 | CC118: 112 | CD118: 100 | CE118: 88 | CF118: 88 | CG118: 96 | CH118: 92 | CI118: 84 | CJ118: 72 | CK118: 68 | CL118: 56 | CM118: 60 | CN118: 60 | CO118: 56 | CP118: 60 | CQ118: 60 | CR118: 56 | CS118: 60
A119: 2011-10-21 | B119: 56 | C119: 64 | D119: 60 | E119: 60 | F119: 64 | G119: 60 | H119: 60 | I119: 64 | J119: 64 | K119: 56 | L119: 60 | M119: 64 | N119: - | O119: - | P119: - | Q119: - | R119: 60 | S119: 60 | T119: 60 | U119: 64 | V119: 60 | W119: 60 | X119: 64 | Y119: 60 | Z119: 60 | AA119: 60 | AB119: 60 | AC119: 60 | AD119: 60 | AE119: 60 | AF119: 60 | AG119: 64 | AH119: 152 | AI119: 168 | AJ119: 164 | AK119: 172 | AL119: 184 | AM119: 208 | AN119: 200 | AO119: 204 | AP119: 212 | AQ119: 204 | AR119: 208 | AS119: 212 | AT119: 216 | AU119: 212 | AV119: 208 | AW119: 208 | AX119: 204 | AY119: 200 | AZ119: 204 | BA119: 212 | BB119: 220 | BC119: 212 | BD119: 212 | BE119: 216 | BF119: 220 | BG119: 220 | BH119: 220 | BI119: 232 | BJ119: 228 | BK119: 212 | BL119: 208 | BM119: 200 | BN119: 176 | BO119: 152 | BP119: 92 | BQ119: 72 | BR119: 72 | BS119: 64 | BT119: 68 | BU119: 64 | BV119: 76 | BW119: 80 | BX119: 84 | BY119: 88 | BZ119: 80 | CA119: 76 | CB119: 80 | CC119: 80 | CD119: 84 | CE119: 84 | CF119: 84 | CG119: 84 | CH119: 80 | CI119: 80 | CJ119: 68 | CK119: 64 | CL119: 60 | CM119: 56 | CN119: 56 | CO119: 60 | CP119: 56 | CQ119: 56 | CR119: 56 | CS119: 60
A120: 2011-10-22 | B120: 56 | C120: 60 | D120: 60 | E120: 60 | F120: 56 | G120: 60 | H120: 60 | I120: 60 | J120: 64 | K120: 56 | L120: 60 | M120: 60 | N120: - | O120: - | P120: - | Q120: - | R120: 60 | S120: 60 | T120: 60 | U120: 60 | V120: 60 | W120: 60 | X120: 60 | Y120: 60 | Z120: 60 | AA120: 60 | AB120: 56 | AC120: 60 | AD120: 60 | AE120: 60 | AF120: 60 | AG120: 60 | AH120: 60 | AI120: 64 | AJ120: 64 | AK120: 56 | AL120: 64 | AM120: 64 | AN120: 64 | AO120: 64 | AP120: 64 | AQ120: 64 | AR120: 64 | AS120: 60 | AT120: 64 | AU120: 68 | AV120: 60 | AW120: 64 | AX120: 68 | AY120: 64 | AZ120: 64 | BA120: 64 | BB120: 64 | BC120: 64 | BD120: 64 | BE120: 64 | BF120: 64 | BG120: 60 | BH120: 64 | BI120: 64 | BJ120: 64 | BK120: 68 | BL120: 60 | BM120: 64 | BN120: 64 | BO120: 68 | BP120: 64 | BQ120: 68 | BR120: 68 | BS120: 68 | BT120: 64 | BU120: 68 | BV120: 64 | BW120: 64 | BX120: 68 | BY120: 64 | BZ120: 68 | CA120: 64 | CB120: 64 | CC120: 68 | CD120: 68 | CE120: 68 | CF120: 68 | CG120: 64 | CH120: 64 | CI120: 68 | CJ120: 68 | CK120: 64 | CL120: 56 | CM120: 60 | CN120: 56 | CO120: 56 | CP120: 56 | CQ120: 60 | CR120: 56 | CS120: 56
A121: 2011-10-23 | B121: 56 | C121: 64 | D121: 56 | E121: 60 | F121: 64 | G121: 56 | H121: 60 | I121: 60 | J121: 60 | K121: 60 | L121: 60 | M121: 56 | N121: - | O121: - | P121: - | Q121: - | R121: 64 | S121: 60 | T121: 56 | U121: 60 | V121: 64 | W121: 56 | X121: 60 | Y121: 60 | Z121: 56 | AA121: 60 | AB121: 64 | AC121: 56 | AD121: 60 | AE121: 60 | AF121: 60 | AG121: 56 | AH121: 60 | AI121: 64 | AJ121: 64 | AK121: 60 | AL121: 60 | AM121: 68 | AN121: 60 | AO121: 64 | AP121: 68 | AQ121: 60 | AR121: 64 | AS121: 64 | AT121: 60 | AU121: 64 | AV121: 64 | AW121: 64 | AX121: 60 | AY121: 68 | AZ121: 60 | BA121: 64 | BB121: 64 | BC121: 64 | BD121: 64 | BE121: 60 | BF121: 64 | BG121: 64 | BH121: 60 | BI121: 64 | BJ121: 64 | BK121: 64 | BL121: 64 | BM121: 64 | BN121: 60 | BO121: 68 | BP121: 64 | BQ121: 68 | BR121: 64 | BS121: 68 | BT121: 68 | BU121: 64 | BV121: 68 | BW121: 68 | BX121: 64 | BY121: 68 | BZ121: 64 | CA121: 68 | CB121: 64 | CC121: 64 | CD121: 68 | CE121: 64 | CF121: 68 | CG121: 64 | CH121: 68 | CI121: 68 | CJ121: 60 | CK121: 68 | CL121: 56 | CM121: 56 | CN121: 56 | CO121: 60 | CP121: 56 | CQ121: 56 | CR121: 56 | CS121: 56
A122: 2011-10-24 | B122: 56 | C122: 64 | D122: 56 | E122: 60 | F122: 60 | G122: 60 | H122: 60 | I122: 60 | J122: 56 | K122: 60 | L122: 60 | M122: 60 | N122: - | O122: - | P122: - | Q122: - | R122: 56 | S122: 60 | T122: 60 | U122: 56 | V122: 60 | W122: 60 | X122: 60 | Y122: 60 | Z122: 56 | AA122: 60 | AB122: 60 | AC122: 60 | AD122: 60 | AE122: 60 | AF122: 60 | AG122: 60 | AH122: 152 | AI122: 164 | AJ122: 168 | AK122: 172 | AL122: 188 | AM122: 192 | AN122: 196 | AO122: 196 | AP122: 200 | AQ122: 204 | AR122: 204 | AS122: 204 | AT122: 204 | AU122: 204 | AV122: 200 | AW122: 200 | AX122: 204 | AY122: 200 | AZ122: 208 | BA122: 208 | BB122: 208 | BC122: 200 | BD122: 208 | BE122: 208 | BF122: 212 | BG122: 200 | BH122: 204 | BI122: 200 | BJ122: 196 | BK122: 200 | BL122: 188 | BM122: 184 | BN122: 180 | BO122: 160 | BP122: 100 | BQ122: 80 | BR122: 84 | BS122: 80 | BT122: 76 | BU122: 84 | BV122: 100 | BW122: 108 | BX122: 112 | BY122: 108 | BZ122: 108 | CA122: 112 | CB122: 116 | CC122: 116 | CD122: 120 | CE122: 116 | CF122: 104 | CG122: 100 | CH122: 100 | CI122: 88 | CJ122: 76 | CK122: 72 | CL122: 56 | CM122: 60 | CN122: 56 | CO122: 60 | CP122: 56 | CQ122: 60 | CR122: 56 | CS122: 56
A123: 2011-10-25 | B123: 56 | C123: 60 | D123: 60 | E123: 60 | F123: 64 | G123: 56 | H123: 60 | I123: 60 | J123: 60 | K123: 60 | L123: 60 | M123: 64 | N123: - | O123: - | P123: - | Q123: - | R123: 56 | S123: 64 | T123: 60 | U123: 60 | V123: 60 | W123: 60 | X123: 60 | Y123: 60 | Z123: 60 | AA123: 60 | AB123: 60 | AC123: 56 | AD123: 60 | AE123: 60 | AF123: 60 | AG123: 60 | AH123: 152 | AI123: 164 | AJ123: 172 | AK123: 176 | AL123: 184 | AM123: 196 | AN123: 196 | AO123: 204 | AP123: 200 | AQ123: 204 | AR123: 204 | AS123: 204 | AT123: 204 | AU123: 204 | AV123: 200 | AW123: 200 | AX123: 196 | AY123: 200 | AZ123: 200 | BA123: 200 | BB123: 204 | BC123: 200 | BD123: 204 | BE123: 204 | BF123: 208 | BG123: 200 | BH123: 200 | BI123: 200 | BJ123: 196 | BK123: 192 | BL123: 188 | BM123: 188 | BN123: 172 | BO123: 156 | BP123: 96 | BQ123: 80 | BR123: 80 | BS123: 84 | BT123: 84 | BU123: 96 | BV123: 116 | BW123: 120 | BX123: 128 | BY123: 124 | BZ123: 120 | CA123: 124 | CB123: 116 | CC123: 120 | CD123: 108 | CE123: 104 | CF123: 96 | CG123: 96 | CH123: 92 | CI123: 88 | CJ123: 80 | CK123: 68 | CL123: 60 | CM123: 60 | CN123: 64 | CO123: 56 | CP123: 60 | CQ123: 64 | CR123: 56 | CS123: 60
A124: 2011-10-26 | B124: 60 | C124: 64 | D124: 64 | E124: 60 | F124: 64 | G124: 64 | H124: 64 | I124: 60 | J124: 64 | K124: 60 | L124: 64 | M124: 60 | N124: - | O124: - | P124: - | Q124: - | R124: 64 | S124: 64 | T124: 60 | U124: 64 | V124: 64 | W124: 60 | X124: 64 | Y124: 64 | Z124: 60 | AA124: 64 | AB124: 64 | AC124: 60 | AD124: 64 | AE124: 60 | AF124: 64 | AG124: 64 | AH124: 148 | AI124: 164 | AJ124: 168 | AK124: 176 | AL124: 188 | AM124: 188 | AN124: 196 | AO124: 196 | AP124: 196 | AQ124: 196 | AR124: 196 | AS124: 200 | AT124: 200 | AU124: 200 | AV124: 196 | AW124: 200 | AX124: 196 | AY124: 200 | AZ124: 200 | BA124: 200 | BB124: 200 | BC124: 200 | BD124: 204 | BE124: 204 | BF124: 204 | BG124: 200 | BH124: 204 | BI124: 204 | BJ124: 200 | BK124: 192 | BL124: 188 | BM124: 184 | BN124: 176 | BO124: 168 | BP124: 96 | BQ124: 88 | BR124: 80 | BS124: 80 | BT124: 80 | BU124: 88 | BV124: 108 | BW124: 108 | BX124: 116 | BY124: 108 | BZ124: 112 | CA124: 112 | CB124: 116 | CC124: 112 | CD124: 116 | CE124: 112 | CF124: 112 | CG124: 116 | CH124: 108 | CI124: 96 | CJ124: 84 | CK124: 72 | CL124: 56 | CM124: 60 | CN124: 56 | CO124: 60 | CP124: 56 | CQ124: 60 | CR124: 56 | CS124: 60
A125: 2011-10-27 | B125: 60 | C125: 60 | D125: 60 | E125: 60 | F125: 60 | G125: 64 | H125: 60 | I125: 60 | J125: 60 | K125: 60 | L125: 60 | M125: 60 | N125: - | O125: - | P125: - | Q125: - | R125: 60 | S125: 60 | T125: 60 | U125: 68 | V125: 64 | W125: 60 | X125: 60 | Y125: 64 | Z125: 60 | AA125: 60 | AB125: 64 | AC125: 56 | AD125: 60 | AE125: 60 | AF125: 60 | AG125: 60 | AH125: 140 | AI125: 160 | AJ125: 168 | AK125: 172 | AL125: 180 | AM125: 192 | AN125: 196 | AO125: 192 | AP125: 200 | AQ125: 196 | AR125: 200 | AS125: 196 | AT125: 192 | AU125: 200 | AV125: 192 | AW125: 196 | AX125: 192 | AY125: 196 | AZ125: 196 | BA125: 196 | BB125: 204 | BC125: 200 | BD125: 204 | BE125: 200 | BF125: 200 | BG125: 204 | BH125: 196 | BI125: 196 | BJ125: 200 | BK125: 188 | BL125: 188 | BM125: 176 | BN125: 168 | BO125: 156 | BP125: 92 | BQ125: 80 | BR125: 76 | BS125: 84 | BT125: 92 | BU125: 96 | BV125: 104 | BW125: 104 | BX125: 104 | BY125: 112 | BZ125: 104 | CA125: 108 | CB125: 112 | CC125: 112 | CD125: 108 | CE125: 100 | CF125: 84 | CG125: 80 | CH125: 80 | CI125: 76 | CJ125: 80 | CK125: 64 | CL125: 56 | CM125: 60 | CN125: 52 | CO125: 60 | CP125: 56 | CQ125: 52 | CR125: 60 | CS125: 56
A126: 2011-10-28 | B126: 60 | C126: 56 | D126: 60 | E126: 60 | F126: 56 | G126: 60 | H126: 60 | I126: 56 | J126: 60 | K126: 60 | L126: 56 | M126: 60 | N126: - | O126: - | P126: - | Q126: - | R126: 56 | S126: 60 | T126: 60 | U126: 56 | V126: 60 | W126: 60 | X126: 56 | Y126: 60 | Z126: 60 | AA126: 56 | AB126: 60 | AC126: 56 | AD126: 56 | AE126: 64 | AF126: 56 | AG126: 56 | AH126: 152 | AI126: 160 | AJ126: 164 | AK126: 176 | AL126: 176 | AM126: 192 | AN126: 188 | AO126: 192 | AP126: 196 | AQ126: 196 | AR126: 196 | AS126: 200 | AT126: 192 | AU126: 196 | AV126: 196 | AW126: 192 | AX126: 196 | AY126: 196 | AZ126: 192 | BA126: 204 | BB126: 204 | BC126: 200 | BD126: 208 | BE126: 200 | BF126: 200 | BG126: 208 | BH126: 196 | BI126: 204 | BJ126: 192 | BK126: 192 | BL126: 184 | BM126: 176 | BN126: 156 | BO126: 164 | BP126: 88 | BQ126: 72 | BR126: 72 | BS126: 72 | BT126: 68 | BU126: 72 | BV126: 64 | BW126: 72 | BX126: 84 | BY126: 72 | BZ126: 76 | CA126: 80 | CB126: 72 | CC126: 80 | CD126: 80 | CE126: 72 | CF126: 72 | CG126: 64 | CH126: 68 | CI126: 76 | CJ126: 64 | CK126: 60 | CL126: 60 | CM126: 56 | CN126: 56 | CO126: 56 | CP126: 56 | CQ126: 56 | CR126: 56 | CS126: 52
A127: 2011-10-29 | B127: 56 | C127: 56 | D127: 60 | E127: 56 | F127: 60 | G127: 60 | H127: 56 | I127: 60 | J127: 60 | K127: 56 | L127: 60 | M127: 56 | N127: - | O127: - | P127: - | Q127: - | R127: 60 | S127: 60 | T127: 56 | U127: 60 | V127: 60 | W127: 56 | X127: 60 | Y127: 56 | Z127: 56 | AA127: 60 | AB127: 60 | AC127: 56 | AD127: 60 | AE127: 60 | AF127: 56 | AG127: 60 | AH127: 52 | AI127: 64 | AJ127: 64 | AK127: 56 | AL127: 64 | AM127: 60 | AN127: 60 | AO127: 64 | AP127: 60 | AQ127: 64 | AR127: 64 | AS127: 60 | AT127: 60 | AU127: 60 | AV127: 60 | AW127: 64 | AX127: 64 | AY127: 60 | AZ127: 64 | BA127: 60 | BB127: 64 | BC127: 64 | BD127: 56 | BE127: 64 | BF127: 60 | BG127: 60 | BH127: 64 | BI127: 64 | BJ127: 56 | BK127: 68 | BL127: 60 | BM127: 60 | BN127: 64 | BO127: 64 | BP127: 68 | BQ127: 68 | BR127: 64 | BS127: 64 | BT127: 68 | BU127: 64 | BV127: 64 | BW127: 68 | BX127: 60 | BY127: 64 | BZ127: 68 | CA127: 64 | CB127: 64 | CC127: 64 | CD127: 64 | CE127: 64 | CF127: 64 | CG127: 64 | CH127: 68 | CI127: 64 | CJ127: 64 | CK127: 68 | CL127: 52 | CM127: 56 | CN127: 60 | CO127: 52 | CP127: 56 | CQ127: 56 | CR127: 56 | CS127: 56
A128: 2011-10-30 | B128: 56 | C128: 60 | D128: 60 | E128: 56 | F128: 60 | G128: 56 | H128: 60 | I128: 60 | J128: 56 | K128: 60 | L128: 56 | M128: 56 | N128: 64 | O128: 56 | P128: 56 | Q128: 60 | R128: 56 | S128: 60 | T128: 60 | U128: 56 | V128: 56 | W128: 60 | X128: 56 | Y128: 60 | Z128: 56 | AA128: 56 | AB128: 60 | AC128: 56 | AD128: 56 | AE128: 64 | AF128: 52 | AG128: 60 | AH128: 60 | AI128: 64 | AJ128: 60 | AK128: 60 | AL128: 60 | AM128: 64 | AN128: 64 | AO128: 60 | AP128: 64 | AQ128: 60 | AR128: 60 | AS128: 64 | AT128: 60 | AU128: 60 | AV128: 68 | AW128: 56 | AX128: 64 | AY128: 64 | AZ128: 60 | BA128: 64 | BB128: 60 | BC128: 60 | BD128: 64 | BE128: 60 | BF128: 64 | BG128: 60 | BH128: 60 | BI128: 64 | BJ128: 64 | BK128: 60 | BL128: 64 | BM128: 60 | BN128: 64 | BO128: 64 | BP128: 64 | BQ128: 64 | BR128: 68 | BS128: 64 | BT128: 68 | BU128: 64 | BV128: 64 | BW128: 68 | BX128: 60 | BY128: 64 | BZ128: 68 | CA128: 64 | CB128: 60 | CC128: 68 | CD128: 64 | CE128: 64 | CF128: 64 | CG128: 64 | CH128: 64 | CI128: 68 | CJ128: 60 | CK128: 64 | CL128: 56 | CM128: 56 | CN128: 56 | CO128: 56 | CP128: 52 | CQ128: 60 | CR128: 56 | CS128: 52
A129: 2011-10-31 | B129: 52 | C129: 60 | D129: 60 | E129: 56 | F129: 60 | G129: 56 | H129: 56 | I129: 60 | J129: 60 | K129: 56 | L129: 60 | M129: 56 | N129: - | O129: - | P129: - | Q129: - | R129: 60 | S129: 60 | T129: 56 | U129: 56 | V129: 60 | W129: 56 | X129: 56 | Y129: 60 | Z129: 52 | AA129: 64 | AB129: 56 | AC129: 52 | AD129: 64 | AE129: 56 | AF129: 56 | AG129: 76 | AH129: 140 | AI129: 156 | AJ129: 164 | AK129: 168 | AL129: 180 | AM129: 180 | AN129: 180 | AO129: 188 | AP129: 184 | AQ129: 188 | AR129: 192 | AS129: 196 | AT129: 192 | AU129: 192 | AV129: 188 | AW129: 192 | AX129: 188 | AY129: 184 | AZ129: 188 | BA129: 184 | BB129: 192 | BC129: 196 | BD129: 188 | BE129: 188 | BF129: 196 | BG129: 192 | BH129: 188 | BI129: 192 | BJ129: 188 | BK129: 180 | BL129: 172 | BM129: 168 | BN129: 160 | BO129: 148 | BP129: 80 | BQ129: 68 | BR129: 64 | BS129: 68 | BT129: 64 | BU129: 60 | BV129: 72 | BW129: 72 | BX129: 64 | BY129: 76 | BZ129: 76 | CA129: 80 | CB129: 76 | CC129: 80 | CD129: 80 | CE129: 80 | CF129: 72 | CG129: 72 | CH129: 64 | CI129: 60 | CJ129: 64 | CK129: 60 | CL129: 52 | CM129: 60 | CN129: 52 | CO129: 56 | CP129: 56 | CQ129: 56 | CR129: 56 | CS129: 56
A130: 2011-11-01 | B130: 60 | C130: 56 | D130: 56 | E130: 60 | F130: 56 | G130: 56 | H130: 60 | I130: 56 | J130: 56 | K130: 60 | L130: 56 | M130: 60 | N130: 56 | O130: 56 | P130: 60 | Q130: 56 | R130: 56 | S130: 60 | T130: 56 | U130: 56 | V130: 60 | W130: 56 | X130: 60 | Y130: 56 | Z130: 56 | AA130: 60 | AB130: 52 | AC130: 60 | AD130: 60 | AE130: 60 | AF130: 64 | AG130: 56 | AH130: 60 | AI130: 64 | AJ130: 60 | AK130: 64 | AL130: 64 | AM130: 56 | AN130: 64 | AO130: 60 | AP130: 60 | AQ130: 64 | AR130: 64 | AS130: 60 | AT130: 64 | AU130: 60 | AV130: 60 | AW130: 64 | AX130: 60 | AY130: 60 | AZ130: 60 | BA130: 64 | BB130: 60 | BC130: 64 | BD130: 60 | BE130: 64 | BF130: 60 | BG130: 60 | BH130: 64 | BI130: 60 | BJ130: 64 | BK130: 68 | BL130: 64 | BM130: 68 | BN130: 64 | BO130: 64 | BP130: 68 | BQ130: 64 | BR130: 64 | BS130: 68 | BT130: 60 | BU130: 64 | BV130: 64 | BW130: 64 | BX130: 68 | BY130: 64 | BZ130: 60 | CA130: 68 | CB130: 64 | CC130: 64 | CD130: 68 | CE130: 64 | CF130: 64 | CG130: 64 | CH130: 56 | CI130: 56 | CJ130: 56 | CK130: 52 | CL130: 56 | CM130: 56 | CN130: 52 | CO130: 56 | CP130: 56 | CQ130: 52 | CR130: 56 | CS130: 52
A131: 2011-11-02 | B131: 56 | C131: 60 | D131: 56 | E131: 60 | F131: 60 | G131: 52 | H131: 60 | I131: 60 | J131: 56 | K131: 60 | L131: 56 | M131: 52 | N131: 60 | O131: 56 | P131: 56 | Q131: 60 | R131: 52 | S131: 60 | T131: 56 | U131: 56 | V131: 60 | W131: 52 | X131: 60 | Y131: 56 | Z131: 52 | AA131: 60 | AB131: 52 | AC131: 60 | AD131: 152 | AE131: 160 | AF131: 168 | AG131: 172 | AH131: 176 | AI131: 188 | AJ131: 184 | AK131: 188 | AL131: 192 | AM131: 192 | AN131: 192 | AO131: 200 | AP131: 192 | AQ131: 196 | AR131: 192 | AS131: 192 | AT131: 192 | AU131: 196 | AV131: 188 | AW131: 196 | AX131: 192 | AY131: 192 | AZ131: 200 | BA131: 196 | BB131: 196 | BC131: 204 | BD131: 196 | BE131: 192 | BF131: 192 | BG131: 184 | BH131: 180 | BI131: 172 | BJ131: 164 | BK131: 164 | BL131: 92 | BM131: 72 | BN131: 84 | BO131: 68 | BP131: 76 | BQ131: 80 | BR131: 88 | BS131: 96 | BT131: 100 | BU131: 92 | BV131: 92 | BW131: 96 | BX131: 92 | BY131: 100 | BZ131: 108 | CA131: 96 | CB131: 92 | CC131: 84 | CD131: 80 | CE131: 80 | CF131: 68 | CG131: 64 | CH131: 60 | CI131: 56 | CJ131: 56 | CK131: 60 | CL131: 52 | CM131: 60 | CN131: 56 | CO131: 56 | CP131: 60 | CQ131: 56 | CR131: 52 | CS131: 60
A132: 2011-11-03 | B132: 56 | C132: 60 | D132: 60 | E132: 60 | F132: 60 | G132: 60 | H132: 60 | I132: 60 | J132: 56 | K132: 60 | L132: 64 | M132: 56 | N132: 60 | O132: 60 | P132: 60 | Q132: 60 | R132: 60 | S132: 56 | T132: 60 | U132: 60 | V132: 60 | W132: 60 | X132: 60 | Y132: 56 | Z132: 60 | AA132: 60 | AB132: 56 | AC132: 64 | AD132: 144 | AE132: 164 | AF132: 168 | AG132: 172 | AH132: 180 | AI132: 188 | AJ132: 192 | AK132: 200 | AL132: 192 | AM132: 192 | AN132: 200 | AO132: 196 | AP132: 196 | AQ132: 196 | AR132: 192 | AS132: 196 | AT132: 192 | AU132: 192 | AV132: 196 | AW132: 192 | AX132: 200 | AY132: 200 | AZ132: 196 | BA132: 200 | BB132: 200 | BC132: 200 | BD132: 204 | BE132: 196 | BF132: 196 | BG132: 196 | BH132: 184 | BI132: 180 | BJ132: 176 | BK132: 168 | BL132: 96 | BM132: 88 | BN132: 96 | BO132: 96 | BP132: 100 | BQ132: 108 | BR132: 104 | BS132: 104 | BT132: 96 | BU132: 100 | BV132: 96 | BW132: 96 | BX132: 96 | BY132: 92 | BZ132: 96 | CA132: 92 | CB132: 80 | CC132: 80 | CD132: 76 | CE132: 80 | CF132: 72 | CG132: 72 | CH132: 60 | CI132: 60 | CJ132: 60 | CK132: 60 | CL132: 60 | CM132: 56 | CN132: 60 | CO132: 60 | CP132: 60 | CQ132: 56 | CR132: 56 | CS132: 60
A133: 2011-11-04 | B133: 60 | C133: 56 | D133: 64 | E133: 60 | F133: 60 | G133: 60 | H133: 64 | I133: 60 | J133: 60 | K133: 60 | L133: 60 | M133: 60 | N133: 64 | O133: 60 | P133: 64 | Q133: 60 | R133: 60 | S133: 60 | T133: 64 | U133: 56 | V133: 64 | W133: 56 | X133: 60 | Y133: 64 | Z133: 60 | AA133: 60 | AB133: 60 | AC133: 64 | AD133: 144 | AE133: 168 | AF133: 168 | AG133: 172 | AH133: 184 | AI133: 188 | AJ133: 188 | AK133: 192 | AL133: 196 | AM133: 196 | AN133: 192 | AO133: 200 | AP133: 196 | AQ133: 196 | AR133: 196 | AS133: 200 | AT133: 192 | AU133: 192 | AV133: 192 | AW133: 196 | AX133: 192 | AY133: 192 | AZ133: 192 | BA133: 200 | BB133: 196 | BC133: 192 | BD133: 196 | BE133: 196 | BF133: 192 | BG133: 184 | BH133: 172 | BI133: 168 | BJ133: 156 | BK133: 152 | BL133: 88 | BM133: 72 | BN133: 68 | BO133: 68 | BP133: 64 | BQ133: 68 | BR133: 60 | BS133: 64 | BT133: 68 | BU133: 68 | BV133: 72 | BW133: 64 | BX133: 68 | BY133: 64 | BZ133: 64 | CA133: 64 | CB133: 64 | CC133: 64 | CD133: 68 | CE133: 60 | CF133: 68 | CG133: 68 | CH133: 56 | CI133: 60 | CJ133: 56 | CK133: 56 | CL133: 60 | CM133: 56 | CN133: 60 | CO133: 56 | CP133: 60 | CQ133: 56 | CR133: 56 | CS133: 60
A134: 2011-11-05 | B134: 56 | C134: 64 | D134: 60 | E134: 60 | F134: 64 | G134: 60 | H134: 60 | I134: 60 | J134: 60 | K134: 60 | L134: 60 | M134: 64 | N134: 56 | O134: 64 | P134: 60 | Q134: 60 | R134: 60 | S134: 60 | T134: 60 | U134: 60 | V134: 60 | W134: 60 | X134: 60 | Y134: 60 | Z134: 60 | AA134: 60 | AB134: 56 | AC134: 60 | AD134: 60 | AE134: 64 | AF134: 64 | AG134: 64 | AH134: 64 | AI134: 64 | AJ134: 60 | AK134: 64 | AL134: 64 | AM134: 60 | AN134: 64 | AO134: 64 | AP134: 64 | AQ134: 64 | AR134: 64 | AS134: 64 | AT134: 64 | AU134: 60 | AV134: 64 | AW134: 64 | AX134: 64 | AY134: 60 | AZ134: 64 | BA134: 60 | BB134: 64 | BC134: 64 | BD134: 60 | BE134: 64 | BF134: 64 | BG134: 64 | BH134: 64 | BI134: 64 | BJ134: 64 | BK134: 64 | BL134: 64 | BM134: 68 | BN134: 68 | BO134: 64 | BP134: 68 | BQ134: 64 | BR134: 68 | BS134: 64 | BT134: 64 | BU134: 64 | BV134: 68 | BW134: 64 | BX134: 64 | BY134: 68 | BZ134: 64 | CA134: 68 | CB134: 64 | CC134: 64 | CD134: 64 | CE134: 68 | CF134: 64 | CG134: 60 | CH134: 60 | CI134: 56 | CJ134: 60 | CK134: 56 | CL134: 56 | CM134: 60 | CN134: 56 | CO134: 60 | CP134: 60 | CQ134: 56 | CR134: 56 | CS134: 60
A135: 2011-11-06 | B135: 60 | C135: 56 | D135: 64 | E135: 60 | F135: 60 | G135: 60 | H135: 60 | I135: 60 | J135: 56 | K135: 60 | L135: 60 | M135: 64 | N135: 60 | O135: 60 | P135: 56 | Q135: 60 | R135: 56 | S135: 64 | T135: 60 | U135: 56 | V135: 64 | W135: 60 | X135: 56 | Y135: 60 | Z135: 60 | AA135: 60 | AB135: 60 | AC135: 60 | AD135: 60 | AE135: 64 | AF135: 60 | AG135: 60 | AH135: 60 | AI135: 64 | AJ135: 64 | AK135: 64 | AL135: 64 | AM135: 60 | AN135: 64 | AO135: 60 | AP135: 60 | AQ135: 64 | AR135: 60 | AS135: 60 | AT135: 60 | AU135: 64 | AV135: 60 | AW135: 60 | AX135: 64 | AY135: 64 | AZ135: 60 | BA135: 60 | BB135: 64 | BC135: 60 | BD135: 68 | BE135: 60 | BF135: 60 | BG135: 64 | BH135: 60 | BI135: 64 | BJ135: 64 | BK135: 64 | BL135: 64 | BM135: 64 | BN135: 68 | BO135: 64 | BP135: 68 | BQ135: 68 | BR135: 64 | BS135: 64 | BT135: 64 | BU135: 68 | BV135: 64 | BW135: 64 | BX135: 60 | BY135: 68 | BZ135: 64 | CA135: 64 | CB135: 68 | CC135: 64 | CD135: 64 | CE135: 68 | CF135: 64 | CG135: 64 | CH135: 56 | CI135: 60 | CJ135: 60 | CK135: 56 | CL135: 56 | CM135: 60 | CN135: 56 | CO135: 56 | CP135: 60 | CQ135: 56 | CR135: 60 | CS135: 56
A136: 2011-11-07 | B136: 60 | C136: 60 | D136: 64 | E136: 60 | F136: 60 | G136: 60 | H136: 60 | I136: 60 | J136: 60 | K136: 60 | L136: 60 | M136: 60 | N136: 60 | O136: 60 | P136: 60 | Q136: 60 | R136: 56 | S136: 60 | T136: 60 | U136: 60 | V136: 56 | W136: 64 | X136: 60 | Y136: 56 | Z136: 60 | AA136: 60 | AB136: 60 | AC136: 60 | AD136: 148 | AE136: 164 | AF136: 164 | AG136: 176 | AH136: 180 | AI136: 188 | AJ136: 196 | AK136: 188 | AL136: 192 | AM136: 192 | AN136: 196 | AO136: 196 | AP136: 196 | AQ136: 196 | AR136: 192 | AS136: 192 | AT136: 196 | AU136: 192 | AV136: 192 | AW136: 200 | AX136: 196 | AY136: 196 | AZ136: 192 | BA136: 196 | BB136: 200 | BC136: 196 | BD136: 200 | BE136: 188 | BF136: 192 | BG136: 184 | BH136: 176 | BI136: 176 | BJ136: 164 | BK136: 160 | BL136: 96 | BM136: 84 | BN136: 80 | BO136: 72 | BP136: 72 | BQ136: 80 | BR136: 100 | BS136: 104 | BT136: 108 | BU136: 104 | BV136: 104 | BW136: 100 | BX136: 100 | BY136: 100 | BZ136: 100 | CA136: 100 | CB136: 92 | CC136: 96 | CD136: 92 | CE136: 76 | CF136: 72 | CG136: 64 | CH136: 56 | CI136: 60 | CJ136: 56 | CK136: 60 | CL136: 56 | CM136: 60 | CN136: 56 | CO136: 60 | CP136: 56 | CQ136: 56 | CR136: 60 | CS136: 56
A137: 2011-11-08 | B137: 60 | C137: 60 | D137: 64 | E137: 60 | F137: 60 | G137: 64 | H137: 60 | I137: 60 | J137: 60 | K137: 64 | L137: 56 | M137: 64 | N137: 60 | O137: 60 | P137: 60 | Q137: 60 | R137: 64 | S137: 56 | T137: 64 | U137: 60 | V137: 60 | W137: 60 | X137: 60 | Y137: 60 | Z137: 60 | AA137: 64 | AB137: 56 | AC137: 64 | AD137: 148 | AE137: 164 | AF137: 176 | AG137: 176 | AH137: 184 | AI137: 188 | AJ137: 188 | AK137: 196 | AL137: 192 | AM137: 196 | AN137: 196 | AO137: 196 | AP137: 196 | AQ137: 192 | AR137: 196 | AS137: 192 | AT137: 196 | AU137: 192 | AV137: 192 | AW137: 192 | AX137: 196 | AY137: 200 | AZ137: 200 | BA137: 196 | BB137: 200 | BC137: 196 | BD137: 196 | BE137: 196 | BF137: 192 | BG137: 180 | BH137: 180 | BI137: 168 | BJ137: 156 | BK137: 156 | BL137: 92 | BM137: 80 | BN137: 92 | BO137: 100 | BP137: 96 | BQ137: 104 | BR137: 92 | BS137: 88 | BT137: 100 | BU137: 92 | BV137: 100 | BW137: 100 | BX137: 104 | BY137: 100 | BZ137: 92 | CA137: 88 | CB137: 92 | CC137: 80 | CD137: 84 | CE137: 80 | CF137: 68 | CG137: 64 | CH137: 60 | CI137: 56 | CJ137: 56 | CK137: 56 | CL137: 56 | CM137: 56 | CN137: 56 | CO137: 60 | CP137: 56 | CQ137: 56 | CR137: 56 | CS137: 56
A138: 2011-11-09 | B138: 60 | C138: 60 | D138: 60 | E138: 60 | F138: 60 | G138: 60 | H138: 56 | I138: 60 | J138: 60 | K138: 60 | L138: 60 | M138: 60 | N138: 60 | O138: 60 | P138: 56 | Q138: 60 | R138: 60 | S138: 60 | T138: 60 | U138: 60 | V138: 60 | W138: 60 | X138: 60 | Y138: 56 | Z138: 60 | AA138: 60 | AB138: 56 | AC138: 64 | AD138: 148 | AE138: 168 | AF138: 168 | AG138: 172 | AH138: 180 | AI138: 188 | AJ138: 188 | AK138: 196 | AL138: 192 | AM138: 200 | AN138: 200 | AO138: 196 | AP138: 200 | AQ138: 200 | AR138: 196 | AS138: 196 | AT138: 196 | AU138: 196 | AV138: 192 | AW138: 196 | AX138: 196 | AY138: 196 | AZ138: 196 | BA138: 200 | BB138: 200 | BC138: 196 | BD138: 196 | BE138: 196 | BF138: 192 | BG138: 188 | BH138: 180 | BI138: 176 | BJ138: 164 | BK138: 168 | BL138: 96 | BM138: 80 | BN138: 80 | BO138: 84 | BP138: 80 | BQ138: 80 | BR138: 96 | BS138: 96 | BT138: 104 | BU138: 100 | BV138: 116 | BW138: 108 | BX138: 108 | BY138: 108 | BZ138: 100 | CA138: 92 | CB138: 84 | CC138: 84 | CD138: 80 | CE138: 68 | CF138: 64 | CG138: 68 | CH138: 56 | CI138: 60 | CJ138: 56 | CK138: 56 | CL138: 60 | CM138: 56 | CN138: 56 | CO138: 56 | CP138: 60 | CQ138: 56 | CR138: 60 | CS138: 56
A139: 2011-11-10 | B139: 56 | C139: 64 | D139: 60 | E139: 60 | F139: 60 | G139: 56 | H139: 60 | I139: 60 | J139: 60 | K139: 60 | L139: 60 | M139: 60 | N139: 56 | O139: 64 | P139: 60 | Q139: 60 | R139: 60 | S139: 64 | T139: 56 | U139: 64 | V139: 56 | W139: 60 | X139: 60 | Y139: 60 | Z139: 56 | AA139: 60 | AB139: 60 | AC139: 64 | AD139: 148 | AE139: 168 | AF139: 172 | AG139: 172 | AH139: 180 | AI139: 188 | AJ139: 196 | AK139: 188 | AL139: 200 | AM139: 192 | AN139: 196 | AO139: 200 | AP139: 196 | AQ139: 196 | AR139: 196 | AS139: 196 | AT139: 192 | AU139: 192 | AV139: 192 | AW139: 192 | AX139: 196 | AY139: 192 | AZ139: 196 | BA139: 192 | BB139: 196 | BC139: 196 | BD139: 192 | BE139: 196 | BF139: 184 | BG139: 188 | BH139: 176 | BI139: 168 | BJ139: 164 | BK139: 164 | BL139: 92 | BM139: 76 | BN139: 80 | BO139: 84 | BP139: 80 | BQ139: 88 | BR139: 96 | BS139: 100 | BT139: 96 | BU139: 100 | BV139: 96 | BW139: 92 | BX139: 96 | BY139: 92 | BZ139: 92 | CA139: 92 | CB139: 96 | CC139: 100 | CD139: 80 | CE139: 72 | CF139: 64 | CG139: 68 | CH139: 60 | CI139: 56 | CJ139: 60 | CK139: 56 | CL139: 60 | CM139: 60 | CN139: 60 | CO139: 60 | CP139: 60 | CQ139: 56 | CR139: 56 | CS139: 60
A140: 2011-11-11 | B140: 60 | C140: 64 | D140: 60 | E140: 60 | F140: 56 | G140: 64 | H140: 56 | I140: 60 | J140: 60 | K140: 56 | L140: 64 | M140: 56 | N140: 60 | O140: 60 | P140: 56 | Q140: 60 | R140: 60 | S140: 60 | T140: 60 | U140: 56 | V140: 60 | W140: 60 | X140: 60 | Y140: 60 | Z140: 56 | AA140: 56 | AB140: 60 | AC140: 64 | AD140: 144 | AE140: 168 | AF140: 168 | AG140: 172 | AH140: 184 | AI140: 184 | AJ140: 192 | AK140: 188 | AL140: 188 | AM140: 196 | AN140: 192 | AO140: 196 | AP140: 192 | AQ140: 188 | AR140: 196 | AS140: 188 | AT140: 192 | AU140: 192 | AV140: 188 | AW140: 192 | AX140: 192 | AY140: 188 | AZ140: 192 | BA140: 196 | BB140: 192 | BC140: 188 | BD140: 192 | BE140: 188 | BF140: 184 | BG140: 176 | BH140: 176 | BI140: 168 | BJ140: 156 | BK140: 156 | BL140: 88 | BM140: 76 | BN140: 68 | BO140: 68 | BP140: 68 | BQ140: 72 | BR140: 64 | BS140: 68 | BT140: 80 | BU140: 72 | BV140: 76 | BW140: 80 | BX140: 76 | BY140: 80 | BZ140: 76 | CA140: 72 | CB140: 76 | CC140: 68 | CD140: 68 | CE140: 72 | CF140: 64 | CG140: 60 | CH140: 60 | CI140: 56 | CJ140: 60 | CK140: 56 | CL140: 56 | CM140: 60 | CN140: 52 | CO140: 56 | CP140: 56 | CQ140: 60 | CR140: 52 | CS140: 56
A141: 2011-11-12 | B141: 60 | C141: 56 | D141: 64 | E141: 56 | F141: 60 | G141: 60 | H141: 56 | I141: 60 | J141: 60 | K141: 60 | L141: 60 | M141: 56 | N141: 60 | O141: 60 | P141: 56 | Q141: 64 | R141: 56 | S141: 56 | T141: 64 | U141: 56 | V141: 60 | W141: 60 | X141: 56 | Y141: 60 | Z141: 56 | AA141: 60 | AB141: 60 | AC141: 56 | AD141: 60 | AE141: 60 | AF141: 64 | AG141: 64 | AH141: 60 | AI141: 60 | AJ141: 60 | AK141: 60 | AL141: 64 | AM141: 64 | AN141: 56 | AO141: 64 | AP141: 56 | AQ141: 64 | AR141: 64 | AS141: 56 | AT141: 64 | AU141: 60 | AV141: 60 | AW141: 64 | AX141: 64 | AY141: 60 | AZ141: 60 | BA141: 60 | BB141: 64 | BC141: 60 | BD141: 60 | BE141: 64 | BF141: 64 | BG141: 60 | BH141: 64 | BI141: 60 | BJ141: 60 | BK141: 68 | BL141: 64 | BM141: 68 | BN141: 64 | BO141: 64 | BP141: 64 | BQ141: 64 | BR141: 68 | BS141: 68 | BT141: 60 | BU141: 68 | BV141: 64 | BW141: 60 | BX141: 68 | BY141: 60 | BZ141: 64 | CA141: 68 | CB141: 64 | CC141: 64 | CD141: 64 | CE141: 60 | CF141: 68 | CG141: 64 | CH141: 56 | CI141: 60 | CJ141: 56 | CK141: 56 | CL141: 56 | CM141: 56 | CN141: 56 | CO141: 56 | CP141: 52 | CQ141: 60 | CR141: 56 | CS141: 52
A142: 2011-11-13 | B142: 60 | C142: 56 | D142: 60 | E142: 60 | F142: 56 | G142: 64 | H142: 56 | I142: 56 | J142: 64 | K142: 56 | L142: 60 | M142: 60 | N142: 56 | O142: 60 | P142: 56 | Q142: 56 | R142: 64 | S142: 56 | T142: 56 | U142: 60 | V142: 56 | W142: 60 | X142: 60 | Y142: 56 | Z142: 60 | AA142: 56 | AB142: 60 | AC142: 60 | AD142: 56 | AE142: 64 | AF142: 60 | AG142: 60 | AH142: 60 | AI142: 68 | AJ142: 56 | AK142: 64 | AL142: 64 | AM142: 60 | AN142: 64 | AO142: 56 | AP142: 64 | AQ142: 64 | AR142: 60 | AS142: 60 | AT142: 64 | AU142: 60 | AV142: 64 | AW142: 60 | AX142: 64 | AY142: 64 | AZ142: 60 | BA142: 60 | BB142: 64 | BC142: 64 | BD142: 64 | BE142: 60 | BF142: 60 | BG142: 64 | BH142: 60 | BI142: 60 | BJ142: 64 | BK142: 64 | BL142: 64 | BM142: 68 | BN142: 68 | BO142: 64 | BP142: 64 | BQ142: 64 | BR142: 64 | BS142: 64 | BT142: 64 | BU142: 64 | BV142: 64 | BW142: 64 | BX142: 68 | BY142: 64 | BZ142: 64 | CA142: 64 | CB142: 64 | CC142: 64 | CD142: 64 | CE142: 64 | CF142: 68 | CG142: 60 | CH142: 56 | CI142: 60 | CJ142: 52 | CK142: 56 | CL142: 60 | CM142: 52 | CN142: 56 | CO142: 56 | CP142: 56 | CQ142: 60 | CR142: 56 | CS142: 52
A143: 2011-11-14 | B143: 60 | C143: 56 | D143: 56 | E143: 64 | F143: 56 | G143: 56 | H143: 60 | I143: 56 | J143: 64 | K143: 60 | L143: 56 | M143: 60 | N143: 56 | O143: 60 | P143: 56 | Q143: 56 | R143: 60 | S143: 60 | T143: 56 | U143: 60 | V143: 56 | W143: 60 | X143: 60 | Y143: 56 | Z143: 60 | AA143: 56 | AB143: 56 | AC143: 64 | AD143: 128 | AE143: 148 | AF143: 152 | AG143: 176 | AH143: 184 | AI143: 184 | AJ143: 188 | AK143: 192 | AL143: 188 | AM143: 192 | AN143: 196 | AO143: 188 | AP143: 192 | AQ143: 196 | AR143: 192 | AS143: 196 | AT143: 192 | AU143: 192 | AV143: 196 | AW143: 188 | AX143: 196 | AY143: 192 | AZ143: 192 | BA143: 200 | BB143: 196 | BC143: 192 | BD143: 196 | BE143: 192 | BF143: 184 | BG143: 184 | BH143: 180 | BI143: 168 | BJ143: 164 | BK143: 156 | BL143: 100 | BM143: 80 | BN143: 76 | BO143: 76 | BP143: 72 | BQ143: 80 | BR143: 100 | BS143: 92 | BT143: 100 | BU143: 96 | BV143: 100 | BW143: 104 | BX143: 104 | BY143: 104 | BZ143: 108 | CA143: 108 | CB143: 108 | CC143: 104 | CD143: 88 | CE143: 88 | CF143: 72 | CG143: 68 | CH143: 60 | CI143: 56 | CJ143: 60 | CK143: 56 | CL143: 56 | CM143: 60 | CN143: 52 | CO143: 56 | CP143: 60 | CQ143: 56 | CR143: 56 | CS143: 56
A144: 2011-11-15 | B144: 56 | C144: 60 | D144: 64 | E144: 56 | F144: 60 | G144: 60 | H144: 56 | I144: 64 | J144: 56 | K144: 60 | L144: 60 | M144: 60 | N144: 64 | O144: 56 | P144: 56 | Q144: 64 | R144: 56 | S144: 60 | T144: 60 | U144: 56 | V144: 60 | W144: 60 | X144: 60 | Y144: 60 | Z144: 56 | AA144: 64 | AB144: 56 | AC144: 60 | AD144: 148 | AE144: 164 | AF144: 176 | AG144: 172 | AH144: 184 | AI144: 188 | AJ144: 188 | AK144: 196 | AL144: 196 | AM144: 192 | AN144: 192 | AO144: 196 | AP144: 196 | AQ144: 192 | AR144: 196 | AS144: 200 | AT144: 192 | AU144: 196 | AV144: 196 | AW144: 192 | AX144: 192 | AY144: 192 | AZ144: 196 | BA144: 196 | BB144: 192 | BC144: 196 | BD144: 200 | BE144: 188 | BF144: 188 | BG144: 188 | BH144: 180 | BI144: 176 | BJ144: 168 | BK144: 156 | BL144: 100 | BM144: 72 | BN144: 84 | BO144: 84 | BP144: 88 | BQ144: 100 | BR144: 96 | BS144: 92 | BT144: 96 | BU144: 96 | BV144: 96 | BW144: 96 | BX144: 104 | BY144: 96 | BZ144: 88 | CA144: 84 | CB144: 76 | CC144: 76 | CD144: 80 | CE144: 76 | CF144: 72 | CG144: 64 | CH144: 56 | CI144: 60 | CJ144: 56 | CK144: 56 | CL144: 56 | CM144: 60 | CN144: 52 | CO144: 60 | CP144: 56 | CQ144: 56 | CR144: 52 | CS144: 60
A145: 2011-11-16 | B145: 56 | C145: 60 | D145: 56 | E145: 64 | F145: 56 | G145: 64 | H145: 56 | I145: 60 | J145: 56 | K145: 60 | L145: 56 | M145: 60 | N145: 60 | O145: 56 | P145: 60 | Q145: 60 | R145: 60 | S145: 60 | T145: 56 | U145: 60 | V145: 56 | W145: 60 | X145: 60 | Y145: 56 | Z145: 64 | AA145: 52 | AB145: 64 | AC145: 60 | AD145: 152 | AE145: 164 | AF145: 172 | AG145: 168 | AH145: 188 | AI145: 184 | AJ145: 200 | AK145: 188 | AL145: 196 | AM145: 196 | AN145: 200 | AO145: 192 | AP145: 196 | AQ145: 196 | AR145: 200 | AS145: 196 | AT145: 196 | AU145: 192 | AV145: 200 | AW145: 192 | AX145: 196 | AY145: 192 | AZ145: 200 | BA145: 196 | BB145: 196 | BC145: 196 | BD145: 196 | BE145: 200 | BF145: 192 | BG145: 188 | BH145: 176 | BI145: 172 | BJ145: 164 | BK145: 160 | BL145: 100 | BM145: 80 | BN145: 80 | BO145: 80 | BP145: 84 | BQ145: 84 | BR145: 80 | BS145: 96 | BT145: 88 | BU145: 92 | BV145: 88 | BW145: 92 | BX145: 96 | BY145: 88 | BZ145: 84 | CA145: 88 | CB145: 88 | CC145: 96 | CD145: 88 | CE145: 80 | CF145: 72 | CG145: 64 | CH145: 56 | CI145: 56 | CJ145: 56 | CK145: 60 | CL145: 56 | CM145: 56 | CN145: 56 | CO145: 52 | CP145: 60 | CQ145: 52 | CR145: 56 | CS145: 56
A146: 2011-11-17 | B146: 56 | C146: 60 | D146: 60 | E146: 56 | F146: 60 | G146: 56 | H146: 64 | I146: 56 | J146: 56 | K146: 60 | L146: 56 | M146: 60 | N146: 56 | O146: 60 | P146: 60 | Q146: 56 | R146: 60 | S146: 56 | T146: 60 | U146: 60 | V146: 56 | W146: 60 | X146: 56 | Y146: 60 | Z146: 56 | AA146: 56 | AB146: 56 | AC146: 60 | AD146: 148 | AE146: 168 | AF146: 172 | AG146: 176 | AH146: 180 | AI146: 188 | AJ146: 192 | AK146: 188 | AL146: 196 | AM146: 192 | AN146: 196 | AO146: 188 | AP146: 200 | AQ146: 196 | AR146: 196 | AS146: 192 | AT146: 200 | AU146: 196 | AV146: 196 | AW146: 196 | AX146: 192 | AY146: 192 | AZ146: 192 | BA146: 196 | BB146: 196 | BC146: 192 | BD146: 192 | BE146: 184 | BF146: 188 | BG146: 184 | BH146: 180 | BI146: 172 | BJ146: 160 | BK146: 160 | BL146: 92 | BM146: 80 | BN146: 80 | BO146: 76 | BP146: 72 | BQ146: 76 | BR146: 80 | BS146: 84 | BT146: 88 | BU146: 84 | BV146: 100 | BW146: 116 | BX146: 100 | BY146: 104 | BZ146: 96 | CA146: 96 | CB146: 92 | CC146: 80 | CD146: 80 | CE146: 68 | CF146: 72 | CG146: 60 | CH146: 56 | CI146: 60 | CJ146: 56 | CK146: 56 | CL146: 56 | CM146: 56 | CN146: 60 | CO146: 56 | CP146: 56 | CQ146: 56 | CR146: 56 | CS146: 60
A147: 2011-11-18 | B147: 52 | C147: 60 | D147: 60 | E147: 60 | F147: 60 | G147: 60 | H147: 60 | I147: 56 | J147: 60 | K147: 60 | L147: 56 | M147: 64 | N147: 56 | O147: 60 | P147: 60 | Q147: 60 | R147: 60 | S147: 56 | T147: 60 | U147: 60 | V147: 56 | W147: 60 | X147: 56 | Y147: 64 | Z147: 56 | AA147: 60 | AB147: 56 | AC147: 56 | AD147: 136 | AE147: 152 | AF147: 176 | AG147: 176 | AH147: 176 | AI147: 188 | AJ147: 184 | AK147: 184 | AL147: 196 | AM147: 192 | AN147: 200 | AO147: 192 | AP147: 196 | AQ147: 196 | AR147: 196 | AS147: 188 | AT147: 196 | AU147: 192 | AV147: 192 | AW147: 200 | AX147: 196 | AY147: 200 | AZ147: 196 | BA147: 200 | BB147: 196 | BC147: 196 | BD147: 200 | BE147: 192 | BF147: 184 | BG147: 184 | BH147: 176 | BI147: 168 | BJ147: 156 | BK147: 148 | BL147: 88 | BM147: 76 | BN147: 72 | BO147: 68 | BP147: 76 | BQ147: 68 | BR147: 68 | BS147: 72 | BT147: 68 | BU147: 68 | BV147: 76 | BW147: 76 | BX147: 72 | BY147: 76 | BZ147: 72 | CA147: 72 | CB147: 76 | CC147: 72 | CD147: 76 | CE147: 68 | CF147: 64 | CG147: 64 | CH147: 60 | CI147: 60 | CJ147: 56 | CK147: 60 | CL147: 56 | CM147: 56 | CN147: 60 | CO147: 56 | CP147: 60 | CQ147: 56 | CR147: 56 | CS147: 60
A148: 2011-11-19 | B148: 56 | C148: 60 | D148: 64 | E148: 60 | F148: 60 | G148: 60 | H148: 60 | I148: 60 | J148: 60 | K148: 60 | L148: 60 | M148: 60 | N148: 60 | O148: 60 | P148: 60 | Q148: 60 | R148: 60 | S148: 60 | T148: 60 | U148: 60 | V148: 60 | W148: 60 | X148: 56 | Y148: 60 | Z148: 60 | AA148: 60 | AB148: 56 | AC148: 60 | AD148: 56 | AE148: 64 | AF148: 60 | AG148: 60 | AH148: 60 | AI148: 64 | AJ148: 60 | AK148: 60 | AL148: 64 | AM148: 60 | AN148: 60 | AO148: 64 | AP148: 60 | AQ148: 60 | AR148: 64 | AS148: 60 | AT148: 60 | AU148: 56 | AV148: 60 | AW148: 60 | AX148: 60 | AY148: 60 | AZ148: 60 | BA148: 60 | BB148: 56 | BC148: 64 | BD148: 60 | BE148: 60 | BF148: 60 | BG148: 60 | BH148: 60 | BI148: 64 | BJ148: 60 | BK148: 64 | BL148: 64 | BM148: 64 | BN148: 64 | BO148: 64 | BP148: 64 | BQ148: 64 | BR148: 60 | BS148: 64 | BT148: 64 | BU148: 60 | BV148: 68 | BW148: 60 | BX148: 64 | BY148: 64 | BZ148: 64 | CA148: 64 | CB148: 60 | CC148: 60 | CD148: 64 | CE148: 64 | CF148: 60 | CG148: 64 | CH148: 60 | CI148: 56 | CJ148: 60 | CK148: 56 | CL148: 60 | CM148: 60 | CN148: 56 | CO148: 56 | CP148: 60 | CQ148: 56 | CR148: 56 | CS148: 60
A149: 2011-11-20 | B149: 56 | C149: 60 | D149: 60 | E149: 64 | F149: 60 | G149: 60 | H149: 60 | I149: 60 | J149: 56 | K149: 64 | L149: 60 | M149: 60 | N149: 60 | O149: 60 | P149: 56 | Q149: 60 | R149: 60 | S149: 56 | T149: 60 | U149: 64 | V149: 56 | W149: 60 | X149: 60 | Y149: 56 | Z149: 60 | AA149: 60 | AB149: 56 | AC149: 60 | AD149: 60 | AE149: 60 | AF149: 60 | AG149: 64 | AH149: 64 | AI149: 60 | AJ149: 68 | AK149: 60 | AL149: 64 | AM149: 60 | AN149: 60 | AO149: 64 | AP149: 60 | AQ149: 64 | AR149: 60 | AS149: 60 | AT149: 60 | AU149: 64 | AV149: 60 | AW149: 64 | AX149: 60 | AY149: 64 | AZ149: 60 | BA149: 60 | BB149: 60 | BC149: 64 | BD149: 60 | BE149: 64 | BF149: 68 | BG149: 60 | BH149: 60 | BI149: 60 | BJ149: 64 | BK149: 64 | BL149: 64 | BM149: 64 | BN149: 64 | BO149: 60 | BP149: 68 | BQ149: 64 | BR149: 64 | BS149: 68 | BT149: 60 | BU149: 64 | BV149: 68 | BW149: 64 | BX149: 96 | BY149: 88 | BZ149: 96 | CA149: 92 | CB149: 92 | CC149: 100 | CD149: 88 | CE149: 96 | CF149: 92 | CG149: 88 | CH149: 80 | CI149: 76 | CJ149: 80 | CK149: 72 | CL149: 76 | CM149: 76 | CN149: 80 | CO149: 76 | CP149: 80 | CQ149: 76 | CR149: 80 | CS149: 72
A150: 2011-11-21 | B150: 80 | C150: 84 | D150: 80 | E150: 80 | F150: 84 | G150: 72 | H150: 64 | I150: 56 | J150: 60 | K150: 60 | L150: 56 | M150: 60 | N150: 60 | O150: 60 | P150: 60 | Q150: 56 | R150: 60 | S150: 56 | T150: 60 | U150: 60 | V150: 56 | W150: 60 | X150: 56 | Y150: 60 | Z150: 60 | AA150: 56 | AB150: 60 | AC150: 60 | AD150: 144 | AE150: 164 | AF150: 172 | AG150: 172 | AH150: 184 | AI150: 188 | AJ150: 192 | AK150: 188 | AL150: 196 | AM150: 192 | AN150: 196 | AO150: 196 | AP150: 192 | AQ150: 200 | AR150: 192 | AS150: 192 | AT150: 196 | AU150: 196 | AV150: 196 | AW150: 196 | AX150: 196 | AY150: 192 | AZ150: 192 | BA150: 192 | BB150: 192 | BC150: 196 | BD150: 188 | BE150: 192 | BF150: 184 | BG150: 180 | BH150: 180 | BI150: 168 | BJ150: 164 | BK150: 160 | BL150: 96 | BM150: 80 | BN150: 68 | BO150: 80 | BP150: 76 | BQ150: 92 | BR150: 88 | BS150: 92 | BT150: 100 | BU150: 96 | BV150: 100 | BW150: 96 | BX150: 104 | BY150: 108 | BZ150: 96 | CA150: 100 | CB150: 96 | CC150: 100 | CD150: 96 | CE150: 80 | CF150: 68 | CG150: 64 | CH150: 60 | CI150: 60 | CJ150: 60 | CK150: 56 | CL150: 60 | CM150: 60 | CN150: 60 | CO150: 56 | CP150: 60 | CQ150: 60 | CR150: 56 | CS150: 60
A151: 2011-11-22 | B151: 60 | C151: 60 | D151: 64 | E151: 60 | F151: 60 | G151: 64 | H151: 60 | I151: 60 | J151: 60 | K151: 60 | L151: 64 | M151: 64 | N151: 60 | O151: 60 | P151: 64 | Q151: 60 | R151: 60 | S151: 64 | T151: 60 | U151: 60 | V151: 60 | W151: 60 | X151: 64 | Y151: 60 | Z151: 60 | AA151: 60 | AB151: 60 | AC151: 64 | AD151: 152 | AE151: 164 | AF151: 172 | AG151: 172 | AH151: 180 | AI151: 188 | AJ151: 184 | AK151: 188 | AL151: 188 | AM151: 192 | AN151: 196 | AO151: 196 | AP151: 192 | AQ151: 204 | AR151: 192 | AS151: 196 | AT151: 192 | AU151: 192 | AV151: 192 | AW151: 200 | AX151: 196 | AY151: 200 | AZ151: 204 | BA151: 204 | BB151: 200 | BC151: 204 | BD151: 192 | BE151: 204 | BF151: 188 | BG151: 188 | BH151: 192 | BI151: 180 | BJ151: 168 | BK151: 164 | BL151: 96 | BM151: 80 | BN151: 84 | BO151: 88 | BP151: 76 | BQ151: 88 | BR151: 92 | BS151: 112 | BT151: 116 | BU151: 116 | BV151: 124 | BW151: 120 | BX151: 120 | BY151: 116 | BZ151: 112 | CA151: 108 | CB151: 100 | CC151: 100 | CD151: 92 | CE151: 84 | CF151: 72 | CG151: 64 | CH151: 60 | CI151: 60 | CJ151: 56 | CK151: 60 | CL151: 60 | CM151: 60 | CN151: 56 | CO151: 60 | CP151: 60 | CQ151: 60 | CR151: 56 | CS151: 60
A152: 2011-11-23 | B152: 60 | C152: 60 | D152: 60 | E152: 64 | F152: 64 | G152: 60 | H152: 60 | I152: 60 | J152: 64 | K152: 60 | L152: 64 | M152: 60 | N152: 60 | O152: 60 | P152: 60 | Q152: 64 | R152: 60 | S152: 60 | T152: 60 | U152: 64 | V152: 60 | W152: 60 | X152: 64 | Y152: 64 | Z152: 60 | AA152: 60 | AB152: 60 | AC152: 68 | AD152: 144 | AE152: 164 | AF152: 172 | AG152: 172 | AH152: 184 | AI152: 196 | AJ152: 196 | AK152: 196 | AL152: 200 | AM152: 196 | AN152: 196 | AO152: 200 | AP152: 200 | AQ152: 200 | AR152: 200 | AS152: 192 | AT152: 200 | AU152: 196 | AV152: 196 | AW152: 196 | AX152: 204 | AY152: 192 | AZ152: 196 | BA152: 200 | BB152: 192 | BC152: 196 | BD152: 188 | BE152: 192 | BF152: 188 | BG152: 184 | BH152: 184 | BI152: 180 | BJ152: 164 | BK152: 164 | BL152: 100 | BM152: 80 | BN152: 76 | BO152: 76 | BP152: 76 | BQ152: 84 | BR152: 96 | BS152: 96 | BT152: 100 | BU152: 108 | BV152: 112 | BW152: 104 | BX152: 108 | BY152: 108 | BZ152: 104 | CA152: 96 | CB152: 92 | CC152: 96 | CD152: 100 | CE152: 76 | CF152: 72 | CG152: 64 | CH152: 60 | CI152: 60 | CJ152: 56 | CK152: 60 | CL152: 56 | CM152: 60 | CN152: 60 | CO152: 56 | CP152: 60 | CQ152: 60 | CR152: 56 | CS152: 60
A153: 2011-11-24 | B153: 56 | C153: 60 | D153: 64 | E153: 56 | F153: 60 | G153: 60 | H153: 64 | I153: 56 | J153: 64 | K153: 60 | L153: 60 | M153: 60 | N153: 60 | O153: 60 | P153: 60 | Q153: 60 | R153: 60 | S153: 60 | T153: 60 | U153: 60 | V153: 64 | W153: 60 | X153: 60 | Y153: 60 | Z153: 60 | AA153: 60 | AB153: 60 | AC153: 64 | AD153: 144 | AE153: 160 | AF153: 164 | AG153: 176 | AH153: 180 | AI153: 200 | AJ153: 196 | AK153: 196 | AL153: 192 | AM153: 188 | AN153: 188 | AO153: 192 | AP153: 188 | AQ153: 184 | AR153: 192 | AS153: 184 | AT153: 184 | AU153: 188 | AV153: 188 | AW153: 184 | AX153: 184 | AY153: 188 | AZ153: 188 | BA153: 188 | BB153: 184 | BC153: 192 | BD153: 192 | BE153: 192 | BF153: 188 | BG153: 184 | BH153: 176 | BI153: 168 | BJ153: 156 | BK153: 152 | BL153: 88 | BM153: 72 | BN153: 84 | BO153: 84 | BP153: 84 | BQ153: 88 | BR153: 100 | BS153: 96 | BT153: 96 | BU153: 104 | BV153: 108 | BW153: 108 | BX153: 108 | BY153: 112 | BZ153: 108 | CA153: 104 | CB153: 100 | CC153: 92 | CD153: 92 | CE153: 88 | CF153: 68 | CG153: 60 | CH153: 56 | CI153: 60 | CJ153: 60 | CK153: 60 | CL153: 60 | CM153: 60 | CN153: 56 | CO153: 60 | CP153: 60 | CQ153: 60 | CR153: 56 | CS153: 60
A154: 2011-11-25 | B154: 60 | C154: 60 | D154: 60 | E154: 64 | F154: 60 | G154: 60 | H154: 64 | I154: 60 | J154: 60 | K154: 60 | L154: 64 | M154: 64 | N154: 60 | O154: 60 | P154: 64 | Q154: 60 | R154: 60 | S154: 60 | T154: 60 | U154: 64 | V154: 56 | W154: 64 | X154: 64 | Y154: 56 | Z154: 60 | AA154: 64 | AB154: 60 | AC154: 68 | AD154: 144 | AE154: 164 | AF154: 160 | AG154: 176 | AH154: 184 | AI154: 192 | AJ154: 196 | AK154: 196 | AL154: 196 | AM154: 196 | AN154: 200 | AO154: 200 | AP154: 196 | AQ154: 192 | AR154: 192 | AS154: 196 | AT154: 196 | AU154: 192 | AV154: 196 | AW154: 196 | AX154: 184 | AY154: 196 | AZ154: 188 | BA154: 188 | BB154: 188 | BC154: 188 | BD154: 188 | BE154: 184 | BF154: 176 | BG154: 172 | BH154: 172 | BI154: 164 | BJ154: 152 | BK154: 152 | BL154: 76 | BM154: 68 | BN154: 68 | BO154: 68 | BP154: 60 | BQ154: 64 | BR154: 64 | BS154: 68 | BT154: 68 | BU154: 68 | BV154: 68 | BW154: 64 | BX154: 68 | BY154: 64 | BZ154: 72 | CA154: 68 | CB154: 68 | CC154: 64 | CD154: 68 | CE154: 60 | CF154: 68 | CG154: 68 | CH154: 60 | CI154: 56 | CJ154: 64 | CK154: 60 | CL154: 56 | CM154: 56 | CN154: 56 | CO154: 56 | CP154: 60 | CQ154: 52 | CR154: 60 | CS154: 52
A155: 2011-11-26 | B155: 60 | C155: 60 | D155: 60 | E155: 56 | F155: 60 | G155: 64 | H155: 56 | I155: 60 | J155: 56 | K155: 64 | L155: 56 | M155: 60 | N155: 60 | O155: 56 | P155: 64 | Q155: 56 | R155: 60 | S155: 56 | T155: 60 | U155: 56 | V155: 60 | W155: 60 | X155: 56 | Y155: 60 | Z155: 60 | AA155: 56 | AB155: 60 | AC155: 56 | AD155: 60 | AE155: 56 | AF155: 60 | AG155: 56 | AH155: 56 | AI155: 72 | AJ155: 68 | AK155: 68 | AL155: 64 | AM155: 64 | AN155: 68 | AO155: 64 | AP155: 68 | AQ155: 64 | AR155: 64 | AS155: 64 | AT155: 64 | AU155: 68 | AV155: 60 | AW155: 60 | AX155: 64 | AY155: 64 | AZ155: 68 | BA155: 60 | BB155: 64 | BC155: 68 | BD155: 56 | BE155: 68 | BF155: 60 | BG155: 60 | BH155: 68 | BI155: 60 | BJ155: 60 | BK155: 64 | BL155: 72 | BM155: 64 | BN155: 64 | BO155: 64 | BP155: 68 | BQ155: 56 | BR155: 68 | BS155: 60 | BT155: 68 | BU155: 64 | BV155: 64 | BW155: 64 | BX155: 60 | BY155: 64 | BZ155: 64 | CA155: 68 | CB155: 64 | CC155: 64 | CD155: 64 | CE155: 64 | CF155: 64 | CG155: 68 | CH155: 56 | CI155: 56 | CJ155: 60 | CK155: 56 | CL155: 56 | CM155: 60 | CN155: 52 | CO155: 64 | CP155: 52 | CQ155: 56 | CR155: 60 | CS155: 56
A156: 2011-11-27 | B156: 56 | C156: 60 | D156: 60 | E156: 60 | F156: 56 | G156: 60 | H156: 60 | I156: 60 | J156: 56 | K156: 60 | L156: 60 | M156: 56 | N156: 60 | O156: 60 | P156: 56 | Q156: 60 | R156: 60 | S156: 56 | T156: 60 | U156: 56 | V156: 60 | W156: 56 | X156: 60 | Y156: 56 | Z156: 56 | AA156: 60 | AB156: 60 | AC156: 56 | AD156: 60 | AE156: 56 | AF156: 56 | AG156: 56 | AH156: 60 | AI156: 72 | AJ156: 68 | AK156: 68 | AL156: 68 | AM156: 64 | AN156: 68 | AO156: 60 | AP156: 68 | AQ156: 64 | AR156: 60 | AS156: 72 | AT156: 64 | AU156: 64 | AV156: 68 | AW156: 60 | AX156: 68 | AY156: 64 | AZ156: 68 | BA156: 60 | BB156: 64 | BC156: 64 | BD156: 60 | BE156: 64 | BF156: 68 | BG156: 60 | BH156: 68 | BI156: 64 | BJ156: 64 | BK156: 68 | BL156: 68 | BM156: 68 | BN156: 72 | BO156: 60 | BP156: 68 | BQ156: 68 | BR156: 64 | BS156: 68 | BT156: 64 | BU156: 68 | BV156: 64 | BW156: 68 | BX156: 64 | BY156: 60 | BZ156: 72 | CA156: 64 | CB156: 64 | CC156: 72 | CD156: 68 | CE156: 64 | CF156: 68 | CG156: 68 | CH156: 56 | CI156: 56 | CJ156: 56 | CK156: 60 | CL156: 52 | CM156: 60 | CN156: 56 | CO156: 56 | CP156: 60 | CQ156: 56 | CR156: 56 | CS156: 60
A157: 2011-11-28 | B157: 56 | C157: 60 | D157: 60 | E157: 60 | F157: 60 | G157: 56 | H157: 60 | I157: 56 | J157: 56 | K157: 64 | L157: 56 | M157: 60 | N157: 56 | O157: 60 | P157: 60 | Q157: 56 | R157: 60 | S157: 60 | T157: 56 | U157: 60 | V157: 56 | W157: 60 | X157: 56 | Y157: 60 | Z157: 60 | AA157: 56 | AB157: 60 | AC157: 64 | AD157: 144 | AE157: 160 | AF157: 156 | AG157: 172 | AH157: 180 | AI157: 200 | AJ157: 204 | AK157: 200 | AL157: 204 | AM157: 212 | AN157: 204 | AO157: 212 | AP157: 232 | AQ157: 240 | AR157: 240 | AS157: 224 | AT157: 220 | AU157: 196 | AV157: 196 | AW157: 204 | AX157: 196 | AY157: 204 | AZ157: 196 | BA157: 212 | BB157: 216 | BC157: 208 | BD157: 212 | BE157: 212 | BF157: 208 | BG157: 192 | BH157: 196 | BI157: 188 | BJ157: 172 | BK157: 160 | BL157: 96 | BM157: 76 | BN157: 76 | BO157: 88 | BP157: 88 | BQ157: 88 | BR157: 108 | BS157: 108 | BT157: 108 | BU157: 120 | BV157: 112 | BW157: 120 | BX157: 116 | BY157: 108 | BZ157: 112 | CA157: 108 | CB157: 112 | CC157: 96 | CD157: 96 | CE157: 92 | CF157: 68 | CG157: 60 | CH157: 60 | CI157: 60 | CJ157: 56 | CK157: 56 | CL157: 60 | CM157: 56 | CN157: 64 | CO157: 56 | CP157: 56 | CQ157: 60 | CR157: 56 | CS157: 60
A158: 2011-11-29 | B158: 60 | C158: 56 | D158: 64 | E158: 60 | F158: 60 | G158: 60 | H158: 60 | I158: 60 | J158: 56 | K158: 64 | L158: 56 | M158: 64 | N158: 56 | O158: 56 | P158: 64 | Q158: 56 | R158: 64 | S158: 56 | T158: 60 | U158: 60 | V158: 56 | W158: 60 | X158: 60 | Y158: 60 | Z158: 56 | AA158: 56 | AB158: 64 | AC158: 60 | AD158: 148 | AE158: 164 | AF158: 168 | AG158: 172 | AH158: 184 | AI158: 204 | AJ158: 208 | AK158: 204 | AL158: 208 | AM158: 204 | AN158: 204 | AO158: 208 | AP158: 208 | AQ158: 208 | AR158: 208 | AS158: 204 | AT158: 200 | AU158: 200 | AV158: 204 | AW158: 192 | AX158: 204 | AY158: 204 | AZ158: 196 | BA158: 196 | BB158: 192 | BC158: 200 | BD158: 192 | BE158: 188 | BF158: 188 | BG158: 180 | BH158: 172 | BI158: 172 | BJ158: 164 | BK158: 160 | BL158: 84 | BM158: 80 | BN158: 84 | BO158: 88 | BP158: 88 | BQ158: 92 | BR158: 104 | BS158: 116 | BT158: 116 | BU158: 120 | BV158: 120 | BW158: 120 | BX158: 124 | BY158: 112 | BZ158: 104 | CA158: 104 | CB158: 104 | CC158: 104 | CD158: 92 | CE158: 96 | CF158: 76 | CG158: 68 | CH158: 60 | CI158: 56 | CJ158: 60 | CK158: 56 | CL158: 56 | CM158: 60 | CN158: 56 | CO158: 60 | CP158: 56 | CQ158: 56 | CR158: 60 | CS158: 52
A159: 2011-11-30 | B159: 56 | C159: 64 | D159: 56 | E159: 64 | F159: 56 | G159: 60 | H159: 60 | I159: 60 | J159: 60 | K159: 56 | L159: 60 | M159: 60 | N159: 56 | O159: 64 | P159: 56 | Q159: 60 | R159: 60 | S159: 56 | T159: 60 | U159: 56 | V159: 60 | W159: 60 | X159: 56 | Y159: 64 | Z159: 56 | AA159: 60 | AB159: 56 | AC159: 64 | AD159: 152 | AE159: 156 | AF159: 164 | AG159: 172 | AH159: 180 | AI159: 200 | AJ159: 200 | AK159: 212 | AL159: 220 | AM159: 228 | AN159: 216 | AO159: 208 | AP159: 208 | AQ159: 216 | AR159: 212 | AS159: 208 | AT159: 204 | AU159: 192 | AV159: 200 | AW159: 200 | AX159: 204 | AY159: 204 | AZ159: 200 | BA159: 200 | BB159: 200 | BC159: 196 | BD159: 196 | BE159: 192 | BF159: 196 | BG159: 184 | BH159: 184 | BI159: 168 | BJ159: 160 | BK159: 160 | BL159: 92 | BM159: 76 | BN159: 76 | BO159: 72 | BP159: 80 | BQ159: 76 | BR159: 88 | BS159: 92 | BT159: 92 | BU159: 104 | BV159: 104 | BW159: 104 | BX159: 104 | BY159: 96 | BZ159: 112 | CA159: 108 | CB159: 92 | CC159: 100 | CD159: 88 | CE159: 80 | CF159: 68 | CG159: 68 | CH159: 60 | CI159: 56 | CJ159: 60 | CK159: 60 | CL159: 56 | CM159: 60 | CN159: 56 | CO159: 56 | CP159: 60 | CQ159: 56 | CR159: 64 | CS159: 56
A160: 2011-12-01 | B160: 56 | C160: 64 | D160: 60 | E160: 60 | F160: 60 | G160: 60 | H160: 60 | I160: 60 | J160: 60 | K160: 60 | L160: 60 | M160: 60 | N160: 56 | O160: 64 | P160: 56 | Q160: 64 | R160: 56 | S160: 60 | T160: 60 | U160: 56 | V160: 60 | W160: 60 | X160: 60 | Y160: 60 | Z160: 56 | AA160: 60 | AB160: 60 | AC160: 64 | AD160: 144 | AE160: 164 | AF160: 172 | AG160: 176 | AH160: 184 | AI160: 208 | AJ160: 204 | AK160: 204 | AL160: 200 | AM160: 220 | AN160: 224 | AO160: 216 | AP160: 224 | AQ160: 224 | AR160: 216 | AS160: 204 | AT160: 196 | AU160: 196 | AV160: 192 | AW160: 208 | AX160: 216 | AY160: 212 | AZ160: 224 | BA160: 212 | BB160: 212 | BC160: 204 | BD160: 200 | BE160: 204 | BF160: 196 | BG160: 192 | BH160: 180 | BI160: 172 | BJ160: 164 | BK160: 160 | BL160: 92 | BM160: 84 | BN160: 72 | BO160: 84 | BP160: 76 | BQ160: 72 | BR160: 92 | BS160: 92 | BT160: 104 | BU160: 104 | BV160: 100 | BW160: 104 | BX160: 96 | BY160: 100 | BZ160: 100 | CA160: 84 | CB160: 88 | CC160: 80 | CD160: 84 | CE160: 84 | CF160: 68 | CG160: 68 | CH160: 60 | CI160: 56 | CJ160: 60 | CK160: 56 | CL160: 60 | CM160: 56 | CN160: 56 | CO160: 60 | CP160: 56 | CQ160: 60 | CR160: 56 | CS160: 60
A161: 2011-12-02 | B161: 56 | C161: 60 | D161: 64 | E161: 56 | F161: 64 | G161: 60 | H161: 56 | I161: 64 | J161: 56 | K161: 60 | L161: 64 | M161: 56 | N161: 64 | O161: 60 | P161: 60 | Q161: 60 | R161: 56 | S161: 64 | T161: 56 | U161: 64 | V161: 60 | W161: 60 | X161: 64 | Y161: 56 | Z161: 60 | AA161: 60 | AB161: 56 | AC161: 72 | AD161: 152 | AE161: 168 | AF161: 160 | AG161: 172 | AH161: 196 | AI161: 200 | AJ161: 204 | AK161: 212 | AL161: 228 | AM161: 228 | AN161: 224 | AO161: 228 | AP161: 216 | AQ161: 212 | AR161: 220 | AS161: 208 | AT161: 212 | AU161: 200 | AV161: 204 | AW161: 204 | AX161: 200 | AY161: 208 | AZ161: 188 | BA161: 196 | BB161: 204 | BC161: 196 | BD161: 192 | BE161: 192 | BF161: 192 | BG161: 184 | BH161: 172 | BI161: 172 | BJ161: 156 | BK161: 148 | BL161: 92 | BM161: 64 | BN161: 72 | BO161: 64 | BP161: 68 | BQ161: 72 | BR161: 68 | BS161: 72 | BT161: 72 | BU161: 72 | BV161: 72 | BW161: 72 | BX161: 72 | BY161: 80 | BZ161: 72 | CA161: 80 | CB161: 84 | CC161: 80 | CD161: 80 | CE161: 68 | CF161: 76 | CG161: 64 | CH161: 60 | CI161: 60 | CJ161: 56 | CK161: 56 | CL161: 60 | CM161: 56 | CN161: 60 | CO161: 56 | CP161: 60 | CQ161: 56 | CR161: 56 | CS161: 60
A162: 2011-12-03 | B162: 56 | C162: 60 | D162: 60 | E162: 60 | F162: 64 | G162: 56 | H162: 60 | I162: 60 | J162: 60 | K162: 60 | L162: 60 | M162: 60 | N162: 60 | O162: 56 | P162: 64 | Q162: 60 | R162: 56 | S162: 64 | T162: 56 | U162: 60 | V162: 60 | W162: 56 | X162: 64 | Y162: 60 | Z162: 56 | AA162: 60 | AB162: 60 | AC162: 60 | AD162: 56 | AE162: 60 | AF162: 56 | AG162: 56 | AH162: 64 | AI162: 72 | AJ162: 68 | AK162: 68 | AL162: 68 | AM162: 68 | AN162: 68 | AO162: 72 | AP162: 68 | AQ162: 68 | AR162: 64 | AS162: 68 | AT162: 68 | AU162: 68 | AV162: 68 | AW162: 68 | AX162: 64 | AY162: 68 | AZ162: 72 | BA162: 64 | BB162: 68 | BC162: 68 | BD162: 64 | BE162: 68 | BF162: 64 | BG162: 64 | BH162: 72 | BI162: 64 | BJ162: 68 | BK162: 68 | BL162: 76 | BM162: 64 | BN162: 72 | BO162: 64 | BP162: 68 | BQ162: 68 | BR162: 64 | BS162: 68 | BT162: 68 | BU162: 64 | BV162: 72 | BW162: 68 | BX162: 64 | BY162: 64 | BZ162: 68 | CA162: 68 | CB162: 64 | CC162: 68 | CD162: 72 | CE162: 60 | CF162: 68 | CG162: 68 | CH162: 60 | CI162: 60 | CJ162: 60 | CK162: 60 | CL162: 56 | CM162: 60 | CN162: 60 | CO162: 60 | CP162: 60 | CQ162: 60 | CR162: 56 | CS162: 60
A163: 2011-12-04 | B163: 60 | C163: 60 | D163: 60 | E163: 64 | F163: 60 | G163: 64 | H163: 60 | I163: 60 | J163: 60 | K163: 60 | L163: 60 | M163: 64 | N163: 60 | O163: 60 | P163: 64 | Q163: 60 | R163: 60 | S163: 60 | T163: 60 | U163: 60 | V163: 60 | W163: 60 | X163: 60 | Y163: 60 | Z163: 64 | AA163: 56 | AB163: 60 | AC163: 64 | AD163: 60 | AE163: 60 | AF163: 60 | AG163: 60 | AH163: 60 | AI163: 72 | AJ163: 72 | AK163: 72 | AL163: 68 | AM163: 64 | AN163: 72 | AO163: 68 | AP163: 68 | AQ163: 68 | AR163: 64 | AS163: 72 | AT163: 64 | AU163: 68 | AV163: 68 | AW163: 68 | AX163: 64 | AY163: 68 | AZ163: 68 | BA163: 64 | BB163: 68 | BC163: 68 | BD163: 68 | BE163: 64 | BF163: 68 | BG163: 68 | BH163: 64 | BI163: 64 | BJ163: 68 | BK163: 64 | BL163: 76 | BM163: 68 | BN163: 68 | BO163: 68 | BP163: 64 | BQ163: 68 | BR163: 68 | BS163: 64 | BT163: 72 | BU163: 64 | BV163: 68 | BW163: 64 | BX163: 72 | BY163: 68 | BZ163: 64 | CA163: 64 | CB163: 72 | CC163: 68 | CD163: 68 | CE163: 68 | CF163: 72 | CG163: 64 | CH163: 60 | CI163: 60 | CJ163: 60 | CK163: 60 | CL163: 60 | CM163: 60 | CN163: 60 | CO163: 60 | CP163: 60 | CQ163: 60 | CR163: 60 | CS163: 56
A164: 2011-12-05 | B164: 60 | C164: 64 | D164: 60 | E164: 60 | F164: 64 | G164: 60 | H164: 60 | I164: 60 | J164: 64 | K164: 60 | L164: 60 | M164: 60 | N164: 60 | O164: 60 | P164: 60 | Q164: 60 | R164: 60 | S164: 60 | T164: 60 | U164: 60 | V164: 60 | W164: 64 | X164: 60 | Y164: 60 | Z164: 64 | AA164: 60 | AB164: 60 | AC164: 60 | AD164: 132 | AE164: 156 | AF164: 176 | AG164: 176 | AH164: 184 | AI164: 200 | AJ164: 208 | AK164: 220 | AL164: 248 | AM164: 252 | AN164: 252 | AO164: 244 | AP164: 248 | AQ164: 240 | AR164: 232 | AS164: 240 | AT164: 224 | AU164: 196 | AV164: 188 | AW164: 196 | AX164: 200 | AY164: 196 | AZ164: 204 | BA164: 208 | BB164: 208 | BC164: 200 | BD164: 200 | BE164: 196 | BF164: 204 | BG164: 200 | BH164: 196 | BI164: 184 | BJ164: 176 | BK164: 156 | BL164: 92 | BM164: 72 | BN164: 68 | BO164: 72 | BP164: 72 | BQ164: 68 | BR164: 76 | BS164: 72 | BT164: 80 | BU164: 80 | BV164: 88 | BW164: 84 | BX164: 84 | BY164: 80 | BZ164: 80 | CA164: 80 | CB164: 80 | CC164: 80 | CD164: 84 | CE164: 76 | CF164: 76 | CG164: 72 | CH164: 60 | CI164: 56 | CJ164: 56 | CK164: 60 | CL164: 60 | CM164: 56 | CN164: 56 | CO164: 60 | CP164: 56 | CQ164: 60 | CR164: 56 | CS164: 60
A165: 2011-12-06 | B165: 60 | C165: 60 | D165: 60 | E165: 60 | F165: 60 | G165: 60 | H165: 60 | I165: 60 | J165: 60 | K165: 60 | L165: 60 | M165: 60 | N165: 56 | O165: 64 | P165: 56 | Q165: 60 | R165: 60 | S165: 60 | T165: 56 | U165: 60 | V165: 60 | W165: 56 | X165: 60 | Y165: 60 | Z165: 60 | AA165: 56 | AB165: 60 | AC165: 64 | AD165: 56 | AE165: 64 | AF165: 60 | AG165: 60 | AH165: 64 | AI165: 76 | AJ165: 72 | AK165: 68 | AL165: 72 | AM165: 68 | AN165: 68 | AO165: 72 | AP165: 68 | AQ165: 68 | AR165: 68 | AS165: 68 | AT165: 68 | AU165: 64 | AV165: 68 | AW165: 68 | AX165: 72 | AY165: 60 | AZ165: 68 | BA165: 68 | BB165: 64 | BC165: 68 | BD165: 68 | BE165: 72 | BF165: 60 | BG165: 64 | BH165: 68 | BI165: 64 | BJ165: 68 | BK165: 72 | BL165: 68 | BM165: 64 | BN165: 64 | BO165: 64 | BP165: 68 | BQ165: 64 | BR165: 68 | BS165: 72 | BT165: 72 | BU165: 64 | BV165: 68 | BW165: 64 | BX165: 68 | BY165: 64 | BZ165: 64 | CA165: 68 | CB165: 72 | CC165: 68 | CD165: 68 | CE165: 68 | CF165: 64 | CG165: 68 | CH165: 56 | CI165: 60 | CJ165: 56 | CK165: 60 | CL165: 56 | CM165: 60 | CN165: 56 | CO165: 60 | CP165: 56 | CQ165: 56 | CR165: 60 | CS165: 56
A166: 2011-12-07 | B166: 60 | C166: 60 | D166: 60 | E166: 60 | F166: 60 | G166: 60 | H166: 60 | I166: 60 | J166: 56 | K166: 60 | L166: 60 | M166: 60 | N166: 60 | O166: 56 | P166: 60 | Q166: 60 | R166: 60 | S166: 60 | T166: 60 | U166: 56 | V166: 60 | W166: 60 | X166: 56 | Y166: 60 | Z166: 60 | AA166: 56 | AB166: 60 | AC166: 56 | AD166: 144 | AE166: 164 | AF166: 172 | AG166: 180 | AH166: 192 | AI166: 196 | AJ166: 212 | AK166: 216 | AL166: 228 | AM166: 256 | AN166: 256 | AO166: 256 | AP166: 268 | AQ166: 264 | AR166: 272 | AS166: 256 | AT166: 244 | AU166: 200 | AV166: 200 | AW166: 212 | AX166: 216 | AY166: 212 | AZ166: 208 | BA166: 204 | BB166: 204 | BC166: 196 | BD166: 196 | BE166: 188 | BF166: 192 | BG166: 192 | BH166: 184 | BI166: 172 | BJ166: 160 | BK166: 148 | BL166: 88 | BM166: 72 | BN166: 76 | BO166: 72 | BP166: 72 | BQ166: 64 | BR166: 68 | BS166: 68 | BT166: 72 | BU166: 68 | BV166: 72 | BW166: 80 | BX166: 72 | BY166: 68 | BZ166: 72 | CA166: 72 | CB166: 76 | CC166: 76 | CD166: 76 | CE166: 76 | CF166: 68 | CG166: 64 | CH166: 60 | CI166: 60 | CJ166: 56 | CK166: 60 | CL166: 56 | CM166: 60 | CN166: 60 | CO166: 56 | CP166: 60 | CQ166: 60 | CR166: 56 | CS166: 60
A167: 2011-12-08 | B167: 60 | C167: 60 | D167: 60 | E167: 64 | F167: 60 | G167: 60 | H167: 60 | I167: 60 | J167: 60 | K167: 60 | L167: 64 | M167: 60 | N167: 60 | O167: 60 | P167: 60 | Q167: 60 | R167: 60 | S167: 60 | T167: 60 | U167: 60 | V167: 56 | W167: 60 | X167: 60 | Y167: 56 | Z167: 64 | AA167: 56 | AB167: 60 | AC167: 60 | AD167: 60 | AE167: 60 | AF167: 64 | AG167: 56 | AH167: 68 | AI167: 76 | AJ167: 72 | AK167: 68 | AL167: 72 | AM167: 68 | AN167: 72 | AO167: 72 | AP167: 68 | AQ167: 72 | AR167: 68 | AS167: 68 | AT167: 72 | AU167: 68 | AV167: 68 | AW167: 72 | AX167: 72 | AY167: 68 | AZ167: 64 | BA167: 72 | BB167: 68 | BC167: 68 | BD167: 64 | BE167: 64 | BF167: 68 | BG167: 68 | BH167: 68 | BI167: 68 | BJ167: 72 | BK167: 64 | BL167: 72 | BM167: 64 | BN167: 68 | BO167: 72 | BP167: 64 | BQ167: 76 | BR167: 64 | BS167: 72 | BT167: 68 | BU167: 64 | BV167: 68 | BW167: 76 | BX167: 72 | BY167: 68 | BZ167: 72 | CA167: 72 | CB167: 68 | CC167: 76 | CD167: 68 | CE167: 72 | CF167: 72 | CG167: 68 | CH167: 60 | CI167: 60 | CJ167: 56 | CK167: 60 | CL167: 60 | CM167: 56 | CN167: 60 | CO167: 60 | CP167: 56 | CQ167: 60 | CR167: 60 | CS167: 60
A168: 2011-12-09 | B168: 56 | C168: 60 | D168: 64 | E168: 60 | F168: 60 | G168: 60 | H168: 60 | I168: 56 | J168: 60 | K168: 60 | L168: 60 | M168: 60 | N168: 60 | O168: 60 | P168: 60 | Q168: 60 | R168: 60 | S168: 60 | T168: 60 | U168: 60 | V168: 56 | W168: 60 | X168: 60 | Y168: 60 | Z168: 60 | AA168: 56 | AB168: 60 | AC168: 60 | AD168: 140 | AE168: 164 | AF168: 160 | AG168: 180 | AH168: 184 | AI168: 196 | AJ168: 216 | AK168: 240 | AL168: 252 | AM168: 260 | AN168: 276 | AO168: 260 | AP168: 260 | AQ168: 256 | AR168: 268 | AS168: 260 | AT168: 232 | AU168: 184 | AV168: 204 | AW168: 204 | AX168: 200 | AY168: 212 | AZ168: 216 | BA168: 208 | BB168: 204 | BC168: 212 | BD168: 208 | BE168: 212 | BF168: 200 | BG168: 200 | BH168: 196 | BI168: 184 | BJ168: 164 | BK168: 140 | BL168: 80 | BM168: 68 | BN168: 68 | BO168: 64 | BP168: 72 | BQ168: 68 | BR168: 76 | BS168: 68 | BT168: 68 | BU168: 72 | BV168: 68 | BW168: 72 | BX168: 68 | BY168: 68 | BZ168: 64 | CA168: 72 | CB168: 72 | CC168: 64 | CD168: 72 | CE168: 64 | CF168: 64 | CG168: 64 | CH168: 60 | CI168: 56 | CJ168: 60 | CK168: 60 | CL168: 56 | CM168: 56 | CN168: 60 | CO168: 56 | CP168: 60 | CQ168: 56 | CR168: 60 | CS168: 56
A169: 2011-12-10 | B169: 56 | C169: 60 | D169: 60 | E169: 60 | F169: 60 | G169: 60 | H169: 60 | I169: 64 | J169: 56 | K169: 60 | L169: 64 | M169: 56 | N169: 60 | O169: 60 | P169: 60 | Q169: 60 | R169: 60 | S169: 60 | T169: 60 | U169: 56 | V169: 60 | W169: 60 | X169: 56 | Y169: 60 | Z169: 60 | AA169: 56 | AB169: 60 | AC169: 56 | AD169: 60 | AE169: 60 | AF169: 56 | AG169: 60 | AH169: 60 | AI169: 68 | AJ169: 72 | AK169: 68 | AL169: 68 | AM169: 64 | AN169: 68 | AO169: 68 | AP169: 64 | AQ169: 68 | AR169: 68 | AS169: 64 | AT169: 68 | AU169: 68 | AV169: 64 | AW169: 68 | AX169: 68 | AY169: 64 | AZ169: 64 | BA169: 64 | BB169: 68 | BC169: 64 | BD169: 64 | BE169: 68 | BF169: 60 | BG169: 68 | BH169: 64 | BI169: 68 | BJ169: 60 | BK169: 72 | BL169: 68 | BM169: 72 | BN169: 68 | BO169: 64 | BP169: 68 | BQ169: 68 | BR169: 68 | BS169: 60 | BT169: 64 | BU169: 60 | BV169: 68 | BW169: 68 | BX169: 68 | BY169: 72 | BZ169: 68 | CA169: 68 | CB169: 68 | CC169: 64 | CD169: 64 | CE169: 68 | CF169: 68 | CG169: 60 | CH169: 60 | CI169: 52 | CJ169: 60 | CK169: 56 | CL169: 56 | CM169: 56 | CN169: 60 | CO169: 56 | CP169: 56 | CQ169: 60 | CR169: 52 | CS169: 56
A170: 2011-12-11 | B170: 52 | C170: 64 | D170: 56 | E170: 60 | F170: 60 | G170: 56 | H170: 60 | I170: 56 | J170: 60 | K170: 52 | L170: 60 | M170: 56 | N170: 60 | O170: 56 | P170: 60 | Q170: 56 | R170: 56 | S170: 56 | T170: 56 | U170: 60 | V170: 56 | W170: 60 | X170: 52 | Y170: 60 | Z170: 56 | AA170: 60 | AB170: 56 | AC170: 60 | AD170: 56 | AE170: 56 | AF170: 60 | AG170: 52 | AH170: 60 | AI170: 68 | AJ170: 72 | AK170: 64 | AL170: 68 | AM170: 64 | AN170: 68 | AO170: 64 | AP170: 68 | AQ170: 64 | AR170: 64 | AS170: 68 | AT170: 64 | AU170: 64 | AV170: 60 | AW170: 68 | AX170: 60 | AY170: 68 | AZ170: 60 | BA170: 68 | BB170: 64 | BC170: 64 | BD170: 64 | BE170: 64 | BF170: 64 | BG170: 60 | BH170: 68 | BI170: 64 | BJ170: 68 | BK170: 64 | BL170: 72 | BM170: 64 | BN170: 68 | BO170: 64 | BP170: 72 | BQ170: 64 | BR170: 64 | BS170: 68 | BT170: 68 | BU170: 64 | BV170: 68 | BW170: 72 | BX170: 60 | BY170: 72 | BZ170: 64 | CA170: 68 | CB170: 64 | CC170: 72 | CD170: 64 | CE170: 68 | CF170: 64 | CG170: 68 | CH170: 56 | CI170: 56 | CJ170: 60 | CK170: 52 | CL170: 60 | CM170: 56 | CN170: 60 | CO170: 52 | CP170: 60 | CQ170: 52 | CR170: 60 | CS170: 52
A171: 2011-12-12 | B171: 60 | C171: 56 | D171: 60 | E171: 60 | F171: 60 | G171: 60 | H171: 56 | I171: 60 | J171: 56 | K171: 60 | L171: 56 | M171: 60 | N171: 52 | O171: 60 | P171: 56 | Q171: 60 | R171: 56 | S171: 60 | T171: 56 | U171: 56 | V171: 56 | W171: 60 | X171: 56 | Y171: 56 | Z171: 60 | AA171: 52 | AB171: 60 | AC171: 64 | AD171: 144 | AE171: 160 | AF171: 172 | AG171: 184 | AH171: 196 | AI171: 200 | AJ171: 236 | AK171: 256 | AL171: 268 | AM171: 284 | AN171: 296 | AO171: 300 | AP171: 292 | AQ171: 304 | AR171: 280 | AS171: 280 | AT171: 260 | AU171: 216 | AV171: 216 | AW171: 216 | AX171: 220 | AY171: 216 | AZ171: 228 | BA171: 224 | BB171: 224 | BC171: 220 | BD171: 224 | BE171: 220 | BF171: 216 | BG171: 204 | BH171: 200 | BI171: 196 | BJ171: 188 | BK171: 164 | BL171: 100 | BM171: 88 | BN171: 84 | BO171: 76 | BP171: 88 | BQ171: 100 | BR171: 96 | BS171: 96 | BT171: 104 | BU171: 96 | BV171: 104 | BW171: 96 | BX171: 112 | BY171: 104 | BZ171: 104 | CA171: 108 | CB171: 100 | CC171: 92 | CD171: 96 | CE171: 84 | CF171: 76 | CG171: 72 | CH171: 60 | CI171: 60 | CJ171: 56 | CK171: 56 | CL171: 60 | CM171: 56 | CN171: 60 | CO171: 56 | CP171: 60 | CQ171: 52 | CR171: 64 | CS171: 52
A172: 2011-12-13 | B172: 60 | C172: 60 | D172: 64 | E172: 60 | F172: 60 | G172: 60 | H172: 56 | I172: 60 | J172: 56 | K172: 60 | L172: 60 | M172: 60 | N172: 56 | O172: 60 | P172: 56 | Q172: 60 | R172: 56 | S172: 56 | T172: 64 | U172: 52 | V172: 64 | W172: 56 | X172: 60 | Y172: 56 | Z172: 56 | AA172: 60 | AB172: 56 | AC172: 72 | AD172: 144 | AE172: 168 | AF172: 168 | AG172: 184 | AH172: 212 | AI172: 224 | AJ172: 264 | AK172: 276 | AL172: 284 | AM172: 284 | AN172: 300 | AO172: 300 | AP172: 296 | AQ172: 280 | AR172: 276 | AS172: 272 | AT172: 260 | AU172: 208 | AV172: 216 | AW172: 224 | AX172: 220 | AY172: 220 | AZ172: 212 | BA172: 216 | BB172: 204 | BC172: 212 | BD172: 208 | BE172: 208 | BF172: 204 | BG172: 188 | BH172: 188 | BI172: 180 | BJ172: 180 | BK172: 160 | BL172: 100 | BM172: 76 | BN172: 92 | BO172: 92 | BP172: 88 | BQ172: 104 | BR172: 96 | BS172: 96 | BT172: 92 | BU172: 100 | BV172: 100 | BW172: 100 | BX172: 88 | BY172: 92 | BZ172: 92 | CA172: 80 | CB172: 88 | CC172: 80 | CD172: 88 | CE172: 76 | CF172: 76 | CG172: 64 | CH172: 60 | CI172: 56 | CJ172: 60 | CK172: 56 | CL172: 60 | CM172: 60 | CN172: 56 | CO172: 60 | CP172: 56 | CQ172: 60 | CR172: 56 | CS172: 60
A173: 2011-12-14 | B173: 56 | C173: 60 | D173: 60 | E173: 60 | F173: 60 | G173: 56 | H173: 64 | I173: 56 | J173: 60 | K173: 60 | L173: 60 | M173: 56 | N173: 60 | O173: 60 | P173: 56 | Q173: 60 | R173: 60 | S173: 60 | T173: 56 | U173: 60 | V173: 56 | W173: 60 | X173: 60 | Y173: 60 | Z173: 56 | AA173: 60 | AB173: 56 | AC173: 68 | AD173: 152 | AE173: 168 | AF173: 180 | AG173: 188 | AH173: 208 | AI173: 212 | AJ173: 224 | AK173: 260 | AL173: 292 | AM173: 284 | AN173: 284 | AO173: 276 | AP173: 280 | AQ173: 264 | AR173: 260 | AS173: 256 | AT173: 240 | AU173: 212 | AV173: 200 | AW173: 212 | AX173: 204 | AY173: 216 | AZ173: 212 | BA173: 216 | BB173: 216 | BC173: 208 | BD173: 212 | BE173: 196 | BF173: 200 | BG173: 188 | BH173: 188 | BI173: 188 | BJ173: 176 | BK173: 164 | BL173: 92 | BM173: 84 | BN173: 80 | BO173: 80 | BP173: 80 | BQ173: 80 | BR173: 84 | BS173: 92 | BT173: 92 | BU173: 96 | BV173: 96 | BW173: 96 | BX173: 104 | BY173: 96 | BZ173: 100 | CA173: 96 | CB173: 92 | CC173: 76 | CD173: 96 | CE173: 80 | CF173: 72 | CG173: 64 | CH173: 60 | CI173: 56 | CJ173: 60 | CK173: 60 | CL173: 56 | CM173: 60 | CN173: 56 | CO173: 60 | CP173: 56 | CQ173: 56 | CR173: 60 | CS173: 56
A174: 2011-12-15 | B174: 60 | C174: 60 | D174: 60 | E174: 60 | F174: 60 | G174: 56 | H174: 68 | I174: 56 | J174: 60 | K174: 60 | L174: 60 | M174: 60 | N174: 60 | O174: 60 | P174: 56 | Q174: 64 | R174: 56 | S174: 68 | T174: 56 | U174: 60 | V174: 56 | W174: 60 | X174: 60 | Y174: 60 | Z174: 56 | AA174: 60 | AB174: 60 | AC174: 68 | AD174: 152 | AE174: 164 | AF174: 176 | AG174: 176 | AH174: 192 | AI174: 208 | AJ174: 220 | AK174: 228 | AL174: 260 | AM174: 268 | AN174: 260 | AO174: 264 | AP174: 256 | AQ174: 256 | AR174: 240 | AS174: 244 | AT174: 236 | AU174: 200 | AV174: 200 | AW174: 208 | AX174: 200 | AY174: 200 | AZ174: 200 | BA174: 208 | BB174: 200 | BC174: 196 | BD174: 208 | BE174: 196 | BF174: 196 | BG174: 188 | BH174: 188 | BI174: 180 | BJ174: 172 | BK174: 160 | BL174: 92 | BM174: 72 | BN174: 84 | BO174: 92 | BP174: 88 | BQ174: 92 | BR174: 104 | BS174: 108 | BT174: 104 | BU174: 108 | BV174: 104 | BW174: 108 | BX174: 104 | BY174: 92 | BZ174: 88 | CA174: 84 | CB174: 80 | CC174: 92 | CD174: 88 | CE174: 88 | CF174: 72 | CG174: 76 | CH174: 60 | CI174: 68 | CJ174: 56 | CK174: 60 | CL174: 56 | CM174: 60 | CN174: 56 | CO174: 56 | CP174: 60 | CQ174: 56 | CR174: 64 | CS174: 56
A175: 2011-12-16 | B175: 56 | C175: 60 | D175: 64 | E175: 60 | F175: 56 | G175: 64 | H175: 60 | I175: 60 | J175: 60 | K175: 60 | L175: 56 | M175: 60 | N175: 60 | O175: 64 | P175: 56 | Q175: 56 | R175: 64 | S175: 60 | T175: 60 | U175: 56 | V175: 60 | W175: 60 | X175: 60 | Y175: 56 | Z175: 64 | AA175: 56 | AB175: 60 | AC175: 64 | AD175: 148 | AE175: 164 | AF175: 168 | AG175: 168 | AH175: 180 | AI175: 208 | AJ175: 208 | AK175: 228 | AL175: 252 | AM175: 260 | AN175: 268 | AO175: 276 | AP175: 268 | AQ175: 268 | AR175: 260 | AS175: 260 | AT175: 236 | AU175: 216 | AV175: 200 | AW175: 212 | AX175: 212 | AY175: 232 | AZ175: 232 | BA175: 232 | BB175: 216 | BC175: 208 | BD175: 196 | BE175: 204 | BF175: 192 | BG175: 184 | BH175: 176 | BI175: 168 | BJ175: 164 | BK175: 156 | BL175: 88 | BM175: 72 | BN175: 72 | BO175: 68 | BP175: 72 | BQ175: 76 | BR175: 76 | BS175: 68 | BT175: 76 | BU175: 80 | BV175: 84 | BW175: 76 | BX175: 92 | BY175: 88 | BZ175: 88 | CA175: 84 | CB175: 88 | CC175: 84 | CD175: 80 | CE175: 76 | CF175: 68 | CG175: 76 | CH175: 64 | CI175: 64 | CJ175: 56 | CK175: 64 | CL175: 56 | CM175: 60 | CN175: 56 | CO175: 64 | CP175: 56 | CQ175: 60 | CR175: 56 | CS175: 60
A176: 2011-12-17 | B176: 60 | C176: 64 | D176: 60 | E176: 60 | F176: 60 | G176: 60 | H176: 60 | I176: 56 | J176: 64 | K176: 56 | L176: 64 | M176: 56 | N176: 60 | O176: 60 | P176: 64 | Q176: 56 | R176: 64 | S176: 56 | T176: 60 | U176: 60 | V176: 60 | W176: 56 | X176: 64 | Y176: 60 | Z176: 60 | AA176: 56 | AB176: 64 | AC176: 56 | AD176: 64 | AE176: 56 | AF176: 60 | AG176: 56 | AH176: 64 | AI176: 68 | AJ176: 68 | AK176: 72 | AL176: 64 | AM176: 68 | AN176: 64 | AO176: 68 | AP176: 64 | AQ176: 68 | AR176: 64 | AS176: 72 | AT176: 64 | AU176: 68 | AV176: 64 | AW176: 68 | AX176: 68 | AY176: 60 | AZ176: 60 | BA176: 68 | BB176: 68 | BC176: 64 | BD176: 64 | BE176: 64 | BF176: 68 | BG176: 64 | BH176: 68 | BI176: 68 | BJ176: 64 | BK176: 64 | BL176: 72 | BM176: 64 | BN176: 68 | BO176: 60 | BP176: 68 | BQ176: 68 | BR176: 72 | BS176: 64 | BT176: 68 | BU176: 72 | BV176: 60 | BW176: 68 | BX176: 60 | BY176: 64 | BZ176: 68 | CA176: 72 | CB176: 68 | CC176: 68 | CD176: 64 | CE176: 76 | CF176: 64 | CG176: 72 | CH176: 56 | CI176: 64 | CJ176: 56 | CK176: 64 | CL176: 56 | CM176: 64 | CN176: 56 | CO176: 64 | CP176: 60 | CQ176: 60 | CR176: 60 | CS176: 60
A177: 2011-12-18 | B177: 60 | C177: 60 | D177: 64 | E177: 60 | F177: 64 | G177: 56 | H177: 64 | I177: 56 | J177: 64 | K177: 56 | L177: 64 | M177: 60 | N177: 60 | O177: 60 | P177: 64 | Q177: 56 | R177: 64 | S177: 60 | T177: 60 | U177: 60 | V177: 64 | W177: 56 | X177: 60 | Y177: 64 | Z177: 60 | AA177: 60 | AB177: 60 | AC177: 60 | AD177: 64 | AE177: 60 | AF177: 60 | AG177: 60 | AH177: 64 | AI177: 72 | AJ177: 76 | AK177: 68 | AL177: 72 | AM177: 68 | AN177: 72 | AO177: 68 | AP177: 72 | AQ177: 68 | AR177: 68 | AS177: 72 | AT177: 68 | AU177: 68 | AV177: 72 | AW177: 68 | AX177: 72 | AY177: 68 | AZ177: 68 | BA177: 68 | BB177: 72 | BC177: 68 | BD177: 68 | BE177: 68 | BF177: 72 | BG177: 68 | BH177: 68 | BI177: 68 | BJ177: 72 | BK177: 72 | BL177: 72 | BM177: 72 | BN177: 64 | BO177: 72 | BP177: 72 | BQ177: 72 | BR177: 72 | BS177: 68 | BT177: 72 | BU177: 76 | BV177: 64 | BW177: 72 | BX177: 76 | BY177: 68 | BZ177: 76 | CA177: 72 | CB177: 72 | CC177: 72 | CD177: 68 | CE177: 72 | CF177: 72 | CG177: 72 | CH177: 64 | CI177: 64 | CJ177: 64 | CK177: 60 | CL177: 60 | CM177: 64 | CN177: 64 | CO177: 64 | CP177: 60 | CQ177: 60 | CR177: 64 | CS177: 60
A178: 2011-12-19 | B178: 64 | C178: 60 | D178: 64 | E178: 60 | F178: 64 | G178: 60 | H178: 60 | I178: 64 | J178: 60 | K178: 64 | L178: 64 | M178: 60 | N178: 64 | O178: 60 | P178: 64 | Q178: 60 | R178: 60 | S178: 64 | T178: 60 | U178: 60 | V178: 64 | W178: 60 | X178: 64 | Y178: 60 | Z178: 64 | AA178: 60 | AB178: 60 | AC178: 68 | AD178: 152 | AE178: 168 | AF178: 188 | AG178: 204 | AH178: 224 | AI178: 236 | AJ178: 264 | AK178: 284 | AL178: 308 | AM178: 324 | AN178: 320 | AO178: 316 | AP178: 316 | AQ178: 308 | AR178: 308 | AS178: 300 | AT178: 268 | AU178: 224 | AV178: 232 | AW178: 240 | AX178: 252 | AY178: 252 | AZ178: 244 | BA178: 240 | BB178: 244 | BC178: 252 | BD178: 240 | BE178: 260 | BF178: 240 | BG178: 224 | BH178: 236 | BI178: 224 | BJ178: 208 | BK178: 168 | BL178: 104 | BM178: 96 | BN178: 88 | BO178: 96 | BP178: 100 | BQ178: 104 | BR178: 108 | BS178: 120 | BT178: 124 | BU178: 124 | BV178: 136 | BW178: 128 | BX178: 136 | BY178: 132 | BZ178: 128 | CA178: 124 | CB178: 132 | CC178: 132 | CD178: 120 | CE178: 124 | CF178: 92 | CG178: 84 | CH178: 68 | CI178: 64 | CJ178: 68 | CK178: 60 | CL178: 64 | CM178: 64 | CN178: 64 | CO178: 60 | CP178: 68 | CQ178: 60 | CR178: 64 | CS178: 64
A179: 2011-12-20 | B179: 60 | C179: 64 | D179: 64 | E179: 64 | F179: 64 | G179: 64 | H179: 64 | I179: 64 | J179: 60 | K179: 64 | L179: 64 | M179: 64 | N179: 60 | O179: 64 | P179: 64 | Q179: 60 | R179: 64 | S179: 60 | T179: 64 | U179: 64 | V179: 60 | W179: 64 | X179: 64 | Y179: 64 | Z179: 60 | AA179: 64 | AB179: 64 | AC179: 72 | AD179: 144 | AE179: 172 | AF179: 192 | AG179: 216 | AH179: 220 | AI179: 236 | AJ179: 272 | AK179: 296 | AL179: 308 | AM179: 312 | AN179: 300 | AO179: 304 | AP179: 312 | AQ179: 304 | AR179: 288 | AS179: 280 | AT179: 260 | AU179: 216 | AV179: 208 | AW179: 224 | AX179: 220 | AY179: 220 | AZ179: 216 | BA179: 212 | BB179: 208 | BC179: 216 | BD179: 244 | BE179: 244 | BF179: 228 | BG179: 216 | BH179: 200 | BI179: 192 | BJ179: 180 | BK179: 164 | BL179: 96 | BM179: 80 | BN179: 104 | BO179: 96 | BP179: 100 | BQ179: 104 | BR179: 104 | BS179: 116 | BT179: 124 | BU179: 120 | BV179: 124 | BW179: 116 | BX179: 120 | BY179: 108 | BZ179: 120 | CA179: 112 | CB179: 116 | CC179: 112 | CD179: 116 | CE179: 116 | CF179: 88 | CG179: 68 | CH179: 64 | CI179: 64 | CJ179: 60 | CK179: 60 | CL179: 60 | CM179: 64 | CN179: 60 | CO179: 60 | CP179: 60 | CQ179: 60 | CR179: 60 | CS179: 60
A180: 2011-12-21 | B180: 64 | C180: 60 | D180: 64 | E180: 64 | F180: 64 | G180: 60 | H180: 64 | I180: 60 | J180: 60 | K180: 64 | L180: 60 | M180: 64 | N180: 64 | O180: 60 | P180: 64 | Q180: 64 | R180: 60 | S180: 60 | T180: 64 | U180: 60 | V180: 64 | W180: 60 | X180: 64 | Y180: 60 | Z180: 60 | AA180: 64 | AB180: 60 | AC180: 72 | AD180: 148 | AE180: 172 | AF180: 180 | AG180: 180 | AH180: 192 | AI180: 208 | AJ180: 232 | AK180: 248 | AL180: 260 | AM180: 264 | AN180: 260 | AO180: 260 | AP180: 260 | AQ180: 252 | AR180: 240 | AS180: 240 | AT180: 232 | AU180: 196 | AV180: 200 | AW180: 200 | AX180: 196 | AY180: 200 | AZ180: 208 | BA180: 204 | BB180: 212 | BC180: 204 | BD180: 212 | BE180: 196 | BF180: 196 | BG180: 192 | BH180: 184 | BI180: 176 | BJ180: 172 | BK180: 168 | BL180: 96 | BM180: 80 | BN180: 72 | BO180: 72 | BP180: 68 | BQ180: 72 | BR180: 76 | BS180: 84 | BT180: 104 | BU180: 108 | BV180: 108 | BW180: 112 | BX180: 124 | BY180: 120 | BZ180: 120 | CA180: 116 | CB180: 116 | CC180: 108 | CD180: 108 | CE180: 96 | CF180: 76 | CG180: 64 | CH180: 64 | CI180: 64 | CJ180: 60 | CK180: 64 | CL180: 64 | CM180: 60 | CN180: 64 | CO180: 60 | CP180: 60 | CQ180: 60 | CR180: 64 | CS180: 60
A181: 2011-12-22 | B181: 64 | C181: 64 | D181: 64 | E181: 64 | F181: 68 | G181: 64 | H181: 64 | I181: 64 | J181: 64 | K181: 64 | L181: 64 | M181: 64 | N181: 64 | O181: 64 | P181: 60 | Q181: 64 | R181: 68 | S181: 60 | T181: 64 | U181: 64 | V181: 64 | W181: 64 | X181: 60 | Y181: 64 | Z181: 64 | AA181: 64 | AB181: 60 | AC181: 68 | AD181: 152 | AE181: 168 | AF181: 176 | AG181: 196 | AH181: 204 | AI181: 216 | AJ181: 232 | AK181: 248 | AL181: 260 | AM181: 272 | AN181: 240 | AO181: 252 | AP181: 252 | AQ181: 244 | AR181: 232 | AS181: 224 | AT181: 216 | AU181: 208 | AV181: 208 | AW181: 208 | AX181: 204 | AY181: 208 | AZ181: 208 | BA181: 208 | BB181: 212 | BC181: 200 | BD181: 192 | BE181: 192 | BF181: 192 | BG181: 188 | BH181: 176 | BI181: 172 | BJ181: 164 | BK181: 156 | BL181: 100 | BM181: 96 | BN181: 108 | BO181: 104 | BP181: 100 | BQ181: 108 | BR181: 116 | BS181: 116 | BT181: 116 | BU181: 120 | BV181: 128 | BW181: 136 | BX181: 128 | BY181: 132 | BZ181: 136 | CA181: 128 | CB181: 128 | CC181: 124 | CD181: 124 | CE181: 116 | CF181: 104 | CG181: 80 | CH181: 60 | CI181: 60 | CJ181: 60 | CK181: 64 | CL181: 64 | CM181: 60 | CN181: 60 | CO181: 60 | CP181: 64 | CQ181: 60 | CR181: 60 | CS181: 60
A182: 2011-12-23 | B182: 64 | C182: 64 | D182: 64 | E182: 60 | F182: 64 | G182: 64 | H182: 64 | I182: 64 | J182: 60 | K182: 64 | L182: 64 | M182: 60 | N182: 64 | O182: 64 | P182: 64 | Q182: 60 | R182: 60 | S182: 64 | T182: 60 | U182: 64 | V182: 64 | W182: 64 | X182: 60 | Y182: 64 | Z182: 64 | AA182: 60 | AB182: 60 | AC182: 68 | AD182: 152 | AE182: 168 | AF182: 164 | AG182: 176 | AH182: 188 | AI182: 216 | AJ182: 236 | AK182: 236 | AL182: 260 | AM182: 264 | AN182: 252 | AO182: 260 | AP182: 260 | AQ182: 240 | AR182: 240 | AS182: 244 | AT182: 228 | AU182: 196 | AV182: 208 | AW182: 196 | AX182: 192 | AY182: 204 | AZ182: 192 | BA182: 192 | BB182: 196 | BC182: 192 | BD182: 192 | BE182: 192 | BF182: 192 | BG182: 176 | BH182: 168 | BI182: 168 | BJ182: 156 | BK182: 148 | BL182: 92 | BM182: 80 | BN182: 76 | BO182: 76 | BP182: 92 | BQ182: 96 | BR182: 96 | BS182: 84 | BT182: 92 | BU182: 84 | BV182: 88 | BW182: 88 | BX182: 88 | BY182: 84 | BZ182: 84 | CA182: 84 | CB182: 88 | CC182: 80 | CD182: 80 | CE182: 80 | CF182: 80 | CG182: 68 | CH182: 60 | CI182: 64 | CJ182: 60 | CK182: 60 | CL182: 60 | CM182: 60 | CN182: 64 | CO182: 60 | CP182: 60 | CQ182: 60 | CR182: 60 | CS182: 60
A183: 2011-12-24 | B183: 60 | C183: 60 | D183: 64 | E183: 64 | F183: 64 | G183: 64 | H183: 60 | I183: 60 | J183: 64 | K183: 64 | L183: 56 | M183: 64 | N183: 64 | O183: 60 | P183: 64 | Q183: 60 | R183: 60 | S183: 64 | T183: 60 | U183: 64 | V183: 60 | W183: 60 | X183: 64 | Y183: 60 | Z183: 60 | AA183: 60 | AB183: 64 | AC183: 60 | AD183: 60 | AE183: 64 | AF183: 60 | AG183: 60 | AH183: 64 | AI183: 72 | AJ183: 76 | AK183: 72 | AL183: 68 | AM183: 72 | AN183: 72 | AO183: 72 | AP183: 68 | AQ183: 72 | AR183: 68 | AS183: 72 | AT183: 68 | AU183: 72 | AV183: 64 | AW183: 72 | AX183: 68 | AY183: 72 | AZ183: 72 | BA183: 64 | BB183: 68 | BC183: 68 | BD183: 64 | BE183: 72 | BF183: 72 | BG183: 64 | BH183: 68 | BI183: 68 | BJ183: 68 | BK183: 76 | BL183: 72 | BM183: 72 | BN183: 68 | BO183: 76 | BP183: 68 | BQ183: 68 | BR183: 72 | BS183: 72 | BT183: 72 | BU183: 68 | BV183: 72 | BW183: 72 | BX183: 68 | BY183: 72 | BZ183: 72 | CA183: 68 | CB183: 72 | CC183: 72 | CD183: 72 | CE183: 68 | CF183: 72 | CG183: 72 | CH183: 60 | CI183: 64 | CJ183: 60 | CK183: 64 | CL183: 60 | CM183: 60 | CN183: 60 | CO183: 64 | CP183: 56 | CQ183: 60 | CR183: 64 | CS183: 60
A184: 2011-12-25 | B184: 60 | C184: 64 | D184: 64 | E184: 64 | F184: 64 | G184: 60 | H184: 64 | I184: 60 | J184: 64 | K184: 64 | L184: 60 | M184: 64 | N184: 60 | O184: 60 | P184: 64 | Q184: 60 | R184: 64 | S184: 60 | T184: 64 | U184: 56 | V184: 64 | W184: 60 | X184: 64 | Y184: 60 | Z184: 64 | AA184: 60 | AB184: 60 | AC184: 64 | AD184: 60 | AE184: 64 | AF184: 60 | AG184: 60 | AH184: 60 | AI184: 76 | AJ184: 76 | AK184: 72 | AL184: 72 | AM184: 72 | AN184: 72 | AO184: 72 | AP184: 68 | AQ184: 72 | AR184: 72 | AS184: 68 | AT184: 72 | AU184: 72 | AV184: 68 | AW184: 72 | AX184: 68 | AY184: 68 | AZ184: 72 | BA184: 68 | BB184: 68 | BC184: 68 | BD184: 68 | BE184: 72 | BF184: 68 | BG184: 72 | BH184: 68 | BI184: 72 | BJ184: 68 | BK184: 68 | BL184: 76 | BM184: 72 | BN184: 72 | BO184: 72 | BP184: 76 | BQ184: 68 | BR184: 72 | BS184: 68 | BT184: 72 | BU184: 72 | BV184: 68 | BW184: 72 | BX184: 72 | BY184: 68 | BZ184: 76 | CA184: 64 | CB184: 72 | CC184: 72 | CD184: 68 | CE184: 68 | CF184: 72 | CG184: 68 | CH184: 60 | CI184: 60 | CJ184: 60 | CK184: 64 | CL184: 60 | CM184: 56 | CN184: 64 | CO184: 56 | CP184: 64 | CQ184: 56 | CR184: 64 | CS184: 60
A185: 2011-12-26 | B185: 60 | C185: 60 | D185: 64 | E185: 60 | F185: 64 | G185: 60 | H185: 64 | I185: 60 | J185: 60 | K185: 64 | L185: 60 | M185: 60 | N185: 60 | O185: 56 | P185: 64 | Q185: 60 | R185: 60 | S185: 64 | T185: 56 | U185: 64 | V185: 60 | W185: 60 | X185: 60 | Y185: 64 | Z185: 56 | AA185: 64 | AB185: 60 | AC185: 64 | AD185: 148 | AE185: 184 | AF185: 188 | AG185: 200 | AH185: 212 | AI185: 228 | AJ185: 252 | AK185: 272 | AL185: 268 | AM185: 284 | AN185: 284 | AO185: 288 | AP185: 288 | AQ185: 304 | AR185: 288 | AS185: 288 | AT185: 260 | AU185: 200 | AV185: 220 | AW185: 240 | AX185: 240 | AY185: 236 | AZ185: 240 | BA185: 240 | BB185: 240 | BC185: 240 | BD185: 244 | BE185: 248 | BF185: 244 | BG185: 232 | BH185: 216 | BI185: 216 | BJ185: 200 | BK185: 160 | BL185: 96 | BM185: 76 | BN185: 76 | BO185: 72 | BP185: 80 | BQ185: 80 | BR185: 88 | BS185: 92 | BT185: 96 | BU185: 92 | BV185: 120 | BW185: 112 | BX185: 116 | BY185: 108 | BZ185: 104 | CA185: 108 | CB185: 104 | CC185: 108 | CD185: 96 | CE185: 100 | CF185: 80 | CG185: 80 | CH185: 60 | CI185: 64 | CJ185: 60 | CK185: 60 | CL185: 56 | CM185: 64 | CN185: 60 | CO185: 64 | CP185: 56 | CQ185: 64 | CR185: 56 | CS185: 68
A186: 2011-12-27 | B186: 60 | C186: 60 | D186: 64 | E186: 64 | F186: 68 | G186: 60 | H186: 64 | I186: 60 | J186: 64 | K186: 60 | L186: 64 | M186: 60 | N186: 68 | O186: 56 | P186: 64 | Q186: 60 | R186: 64 | S186: 60 | T186: 64 | U186: 60 | V186: 64 | W186: 60 | X186: 64 | Y186: 64 | Z186: 60 | AA186: 64 | AB186: 60 | AC186: 68 | AD186: 148 | AE186: 172 | AF186: 188 | AG186: 216 | AH186: 224 | AI186: 216 | AJ186: 236 | AK186: 268 | AL186: 288 | AM186: 304 | AN186: 304 | AO186: 300 | AP186: 288 | AQ186: 296 | AR186: 284 | AS186: 280 | AT186: 260 | AU186: 200 | AV186: 212 | AW186: 216 | AX186: 220 | AY186: 216 | AZ186: 224 | BA186: 220 | BB186: 220 | BC186: 220 | BD186: 220 | BE186: 204 | BF186: 208 | BG186: 196 | BH186: 192 | BI186: 184 | BJ186: 176 | BK186: 152 | BL186: 104 | BM186: 80 | BN186: 84 | BO186: 76 | BP186: 80 | BQ186: 84 | BR186: 88 | BS186: 88 | BT186: 100 | BU186: 96 | BV186: 96 | BW186: 96 | BX186: 96 | BY186: 112 | BZ186: 96 | CA186: 96 | CB186: 92 | CC186: 84 | CD186: 92 | CE186: 84 | CF186: 84 | CG186: 72 | CH186: 60 | CI186: 60 | CJ186: 56 | CK186: 64 | CL186: 52 | CM186: 64 | CN186: 56 | CO186: 60 | CP186: 56 | CQ186: 60 | CR186: 60 | CS186: 60
A187: 2011-12-28 | B187: 56 | C187: 60 | D187: 64 | E187: 60 | F187: 64 | G187: 56 | H187: 64 | I187: 60 | J187: 60 | K187: 60 | L187: 60 | M187: 60 | N187: 60 | O187: 60 | P187: 56 | Q187: 64 | R187: 56 | S187: 64 | T187: 56 | U187: 64 | V187: 56 | W187: 64 | X187: 56 | Y187: 60 | Z187: 60 | AA187: 60 | AB187: 60 | AC187: 60 | AD187: 156 | AE187: 164 | AF187: 192 | AG187: 212 | AH187: 220 | AI187: 212 | AJ187: 232 | AK187: 280 | AL187: 272 | AM187: 284 | AN187: 268 | AO187: 264 | AP187: 264 | AQ187: 272 | AR187: 260 | AS187: 268 | AT187: 244 | AU187: 216 | AV187: 216 | AW187: 224 | AX187: 236 | AY187: 224 | AZ187: 228 | BA187: 224 | BB187: 232 | BC187: 208 | BD187: 212 | BE187: 216 | BF187: 216 | BG187: 204 | BH187: 196 | BI187: 184 | BJ187: 176 | BK187: 152 | BL187: 96 | BM187: 72 | BN187: 76 | BO187: 76 | BP187: 72 | BQ187: 72 | BR187: 72 | BS187: 96 | BT187: 84 | BU187: 104 | BV187: 108 | BW187: 108 | BX187: 100 | BY187: 112 | BZ187: 108 | CA187: 108 | CB187: 108 | CC187: 108 | CD187: 104 | CE187: 104 | CF187: 96 | CG187: 68 | CH187: 60 | CI187: 56 | CJ187: 64 | CK187: 56 | CL187: 56 | CM187: 60 | CN187: 56 | CO187: 60 | CP187: 56 | CQ187: 60 | CR187: 56 | CS187: 60
A188: 2011-12-29 | B188: 60 | C188: 64 | D188: 56 | E188: 64 | F188: 60 | G188: 60 | H188: 60 | I188: 56 | J188: 60 | K188: 56 | L188: 64 | M188: 56 | N188: 64 | O188: 56 | P188: 60 | Q188: 60 | R188: 60 | S188: 60 | T188: 56 | U188: 60 | V188: 60 | W188: 60 | X188: 56 | Y188: 64 | Z188: 56 | AA188: 60 | AB188: 56 | AC188: 68 | AD188: 148 | AE188: 168 | AF188: 208 | AG188: 220 | AH188: 216 | AI188: 228 | AJ188: 228 | AK188: 272 | AL188: 284 | AM188: 280 | AN188: 276 | AO188: 292 | AP188: 272 | AQ188: 272 | AR188: 280 | AS188: 264 | AT188: 236 | AU188: 196 | AV188: 192 | AW188: 204 | AX188: 204 | AY188: 220 | AZ188: 240 | BA188: 224 | BB188: 216 | BC188: 208 | BD188: 208 | BE188: 212 | BF188: 208 | BG188: 204 | BH188: 200 | BI188: 192 | BJ188: 168 | BK188: 160 | BL188: 104 | BM188: 100 | BN188: 104 | BO188: 116 | BP188: 108 | BQ188: 112 | BR188: 124 | BS188: 140 | BT188: 144 | BU188: 136 | BV188: 148 | BW188: 136 | BX188: 140 | BY188: 144 | BZ188: 136 | CA188: 140 | CB188: 124 | CC188: 124 | CD188: 104 | CE188: 112 | CF188: 96 | CG188: 88 | CH188: 76 | CI188: 60 | CJ188: 60 | CK188: 60 | CL188: 64 | CM188: 56 | CN188: 60 | CO188: 56 | CP188: 64 | CQ188: 60 | CR188: 56 | CS188: 60
A189: 2011-12-30 | B189: 60 | C189: 60 | D189: 60 | E189: 64 | F189: 60 | G189: 60 | H189: 60 | I189: 64 | J189: 56 | K189: 60 | L189: 60 | M189: 60 | N189: 60 | O189: 56 | P189: 64 | Q189: 60 | R189: 60 | S189: 60 | T189: 64 | U189: 56 | V189: 64 | W189: 56 | X189: 60 | Y189: 64 | Z189: 56 | AA189: 60 | AB189: 60 | AC189: 68 | AD189: 144 | AE189: 164 | AF189: 184 | AG189: 208 | AH189: 208 | AI189: 216 | AJ189: 244 | AK189: 260 | AL189: 264 | AM189: 272 | AN189: 272 | AO189: 264 | AP189: 260 | AQ189: 268 | AR189: 268 | AS189: 264 | AT189: 236 | AU189: 204 | AV189: 204 | AW189: 216 | AX189: 212 | AY189: 216 | AZ189: 212 | BA189: 204 | BB189: 212 | BC189: 208 | BD189: 200 | BE189: 200 | BF189: 192 | BG189: 180 | BH189: 172 | BI189: 164 | BJ189: 156 | BK189: 148 | BL189: 84 | BM189: 64 | BN189: 64 | BO189: 64 | BP189: 68 | BQ189: 64 | BR189: 76 | BS189: 72 | BT189: 64 | BU189: 72 | BV189: 68 | BW189: 72 | BX189: 68 | BY189: 84 | BZ189: 76 | CA189: 80 | CB189: 76 | CC189: 72 | CD189: 72 | CE189: 68 | CF189: 72 | CG189: 68 | CH189: 64 | CI189: 56 | CJ189: 60 | CK189: 60 | CL189: 56 | CM189: 60 | CN189: 56 | CO189: 60 | CP189: 60 | CQ189: 60 | CR189: 60 | CS189: 60
A190: 2011-12-31 | B190: 56 | C190: 60 | D190: 64 | E190: 60 | F190: 64 | G190: 60 | H190: 60 | I190: 64 | J190: 60 | K190: 60 | L190: 60 | M190: 68 | N190: 56 | O190: 60 | P190: 60 | Q190: 60 | R190: 64 | S190: 56 | T190: 64 | U190: 60 | V190: 60 | W190: 56 | X190: 64 | Y190: 60 | Z190: 56 | AA190: 64 | AB190: 56 | AC190: 60 | AD190: 60 | AE190: 64 | AF190: 56 | AG190: 60 | AH190: 64 | AI190: 72 | AJ190: 72 | AK190: 72 | AL190: 68 | AM190: 68 | AN190: 72 | AO190: 68 | AP190: 68 | AQ190: 68 | AR190: 68 | AS190: 68 | AT190: 64 | AU190: 72 | AV190: 64 | AW190: 68 | AX190: 68 | AY190: 68 | AZ190: 64 | BA190: 64 | BB190: 72 | BC190: 64 | BD190: 68 | BE190: 64 | BF190: 68 | BG190: 68 | BH190: 64 | BI190: 68 | BJ190: 68 | BK190: 72 | BL190: 68 | BM190: 72 | BN190: 68 | BO190: 68 | BP190: 72 | BQ190: 64 | BR190: 76 | BS190: 64 | BT190: 68 | BU190: 68 | BV190: 68 | BW190: 76 | BX190: 64 | BY190: 76 | BZ190: 68 | CA190: 68 | CB190: 72 | CC190: 68 | CD190: 72 | CE190: 68 | CF190: 72 | CG190: 68 | CH190: 56 | CI190: 60 | CJ190: 56 | CK190: 64 | CL190: 56 | CM190: 60 | CN190: 60 | CO190: 60 | CP190: 56 | CQ190: 56 | CR190: 64 | CS190: 56
A191: 2012-01-01 | B191: 60 | C191: 60 | D191: 60 | E191: 64 | F191: 56 | G191: 64 | H191: 60 | I191: 64 | J191: 56 | K191: 60 | L191: 60 | M191: 60 | N191: 60 | O191: 60 | P191: 64 | Q191: 56 | R191: 60 | S191: 64 | T191: 56 | U191: 60 | V191: 60 | W191: 64 | X191: 56 | Y191: 64 | Z191: 60 | AA191: 60 | AB191: 56 | AC191: 60 | AD191: 64 | AE191: 56 | AF191: 64 | AG191: 56 | AH191: 64 | AI191: 72 | AJ191: 76 | AK191: 68 | AL191: 68 | AM191: 72 | AN191: 64 | AO191: 72 | AP191: 68 | AQ191: 72 | AR191: 64 | AS191: 68 | AT191: 68 | AU191: 64 | AV191: 72 | AW191: 64 | AX191: 68 | AY191: 64 | AZ191: 72 | BA191: 64 | BB191: 68 | BC191: 68 | BD191: 64 | BE191: 68 | BF191: 64 | BG191: 72 | BH191: 64 | BI191: 64 | BJ191: 68 | BK191: 68 | BL191: 76 | BM191: 64 | BN191: 72 | BO191: 68 | BP191: 68 | BQ191: 72 | BR191: 68 | BS191: 68 | BT191: 68 | BU191: 72 | BV191: 68 | BW191: 68 | BX191: 72 | BY191: 68 | BZ191: 72 | CA191: 68 | CB191: 72 | CC191: 68 | CD191: 72 | CE191: 68 | CF191: 68 | CG191: 76 | CH191: 52 | CI191: 64 | CJ191: 56 | CK191: 60 | CL191: 56 | CM191: 64 | CN191: 60 | CO191: 52 | CP191: 64 | CQ191: 56 | CR191: 60 | CS191: 56
A192: 2012-01-02 | B192: 60 | C192: 64 | D192: 56 | E192: 64 | F192: 64 | G192: 60 | H192: 56 | I192: 64 | J192: 60 | K192: 60 | L192: 60 | M192: 64 | N192: 60 | O192: 60 | P192: 64 | Q192: 60 | R192: 60 | S192: 64 | T192: 60 | U192: 60 | V192: 64 | W192: 60 | X192: 60 | Y192: 60 | Z192: 64 | AA192: 56 | AB192: 64 | AC192: 64 | AD192: 148 | AE192: 172 | AF192: 172 | AG192: 188 | AH192: 188 | AI192: 200 | AJ192: 216 | AK192: 236 | AL192: 244 | AM192: 256 | AN192: 260 | AO192: 256 | AP192: 268 | AQ192: 260 | AR192: 264 | AS192: 248 | AT192: 232 | AU192: 208 | AV192: 204 | AW192: 216 | AX192: 212 | AY192: 212 | AZ192: 216 | BA192: 212 | BB192: 208 | BC192: 212 | BD192: 212 | BE192: 212 | BF192: 208 | BG192: 204 | BH192: 204 | BI192: 196 | BJ192: 176 | BK192: 160 | BL192: 96 | BM192: 84 | BN192: 68 | BO192: 76 | BP192: 80 | BQ192: 72 | BR192: 76 | BS192: 80 | BT192: 76 | BU192: 84 | BV192: 88 | BW192: 84 | BX192: 84 | BY192: 88 | BZ192: 84 | CA192: 76 | CB192: 76 | CC192: 72 | CD192: 76 | CE192: 76 | CF192: 76 | CG192: 80 | CH192: 60 | CI192: 60 | CJ192: 64 | CK192: 60 | CL192: 60 | CM192: 64 | CN192: 60 | CO192: 60 | CP192: 60 | CQ192: 60 | CR192: 64 | CS192: 60
A193: 2012-01-03 | B193: 60 | C193: 64 | D193: 60 | E193: 64 | F193: 68 | G193: 60 | H193: 60 | I193: 64 | J193: 60 | K193: 64 | L193: 60 | M193: 64 | N193: 60 | O193: 60 | P193: 64 | Q193: 64 | R193: 60 | S193: 64 | T193: 64 | U193: 60 | V193: 60 | W193: 60 | X193: 64 | Y193: 60 | Z193: 60 | AA193: 64 | AB193: 64 | AC193: 68 | AD193: 144 | AE193: 168 | AF193: 180 | AG193: 196 | AH193: 204 | AI193: 212 | AJ193: 228 | AK193: 256 | AL193: 256 | AM193: 264 | AN193: 268 | AO193: 276 | AP193: 260 | AQ193: 248 | AR193: 248 | AS193: 244 | AT193: 228 | AU193: 192 | AV193: 192 | AW193: 192 | AX193: 200 | AY193: 196 | AZ193: 204 | BA193: 204 | BB193: 204 | BC193: 212 | BD193: 196 | BE193: 204 | BF193: 200 | BG193: 196 | BH193: 192 | BI193: 184 | BJ193: 176 | BK193: 160 | BL193: 96 | BM193: 84 | BN193: 92 | BO193: 96 | BP193: 104 | BQ193: 96 | BR193: 104 | BS193: 100 | BT193: 96 | BU193: 100 | BV193: 96 | BW193: 92 | BX193: 104 | BY193: 100 | BZ193: 96 | CA193: 92 | CB193: 96 | CC193: 92 | CD193: 84 | CE193: 80 | CF193: 80 | CG193: 76 | CH193: 64 | CI193: 60 | CJ193: 64 | CK193: 60 | CL193: 60 | CM193: 60 | CN193: 64 | CO193: 64 | CP193: 56 | CQ193: 64 | CR193: 60 | CS193: 60
A194: 2012-01-04 | B194: 60 | C194: 64 | D194: 64 | E194: 60 | F194: 64 | G194: 60 | H194: 60 | I194: 68 | J194: 60 | K194: 60 | L194: 60 | M194: 64 | N194: 64 | O194: 60 | P194: 64 | Q194: 60 | R194: 64 | S194: 60 | T194: 64 | U194: 60 | V194: 64 | W194: 60 | X194: 64 | Y194: 60 | Z194: 64 | AA194: 60 | AB194: 68 | AC194: 64 | AD194: 144 | AE194: 168 | AF194: 176 | AG194: 184 | AH194: 192 | AI194: 220 | AJ194: 232 | AK194: 232 | AL194: 264 | AM194: 276 | AN194: 288 | AO194: 284 | AP194: 288 | AQ194: 268 | AR194: 280 | AS194: 264 | AT194: 236 | AU194: 192 | AV194: 192 | AW194: 192 | AX194: 192 | AY194: 192 | AZ194: 192 | BA194: 192 | BB194: 200 | BC194: 208 | BD194: 200 | BE194: 200 | BF194: 208 | BG194: 196 | BH194: 188 | BI194: 180 | BJ194: 172 | BK194: 156 | BL194: 96 | BM194: 80 | BN194: 72 | BO194: 72 | BP194: 72 | BQ194: 72 | BR194: 72 | BS194: 76 | BT194: 72 | BU194: 72 | BV194: 72 | BW194: 76 | BX194: 68 | BY194: 76 | BZ194: 72 | CA194: 72 | CB194: 80 | CC194: 72 | CD194: 72 | CE194: 72 | CF194: 76 | CG194: 68 | CH194: 64 | CI194: 60 | CJ194: 60 | CK194: 64 | CL194: 60 | CM194: 64 | CN194: 64 | CO194: 60 | CP194: 60 | CQ194: 60 | CR194: 60 | CS194: 64
A195: 2012-01-05 | B195: 56 | C195: 64 | D195: 64 | E195: 64 | F195: 64 | G195: 64 | H195: 60 | I195: 64 | J195: 60 | K195: 64 | L195: 64 | M195: 64 | N195: 60 | O195: 60 | P195: 64 | Q195: 60 | R195: 64 | S195: 60 | T195: 64 | U195: 60 | V195: 64 | W195: 64 | X195: 60 | Y195: 60 | Z195: 64 | AA195: 64 | AB195: 60 | AC195: 68 | AD195: 148 | AE195: 164 | AF195: 172 | AG195: 180 | AH195: 184 | AI195: 192 | AJ195: 200 | AK195: 220 | AL195: 248 | AM195: 260 | AN195: 248 | AO195: 248 | AP195: 252 | AQ195: 236 | AR195: 232 | AS195: 220 | AT195: 216 | AU195: 184 | AV195: 176 | AW195: 188 | AX195: 180 | AY195: 188 | AZ195: 184 | BA195: 180 | BB195: 188 | BC195: 192 | BD195: 192 | BE195: 192 | BF195: 184 | BG195: 180 | BH195: 172 | BI195: 172 | BJ195: 152 | BK195: 144 | BL195: 84 | BM195: 72 | BN195: 64 | BO195: 68 | BP195: 68 | BQ195: 68 | BR195: 72 | BS195: 64 | BT195: 72 | BU195: 72 | BV195: 68 | BW195: 68 | BX195: 68 | BY195: 72 | BZ195: 76 | CA195: 68 | CB195: 72 | CC195: 76 | CD195: 72 | CE195: 72 | CF195: 72 | CG195: 64 | CH195: 64 | CI195: 64 | CJ195: 60 | CK195: 60 | CL195: 60 | CM195: 60 | CN195: 60 | CO195: 60 | CP195: 60 | CQ195: 60 | CR195: 60 | CS195: 60
A196: 2012-01-06 | B196: 60 | C196: 64 | D196: 64 | E196: 64 | F196: 64 | G196: 60 | H196: 60 | I196: 64 | J196: 64 | K196: 56 | L196: 64 | M196: 60 | N196: 60 | O196: 64 | P196: 60 | Q196: 64 | R196: 60 | S196: 64 | T196: 60 | U196: 64 | V196: 60 | W196: 60 | X196: 64 | Y196: 64 | Z196: 60 | AA196: 60 | AB196: 60 | AC196: 64 | AD196: 60 | AE196: 64 | AF196: 64 | AG196: 64 | AH196: 68 | AI196: 72 | AJ196: 72 | AK196: 72 | AL196: 72 | AM196: 68 | AN196: 72 | AO196: 72 | AP196: 68 | AQ196: 72 | AR196: 68 | AS196: 68 | AT196: 68 | AU196: 64 | AV196: 68 | AW196: 68 | AX196: 72 | AY196: 68 | AZ196: 72 | BA196: 68 | BB196: 64 | BC196: 60 | BD196: 68 | BE196: 68 | BF196: 68 | BG196: 68 | BH196: 68 | BI196: 64 | BJ196: 64 | BK196: 68 | BL196: 68 | BM196: 64 | BN196: 64 | BO196: 68 | BP196: 64 | BQ196: 60 | BR196: 72 | BS196: 64 | BT196: 64 | BU196: 64 | BV196: 68 | BW196: 68 | BX196: 68 | BY196: 64 | BZ196: 68 | CA196: 72 | CB196: 72 | CC196: 72 | CD196: 68 | CE196: 64 | CF196: 72 | CG196: 68 | CH196: 60 | CI196: 56 | CJ196: 64 | CK196: 56 | CL196: 60 | CM196: 64 | CN196: 60 | CO196: 56 | CP196: 60 | CQ196: 64 | CR196: 56 | CS196: 60
A197: 2012-01-07 | B197: 60 | C197: 64 | D197: 64 | E197: 60 | F197: 64 | G197: 60 | H197: 60 | I197: 64 | J197: 60 | K197: 64 | L197: 64 | M197: 60 | N197: 60 | O197: 64 | P197: 60 | Q197: 60 | R197: 64 | S197: 60 | T197: 60 | U197: 60 | V197: 60 | W197: 60 | X197: 64 | Y197: 60 | Z197: 60 | AA197: 64 | AB197: 60 | AC197: 60 | AD197: 64 | AE197: 60 | AF197: 60 | AG197: 64 | AH197: 60 | AI197: 76 | AJ197: 72 | AK197: 68 | AL197: 72 | AM197: 68 | AN197: 72 | AO197: 68 | AP197: 68 | AQ197: 68 | AR197: 68 | AS197: 68 | AT197: 68 | AU197: 68 | AV197: 68 | AW197: 64 | AX197: 64 | AY197: 72 | AZ197: 68 | BA197: 64 | BB197: 68 | BC197: 64 | BD197: 68 | BE197: 68 | BF197: 68 | BG197: 64 | BH197: 68 | BI197: 68 | BJ197: 64 | BK197: 72 | BL197: 68 | BM197: 68 | BN197: 64 | BO197: 64 | BP197: 68 | BQ197: 68 | BR197: 72 | BS197: 68 | BT197: 72 | BU197: 68 | BV197: 68 | BW197: 72 | BX197: 68 | BY197: 68 | BZ197: 76 | CA197: 68 | CB197: 68 | CC197: 64 | CD197: 64 | CE197: 68 | CF197: 68 | CG197: 68 | CH197: 60 | CI197: 56 | CJ197: 64 | CK197: 60 | CL197: 60 | CM197: 60 | CN197: 60 | CO197: 60 | CP197: 60 | CQ197: 64 | CR197: 56 | CS197: 60
A198: 2012-01-08 | B198: 64 | C198: 60 | D198: 64 | E198: 64 | F198: 64 | G198: 60 | H198: 64 | I198: 60 | J198: 64 | K198: 60 | L198: 60 | M198: 64 | N198: 60 | O198: 60 | P198: 60 | Q198: 60 | R198: 64 | S198: 60 | T198: 64 | U198: 60 | V198: 64 | W198: 56 | X198: 64 | Y198: 56 | Z198: 64 | AA198: 64 | AB198: 60 | AC198: 60 | AD198: 60 | AE198: 64 | AF198: 60 | AG198: 60 | AH198: 60 | AI198: 76 | AJ198: 72 | AK198: 72 | AL198: 68 | AM198: 72 | AN198: 72 | AO198: 68 | AP198: 68 | AQ198: 72 | AR198: 68 | AS198: 68 | AT198: 68 | AU198: 68 | AV198: 68 | AW198: 68 | AX198: 72 | AY198: 68 | AZ198: 68 | BA198: 68 | BB198: 68 | BC198: 68 | BD198: 68 | BE198: 64 | BF198: 72 | BG198: 64 | BH198: 68 | BI198: 68 | BJ198: 68 | BK198: 72 | BL198: 72 | BM198: 72 | BN198: 72 | BO198: 72 | BP198: 68 | BQ198: 68 | BR198: 72 | BS198: 68 | BT198: 72 | BU198: 68 | BV198: 72 | BW198: 76 | BX198: 68 | BY198: 68 | BZ198: 76 | CA198: 72 | CB198: 72 | CC198: 72 | CD198: 68 | CE198: 72 | CF198: 72 | CG198: 72 | CH198: 60 | CI198: 60 | CJ198: 64 | CK198: 60 | CL198: 60 | CM198: 64 | CN198: 60 | CO198: 60 | CP198: 64 | CQ198: 60 | CR198: 60 | CS198: 56
A199: 2012-01-09 | B199: 64 | C199: 64 | D199: 60 | E199: 64 | F199: 64 | G199: 60 | H199: 60 | I199: 64 | J199: 60 | K199: 60 | L199: 60 | M199: 64 | N199: 60 | O199: 64 | P199: 60 | Q199: 60 | R199: 60 | S199: 64 | T199: 64 | U199: 56 | V199: 60 | W199: 64 | X199: 60 | Y199: 60 | Z199: 60 | AA199: 64 | AB199: 64 | AC199: 64 | AD199: 148 | AE199: 176 | AF199: 180 | AG199: 184 | AH199: 200 | AI199: 228 | AJ199: 248 | AK199: 268 | AL199: 284 | AM199: 304 | AN199: 300 | AO199: 304 | AP199: 288 | AQ199: 300 | AR199: 288 | AS199: 280 | AT199: 268 | AU199: 208 | AV199: 224 | AW199: 236 | AX199: 236 | AY199: 232 | AZ199: 208 | BA199: 224 | BB199: 220 | BC199: 220 | BD199: 236 | BE199: 220 | BF199: 204 | BG199: 212 | BH199: 192 | BI199: 200 | BJ199: 180 | BK199: 164 | BL199: 96 | BM199: 72 | BN199: 68 | BO199: 72 | BP199: 96 | BQ199: 88 | BR199: 112 | BS199: 112 | BT199: 116 | BU199: 116 | BV199: 112 | BW199: 112 | BX199: 108 | BY199: 116 | BZ199: 108 | CA199: 104 | CB199: 96 | CC199: 100 | CD199: 96 | CE199: 100 | CF199: 92 | CG199: 72 | CH199: 60 | CI199: 56 | CJ199: 60 | CK199: 56 | CL199: 60 | CM199: 56 | CN199: 64 | CO199: 56 | CP199: 56 | CQ199: 56 | CR199: 60 | CS199: 56
A200: 2012-01-10 | B200: 56 | C200: 64 | D200: 56 | E200: 64 | F200: 56 | G200: 60 | H200: 60 | I200: 56 | J200: 64 | K200: 56 | L200: 64 | M200: 52 | N200: 64 | O200: 56 | P200: 56 | Q200: 64 | R200: 56 | S200: 60 | T200: 56 | U200: 64 | V200: 56 | W200: 56 | X200: 60 | Y200: 60 | Z200: 56 | AA200: 56 | AB200: 64 | AC200: 56 | AD200: 140 | AE200: 168 | AF200: 184 | AG200: 192 | AH200: 212 | AI200: 216 | AJ200: 240 | AK200: 260 | AL200: 268 | AM200: 312 | AN200: 300 | AO200: 300 | AP200: 292 | AQ200: 292 | AR200: 288 | AS200: 280 | AT200: 280 | AU200: 208 | AV200: 208 | AW200: 216 | AX200: 228 | AY200: 220 | AZ200: 224 | BA200: 232 | BB200: 228 | BC200: 240 | BD200: 236 | BE200: 232 | BF200: 228 | BG200: 216 | BH200: 208 | BI200: 208 | BJ200: 184 | BK200: 168 | BL200: 100 | BM200: 88 | BN200: 92 | BO200: 112 | BP200: 104 | BQ200: 116 | BR200: 124 | BS200: 136 | BT200: 136 | BU200: 136 | BV200: 136 | BW200: 136 | BX200: 132 | BY200: 136 | BZ200: 132 | CA200: 128 | CB200: 120 | CC200: 136 | CD200: 124 | CE200: 124 | CF200: 108 | CG200: 72 | CH200: 60 | CI200: 60 | CJ200: 60 | CK200: 56 | CL200: 60 | CM200: 60 | CN200: 56 | CO200: 60 | CP200: 56 | CQ200: 60 | CR200: 56 | CS200: 60
A201: 2012-01-11 | B201: 56 | C201: 60 | D201: 64 | E201: 60 | F201: 60 | G201: 60 | H201: 60 | I201: 60 | J201: 56 | K201: 64 | L201: 56 | M201: 60 | N201: 56 | O201: 64 | P201: 56 | Q201: 60 | R201: 60 | S201: 60 | T201: 60 | U201: 52 | V201: 64 | W201: 56 | X201: 56 | Y201: 64 | Z201: 56 | AA201: 60 | AB201: 56 | AC201: 60 | AD201: 132 | AE201: 160 | AF201: 184 | AG201: 220 | AH201: 216 | AI201: 224 | AJ201: 260 | AK201: 268 | AL201: 296 | AM201: 312 | AN201: 300 | AO201: 304 | AP201: 308 | AQ201: 288 | AR201: 292 | AS201: 284 | AT201: 272 | AU201: 196 | AV201: 216 | AW201: 216 | AX201: 208 | AY201: 220 | AZ201: 216 | BA201: 224 | BB201: 212 | BC201: 216 | BD201: 236 | BE201: 220 | BF201: 216 | BG201: 212 | BH201: 224 | BI201: 192 | BJ201: 188 | BK201: 156 | BL201: 84 | BM201: 76 | BN201: 64 | BO201: 76 | BP201: 72 | BQ201: 84 | BR201: 88 | BS201: 96 | BT201: 92 | BU201: 88 | BV201: 96 | BW201: 92 | BX201: 100 | BY201: 96 | BZ201: 100 | CA201: 88 | CB201: 96 | CC201: 88 | CD201: 88 | CE201: 88 | CF201: 76 | CG201: 68 | CH201: 56 | CI201: 60 | CJ201: 60 | CK201: 56 | CL201: 56 | CM201: 60 | CN201: 60 | CO201: 52 | CP201: 60 | CQ201: 56 | CR201: 60 | CS201: 56
A202: 2012-01-12 | B202: 56 | C202: 60 | D202: 52 | E202: 64 | F202: 52 | G202: 60 | H202: 52 | I202: 56 | J202: 60 | K202: 56 | L202: 60 | M202: 52 | N202: 64 | O202: 52 | P202: 60 | Q202: 56 | R202: 60 | S202: 56 | T202: 56 | U202: 60 | V202: 56 | W202: 60 | X202: 52 | Y202: 60 | Z202: 56 | AA202: 56 | AB202: 56 | AC202: 60 | AD202: 148 | AE202: 160 | AF202: 180 | AG202: 208 | AH202: 216 | AI202: 220 | AJ202: 240 | AK202: 252 | AL202: 248 | AM202: 268 | AN202: 272 | AO202: 252 | AP202: 272 | AQ202: 268 | AR202: 252 | AS202: 248 | AT202: 236 | AU202: 192 | AV202: 192 | AW202: 196 | AX202: 208 | AY202: 216 | AZ202: 212 | BA202: 212 | BB202: 200 | BC202: 212 | BD202: 204 | BE202: 200 | BF202: 200 | BG202: 188 | BH202: 192 | BI202: 180 | BJ202: 172 | BK202: 156 | BL202: 92 | BM202: 76 | BN202: 92 | BO202: 92 | BP202: 84 | BQ202: 84 | BR202: 88 | BS202: 116 | BT202: 108 | BU202: 112 | BV202: 116 | BW202: 120 | BX202: 124 | BY202: 108 | BZ202: 120 | CA202: 108 | CB202: 108 | CC202: 116 | CD202: 108 | CE202: 112 | CF202: 84 | CG202: 68 | CH202: 60 | CI202: 52 | CJ202: 60 | CK202: 56 | CL202: 60 | CM202: 56 | CN202: 52 | CO202: 60 | CP202: 52 | CQ202: 60 | CR202: 52 | CS202: 60
... 177 more rows

Sheet Hoja1
A1: 2011-07-01 | B1: 64 | C1: P6
A2: 2011-07-01T00:15:00 | B2: 64 | C2: P6
A3: 2011-07-01T00:30:00 | B3: 68 | C3: P6
A4: 2011-07-01T00:45:00 | B4: 64 | C4: P6
A5: 2011-07-01T01:00:00 | B5: 64 | C5: P6
A6: 2011-07-01T01:15:00 | B6: 64 | C6: P6
A7: 2011-07-01T01:30:00 | B7: 64 | C7: P6
A8: 2011-07-01T01:45:00 | B8: 68 | C8: P6
A9: 2011-07-01T02:00:00 | B9: 64 | C9: P6
A10: 2011-07-01T02:15:00 | B10: 60 | C10: P6
A11: 2011-07-01T02:30:00 | B11: 68 | C11: P6
A12: 2011-07-01T02:45:00 | B12: 64 | C12: P6
A13: 2011-07-01T03:00:00 | B13: 64 | C13: P6
A14: 2011-07-01T03:15:00 | B14: 64 | C14: P6
A15: 2011-07-01T03:30:00 | B15: 64 | C15: P6
A16: 2011-07-01T03:45:00 | B16: 60 | C16: P6
A17: 2011-07-01T04:00:00 | B17: 64 | C17: P6
A18: 2011-07-01T04:15:00 | B18: 64 | C18: P6
A19: 2011-07-01T04:30:00 | B19: 64 | C19: P6
A20: 2011-07-01T04:45:00 | B20: 64 | C20: P6
A21: 2011-07-01T05:00:00 | B21: 64 | C21: P6
A22: 2011-07-01T05:15:00 | B22: 60 | C22: P6
A23: 2011-07-01T05:30:00 | B23: 68 | C23: P6
A24: 2011-07-01T05:45:00 | B24: 60 | C24: P6
A25: 2011-07-01T06:00:00 | B25: 68 | C25: P6
A26: 2011-07-01T06:15:00 | B26: 60 | C26: P6
A27: 2011-07-01T06:30:00 | B27: 64 | C27: P6
A28: 2011-07-01T06:45:00 | B28: 64 | C28: P6
A29: 2011-07-01T07:00:00 | B29: 144 | C29: P6
A30: 2011-07-01T07:15:00 | B30: 176 | C30: P6
A31: 2011-07-01T07:30:00 | B31: 208 | C31: P6
A32: 2011-07-01T07:45:00 | B32: 244 | C32: P6
A33: 2011-07-01T08:00:00 | B33: 244 | C33: P6
A34: 2011-07-01T08:15:00 | B34: 280 | C34: P2
A35: 2011-07-01T08:30:00 | B35: 316 | C35: P2
A36: 2011-07-01T08:45:00 | B36: 328 | C36: P2
A37: 2011-07-01T09:00:00 | B37: 344 | C37: P2
A38: 2011-07-01T09:15:00 | B38: 340 | C38: P2
A39: 2011-07-01T09:30:00 | B39: 348 | C39: P2
A40: 2011-07-01T09:45:00 | B40: 344 | C40: P2
A41: 2011-07-01T10:00:00 | B41: 352 | C41: P2
A42: 2011-07-01T10:15:00 | B42: 348 | C42: P2
A43: 2011-07-01T10:30:00 | B43: 344 | C43: P2
A44: 2011-07-01T10:45:00 | B44: 344 | C44: P2
A45: 2011-07-01T11:00:00 | B45: 268 | C45: P2
A46: 2011-07-01T11:15:00 | B46: 244 | C46: P1
A47: 2011-07-01T11:30:00 | B47: 292 | C47: P1
A48: 2011-07-01T11:45:00 | B48: 316 | C48: P1
A49: 2011-07-01T12:00:00 | B49: 328 | C49: P1
A50: 2011-07-01T12:15:00 | B50: 332 | C50: P1
A51: 2011-07-01T12:30:00 | B51: 332 | C51: P1
A52: 2011-07-01T12:45:00 | B52: 340 | C52: P1
A53: 2011-07-01T13:00:00 | B53: 344 | C53: P1
A54: 2011-07-01T13:15:00 | B54: 348 | C54: P1
A55: 2011-07-01T13:30:00 | B55: 340 | C55: P1
A56: 2011-07-01T13:45:00 | B56: 336 | C56: P1
A57: 2011-07-01T14:00:00 | B57: 324 | C57: P1
A58: 2011-07-01T14:15:00 | B58: 308 | C58: P1
A59: 2011-07-01T14:30:00 | B59: 300 | C59: P1
A60: 2011-07-01T14:45:00 | B60: 280 | C60: P1
A61: 2011-07-01T15:00:00 | B61: 204 | C61: P1
A62: 2011-07-01T15:15:00 | B62: 152 | C62: P1
A63: 2011-07-01T15:30:00 | B63: 128 | C63: P1
A64: 2011-07-01T15:45:00 | B64: 148 | C64: P1
A65: 2011-07-01T16:00:00 | B65: 148 | C65: P1
A66: 2011-07-01T16:15:00 | B66: 144 | C66: P1
A67: 2011-07-01T16:30:00 | B67: 148 | C67: P1
A68: 2011-07-01T16:45:00 | B68: 148 | C68: P1
A69: 2011-07-01T17:00:00 | B69: 148 | C69: P1
A70: 2011-07-01T17:15:00 | B70: 148 | C70: P1
A71: 2011-07-01T17:30:00 | B71: 148 | C71: P1
A72: 2011-07-01T17:45:00 | B72: 152 | C72: P1
A73: 2011-07-01T18:00:00 | B73: 152 | C73: P1
A74: 2011-07-01T18:15:00 | B74: 148 | C74: P1
A75: 2011-07-01T18:30:00 | B75: 148 | C75: P1
A76: 2011-07-01T18:45:00 | B76: 148 | C76: P1
A77: 2011-07-01T19:00:00 | B77: 144 | C77: P1
A78: 2011-07-01T19:15:00 | B78: 140 | C78: P2
A79: 2011-07-01T19:30:00 | B79: 136 | C79: P2
A80: 2011-07-01T19:45:00 | B80: 132 | C80: P2
A81: 2011-07-01T20:00:00 | B81: 116 | C81: P2
A82: 2011-07-01T20:15:00 | B82: 92 | C82: P2
A83: 2011-07-01T20:30:00 | B83: 76 | C83: P2
A84: 2011-07-01T20:45:00 | B84: 72 | C84: P2
A85: 2011-07-01T21:00:00 | B85: 60 | C85: P2
A86: 2011-07-01T21:15:00 | B86: 64 | C86: P2
A87: 2011-07-01T21:30:00 | B87: 56 | C87: P2
A88: 2011-07-01T21:45:00 | B88: 60 | C88: P2
A89: 2011-07-01T22:00:00 | B89: 56 | C89: P2
A90: 2011-07-01T22:15:00 | B90: 60 | C90: P2
A91: 2011-07-01T22:30:00 | B91: 56 | C91: P2
A92: 2011-07-01T22:45:00 | B92: 60 | C92: P2
A93: 2011-07-01T23:00:00 | B93: 60 | C93: P2
A94: 2011-07-01T23:15:00 | B94: 60 | C94: P2
A95: 2011-07-01T23:30:00 | B95: 56 | C95: P2
A96: 2011-07-01T23:45:00 | B96: 60 | C96: P2
A97: 2011-07-02 | B97: 60 | C97: P6
A98: 2011-07-02T00:15:00 | B98: 64 | C98: P6
A99: 2011-07-02T00:30:00 | B99: 64 | C99: P6
A100: 2011-07-02T00:45:00 | B100: 64 | C100: P6
A101: 2011-07-02T01:00:00 | B101: 60 | C101: P6
A102: 2011-07-02T01:15:00 | B102: 64 | C102: P6
A103: 2011-07-02T01:30:00 | B103: 60 | C103: P6
A104: 2011-07-02T01:45:00 | B104: 64 | C104: P6
A105: 2011-07-02T02:00:00 | B105: 60 | C105: P6
A106: 2011-07-02T02:15:00 | B106: 64 | C106: P6
A107: 2011-07-02T02:30:00 | B107: 60 | C107: P6
A108: 2011-07-02T02:45:00 | B108: 60 | C108: P6
A109: 2011-07-02T03:00:00 | B109: 60 | C109: P6
A110: 2011-07-02T03:15:00 | B110: 64 | C110: P6
A111: 2011-07-02T03:30:00 | B111: 64 | C111: P6
A112: 2011-07-02T03:45:00 | B112: 60 | C112: P6
A113: 2011-07-02T04:00:00 | B113: 64 | C113: P6
A114: 2011-07-02T04:15:00 | B114: 60 | C114: P6
A115: 2011-07-02T04:30:00 | B115: 60 | C115: P6
A116: 2011-07-02T04:45:00 | B116: 64 | C116: P6
A117: 2011-07-02T05:00:00 | B117: 60 | C117: P6
A118: 2011-07-02T05:15:00 | B118: 60 | C118: P6
A119: 2011-07-02T05:30:00 | B119: 64 | C119: P6
A120: 2011-07-02T05:45:00 | B120: 60 | C120: P6
A121: 2011-07-02T06:00:00 | B121: 60 | C121: P6
A122: 2011-07-02T06:15:00 | B122: 64 | C122: P6
A123: 2011-07-02T06:30:00 | B123: 60 | C123: P6
A124: 2011-07-02T06:45:00 | B124: 60 | C124: P6
A125: 2011-07-02T07:00:00 | B125: 68 | C125: P6
A126: 2011-07-02T07:15:00 | B126: 68 | C126: P6
A127: 2011-07-02T07:30:00 | B127: 68 | C127: P6
A128: 2011-07-02T07:45:00 | B128: 68 | C128: P6
A129: 2011-07-02T08:00:00 | B129: 72 | C129: P6
A130: 2011-07-02T08:15:00 | B130: 68 | C130: P2
A131: 2011-07-02T08:30:00 | B131: 64 | C131: P2
A132: 2011-07-02T08:45:00 | B132: 72 | C132: P2
A133: 2011-07-02T09:00:00 | B133: 68 | C133: P2
A134: 2011-07-02T09:15:00 | B134: 72 | C134: P2
A135: 2011-07-02T09:30:00 | B135: 68 | C135: P2
A136: 2011-07-02T09:45:00 | B136: 68 | C136: P2
A137: 2011-07-02T10:00:00 | B137: 68 | C137: P2
A138: 2011-07-02T10:15:00 | B138: 68 | C138: P2
A139: 2011-07-02T10:30:00 | B139: 68 | C139: P2
A140: 2011-07-02T10:45:00 | B140: 72 | C140: P2
A141: 2011-07-02T11:00:00 | B141: 72 | C141: P2
A142: 2011-07-02T11:15:00 | B142: 68 | C142: P1
A143: 2011-07-02T11:30:00 | B143: 68 | C143: P1
A144: 2011-07-02T11:45:00 | B144: 68 | C144: P1
A145: 2011-07-02T12:00:00 | B145: 68 | C145: P1
A146: 2011-07-02T12:15:00 | B146: 68 | C146: P1
A147: 2011-07-02T12:30:00 | B147: 72 | C147: P1
A148: 2011-07-02T12:45:00 | B148: 72 | C148: P1
A149: 2011-07-02T13:00:00 | B149: 68 | C149: P1
A150: 2011-07-02T13:15:00 | B150: 68 | C150: P1
A151: 2011-07-02T13:30:00 | B151: 68 | C151: P1
A152: 2011-07-02T13:45:00 | B152: 68 | C152: P1
A153: 2011-07-02T14:00:00 | B153: 72 | C153: P1
A154: 2011-07-02T14:15:00 | B154: 72 | C154: P1
A155: 2011-07-02T14:30:00 | B155: 68 | C155: P1
A156: 2011-07-02T14:45:00 | B156: 68 | C156: P1
A157: 2011-07-02T15:00:00 | B157: 72 | C157: P1
A158: 2011-07-02T15:15:00 | B158: 72 | C158: P1
A159: 2011-07-02T15:30:00 | B159: 76 | C159: P1
A160: 2011-07-02T15:45:00 | B160: 72 | C160: P1
A161: 2011-07-02T16:00:00 | B161: 76 | C161: P1
A162: 2011-07-02T16:15:00 | B162: 72 | C162: P1
A163: 2011-07-02T16:30:00 | B163: 68 | C163: P1
A164: 2011-07-02T16:45:00 | B164: 72 | C164: P1
A165: 2011-07-02T17:00:00 | B165: 72 | C165: P1
A166: 2011-07-02T17:15:00 | B166: 72 | C166: P1
A167: 2011-07-02T17:30:00 | B167: 76 | C167: P1
A168: 2011-07-02T17:45:00 | B168: 72 | C168: P1
A169: 2011-07-02T18:00:00 | B169: 76 | C169: P1
A170: 2011-07-02T18:15:00 | B170: 68 | C170: P1
A171: 2011-07-02T18:30:00 | B171: 72 | C171: P1
A172: 2011-07-02T18:45:00 | B172: 76 | C172: P1
A173: 2011-07-02T19:00:00 | B173: 72 | C173: P1
A174: 2011-07-02T19:15:00 | B174: 76 | C174: P2
A175: 2011-07-02T19:30:00 | B175: 72 | C175: P2
A176: 2011-07-02T19:45:00 | B176: 76 | C176: P2
A177: 2011-07-02T20:00:00 | B177: 72 | C177: P2
A178: 2011-07-02T20:15:00 | B178: 72 | C178: P2
A179: 2011-07-02T20:30:00 | B179: 72 | C179: P2
A180: 2011-07-02T20:45:00 | B180: 72 | C180: P2
A181: 2011-07-02T21:00:00 | B181: 60 | C181: P2
A182: 2011-07-02T21:15:00 | B182: 60 | C182: P2
A183: 2011-07-02T21:30:00 | B183: 60 | C183: P2
A184: 2011-07-02T21:45:00 | B184: 60 | C184: P2
A185: 2011-07-02T22:00:00 | B185: 60 | C185: P2
A186: 2011-07-02T22:15:00 | B186: 60 | C186: P2
A187: 2011-07-02T22:30:00 | B187: 60 | C187: P2
A188: 2011-07-02T22:45:00 | B188: 60 | C188: P2
A189: 2011-07-02T23:00:00 | B189: 56 | C189: P2
A190: 2011-07-02T23:15:00 | B190: 60 | C190: P2
A191: 2011-07-02T23:30:00 | B191: 60 | C191: P2
A192: 2011-07-02T23:45:00 | B192: 56 | C192: P2
A193: 2011-07-03 | B193: 64 | C193: P6
A194: 2011-07-03T00:15:00 | B194: 64 | C194: P6
A195: 2011-07-03T00:30:00 | B195: 60 | C195: P6
A196: 2011-07-03T00:45:00 | B196: 64 | C196: P6
A197: 2011-07-03T01:00:00 | B197: 64 | C197: P6
A198: 2011-07-03T01:15:00 | B198: 60 | C198: P6
A199: 2011-07-03T01:30:00 | B199: 60 | C199: P6
A200: 2011-07-03T01:45:00 | B200: 64 | C200: P6
... 4300 more rows
